{"text_format":"1","workbook":"xlsx","n_sheets":1,"sheets":["IRArticle23T1"],"not_rendered":{"charts":0,"images":0,"macros":1,"external_links":0,"defined_names":10,"comments":0,"pivot_tables":0},"unopened":[],"bounds":{"document_bytes":16777216,"sheet_cells":100000,"rows_first":2000,"rows_last":500,"rows_between":2000,"halvings":0,"cell_chars":16384,"cell_head_chars":4096},"cells_cut":0,"cells_raw":0,"read":"whole","date_system":"1900"}

{"sheet":"IRArticle23T1","index":0,"n_rows":241,"n_cols":272,"rows_kept":241,"cut":false,"hidden":false,"merged":[[0,0,1,10]]}
["Article 23 Reporting on projections \n1.Member States shall report the information on projections of anthropogenic greenhouse gases emissions by sources and removals by sinks referred to in Article 14 of Regulation (EU) No 525/2013 in accordance with the tabular formats set out in Annex XII to this Regulation, using the reporting template provided and the submission process introduced by the Commission."]
[]
[]
[]
["Instructions:"]
["Yellow fields are mandatory reporting requirements"]
["Unfold the template by clicking the framed '+' icons."]
["Select your country in cell B15 and the base year of your projections in cell C17, other base year cells will be filled automatically."]
["Fill the template with your data and press the button 'Export to XML' in cell C14."]
["The xml-transformation will not work if you add rows or columns to this template."]
["Don't add textual information in this template. The information will not reach us. Explain your data in your report."]
["Upload the Excel and the xml file to the EIONET CDR."]
[]
["Submission Year",2017]
["MS","CZ"]
["Category (1,3)","Scenario (WEM, WAM, WOM)","CO2 (kt)","CO2 (kt)","CO2 (kt)","CO2 (kt)","CO2 (kt)","CO2 (kt)","CO2 (kt)","CO2 (kt)","CO2 (kt)","CO2 (kt)","CO2 (kt)","CO2 (kt)","CO2 (kt)","CO2 (kt)","CO2 (kt)","CO2 (kt)","CO2 (kt)",{"$f":"N16","v":"CO2 (kt)"},{"$f":"O16","v":"CO2 (kt)"},"CO2 (kt)","CO2 (kt)","CO2 (kt)",{"$f":"S16","v":"CO2 (kt)"},{"$f":"T16","v":"CO2 (kt)"},{"$f":"U16","v":"CO2 (kt)"},{"$f":"V16","v":"CO2 (kt)"},{"$f":"W16","v":"CO2 (kt)"},"N2O (kt)","N2O (kt)","N2O (kt)","N2O (kt)","N2O (kt)","N2O (kt)","N2O (kt)","N2O (kt)","N2O (kt)","N2O (kt)","N2O (kt)","N2O (kt)","N2O (kt)","N2O (kt)","N2O (kt)","N2O (kt)","N2O (kt)",{"$f":"AO16","v":"N2O (kt)"},{"$f":"AP16","v":"N2O (kt)"},{"$f":"AQ16","v":"N2O (kt)"},{"$f":"AR16","v":"N2O (kt)"},{"$f":"AS16","v":"N2O (kt)"},{"$f":"AT16","v":"N2O (kt)"},{"$f":"AU16","v":"N2O (kt)"},{"$f":"AV16","v":"N2O (kt)"},{"$f":"AW16","v":"N2O (kt)"},{"$f":"AX16","v":"N2O (kt)"},"CH4 (kt)","CH4 (kt)","CH4 (kt)","CH4 (kt)","CH4 (kt)","CH4 (kt)","CH4 (kt)","CH4 (kt)","CH4 (kt)","CH4 (kt)","CH4 (kt)","CH4 (kt)","CH4 (kt)","CH4 (kt)","CH4 (kt)","CH4 (kt)","CH4 (kt)",{"$f":"BP16","v":"CH4 (kt)"},{"$f":"BQ16","v":"CH4 (kt)"},{"$f":"BR16","v":"CH4 (kt)"},{"$f":"BS16","v":"CH4 (kt)"},{"$f":"BT16","v":"CH4 (kt)"},{"$f":"BU16","v":"CH4 (kt)"},{"$f":"BV16","v":"CH4 (kt)"},{"$f":"BW16","v":"CH4 (kt)"},{"$f":"BX16","v":"CH4 (kt)"},{"$f":"BY16","v":"CH4 (kt)"},"HFC (kt CO2e)","HFC (kt CO2e)","HFC (kt CO2e)","HFC (kt CO2e)","HFC (kt CO2e)","HFC (kt CO2e)","HFC (kt CO2e)","HFC (kt CO2e)","HFC (kt CO2e)","HFC (kt CO2e)","HFC (kt CO2e)","HFC (kt CO2e)","HFC (kt CO2e)","HFC (kt CO2e)","HFC (kt CO2e)","HFC (kt CO2e)","HFC (kt CO2e)",{"$f":"CQ16","v":"HFC (kt CO2e)"},{"$f":"CR16","v":"HFC (kt CO2e)"},{"$f":"CS16","v":"HFC (kt CO2e)"},{"$f":"CT16","v":"HFC (kt CO2e)"},{"$f":"CU16","v":"HFC (kt CO2e)"},{"$f":"CV16","v":"HFC (kt CO2e)"},{"$f":"CW16","v":"HFC (kt CO2e)"},{"$f":"CX16","v":"HFC (kt CO2e)"},{"$f":"CY16","v":"HFC (kt CO2e)"},{"$f":"CZ16","v":"HFC (kt CO2e)"},"PFC (kt CO2e)","PFC (kt CO2e)","PFC (kt CO2e)","PFC (kt CO2e)","PFC (kt CO2e)","PFC (kt CO2e)","PFC (kt CO2e)","PFC (kt CO2e)","PFC (kt CO2e)","PFC (kt CO2e)","PFC (kt CO2e)","PFC (kt CO2e)","PFC (kt CO2e)","PFC (kt CO2e)","PFC (kt CO2e)","PFC (kt CO2e)","PFC (kt CO2e)",{"$f":"DR16","v":"PFC (kt CO2e)"},{"$f":"DS16","v":"PFC (kt CO2e)"},{"$f":"DT16","v":"PFC (kt CO2e)"},{"$f":"DU16","v":"PFC (kt CO2e)"},{"$f":"DV16","v":"PFC (kt CO2e)"},{"$f":"DW16","v":"PFC (kt CO2e)"},{"$f":"DX16","v":"PFC (kt CO2e)"},{"$f":"DY16","v":"PFC (kt CO2e)"},{"$f":"DZ16","v":"PFC (kt CO2e)"},{"$f":"EA16","v":"PFC (kt CO2e)"},"SF6 (kt CO2e)","SF6 (kt CO2e)","SF6 (kt CO2e)","SF6 (kt CO2e)","SF6 (kt CO2e)","SF6 (kt CO2e)","SF6 (kt CO2e)","SF6 (kt CO2e)","SF6 (kt CO2e)","SF6 (kt CO2e)","SF6 (kt CO2e)","SF6 (kt CO2e)","SF6 (kt CO2e)","SF6 (kt CO2e)","SF6 (kt CO2e)","SF6 (kt CO2e)","SF6 (kt CO2e)",{"$f":"ES16","v":"SF6 (kt CO2e)"},{"$f":"ET16","v":"SF6 (kt CO2e)"},{"$f":"EU16","v":"SF6 (kt CO2e)"},{"$f":"EV16","v":"SF6 (kt CO2e)"},{"$f":"EW16","v":"SF6 (kt CO2e)"},{"$f":"EX16","v":"SF6 (kt CO2e)"},{"$f":"EY16","v":"SF6 (kt CO2e)"},{"$f":"EZ16","v":"SF6 (kt CO2e)"},{"$f":"FA16","v":"SF6 (kt CO2e)"},{"$f":"FB16","v":"SF6 (kt CO2e)"},"NF3 (kt CO2e)","NF3 (kt CO2e)","NF3 (kt CO2e)","NF3 (kt CO2e)","NF3 (kt CO2e)","NF3 (kt CO2e)","NF3 (kt CO2e)","NF3 (kt CO2e)","NF3 (kt CO2e)","NF3 (kt CO2e)","NF3 (kt CO2e)","NF3 (kt CO2e)","NF3 (kt CO2e)","NF3 (kt CO2e)","NF3 (kt CO2e)","NF3 (kt CO2e)","NF3 (kt CO2e)",{"$f":"FT16","v":"NF3 (kt CO2e)"},{"$f":"FU16","v":"NF3 (kt CO2e)"},{"$f":"FV16","v":"NF3 (kt CO2e)"},{"$f":"FW16","v":"NF3 (kt CO2e)"},{"$f":"FX16","v":"NF3 (kt CO2e)"},{"$f":"FY16","v":"NF3 (kt CO2e)"},{"$f":"FZ16","v":"NF3 (kt CO2e)"},{"$f":"GA16","v":"NF3 (kt CO2e)"},{"$f":"GB16","v":"NF3 (kt CO2e)"},{"$f":"GC16","v":"NF3 (kt CO2e)"},"Total GHGs (ktCO2e)","Total GHGs (ktCO2e)","Total GHGs (ktCO2e)","Total GHGs (ktCO2e)","Total GHGs (ktCO2e)","Total GHGs (ktCO2e)","Total GHGs (ktCO2e)","Total GHGs (ktCO2e)","Total GHGs (ktCO2e)","Total GHGs (ktCO2e)","Total GHGs (ktCO2e)","Total GHGs (ktCO2e)","Total GHGs (ktCO2e)","Total GHGs (ktCO2e)","Total GHGs (ktCO2e)","Total GHGs (ktCO2e)","Total GHGs (ktCO2e)",{"$f":"GU16","v":"Total GHGs (ktCO2e)"},{"$f":"GV16","v":"Total GHGs (ktCO2e)"},{"$f":"GW16","v":"Total GHGs (ktCO2e)"},{"$f":"GX16","v":"Total GHGs (ktCO2e)"},{"$f":"GY16","v":"Total GHGs (ktCO2e)"},{"$f":"GZ16","v":"Total GHGs (ktCO2e)"},{"$f":"HA16","v":"Total GHGs (ktCO2e)"},{"$f":"HB16","v":"Total GHGs (ktCO2e)"},{"$f":"HC16","v":"Total GHGs (ktCO2e)"},{"$f":"HD16","v":"Total GHGs (ktCO2e)"},"Total ETS GHGs (ktCO2e)","Total ETS GHGs (ktCO2e)","Total ETS GHGs (ktCO2e)","Total ETS GHGs (ktCO2e)","Total ETS GHGs (ktCO2e)","Total ETS GHGs (ktCO2e)","Total ETS GHGs (ktCO2e)","Total ETS GHGs (ktCO2e)","Total ETS GHGs (ktCO2e)","Total ETS GHGs (ktCO2e)","Total ETS GHGs (ktCO2e)","Total ETS GHGs (ktCO2e)","Total ETS GHGs (ktCO2e)","Total ETS GHGs (ktCO2e)","Total ETS GHGs (ktCO2e)","Total ETS GHGs (ktCO2e)","Total ETS GHGs (ktCO2e)",{"$f":"HV16","v":"Total ETS GHGs (ktCO2e)"},{"$f":"HW16","v":"Total ETS GHGs (ktCO2e)"},{"$f":"HX16","v":"Total ETS GHGs (ktCO2e)"},{"$f":"HY16","v":"Total ETS GHGs (ktCO2e)"},{"$f":"HZ16","v":"Total ETS GHGs (ktCO2e)"},{"$f":"IA16","v":"Total ETS GHGs (ktCO2e)"},{"$f":"IB16","v":"Total ETS GHGs (ktCO2e)"},{"$f":"IC16","v":"Total ETS GHGs (ktCO2e)"},{"$f":"ID16","v":"Total ETS GHGs (ktCO2e)"},{"$f":"IE16","v":"Total ETS GHGs (ktCO2e)"},"Total ESD GHGs (ktCO2e)","Total ESD GHGs (ktCO2e)","Total ESD GHGs (ktCO2e)","Total ESD GHGs (ktCO2e)","Total ESD GHGs (ktCO2e)","Total ESD GHGs (ktCO2e)","Total ESD GHGs (ktCO2e)","Total ESD GHGs (ktCO2e)","Total ESD GHGs (ktCO2e)","Total ESD GHGs (ktCO2e)","Total ESD GHGs (ktCO2e)","Total ESD GHGs (ktCO2e)","Total ESD GHGs (ktCO2e)","Total ESD GHGs (ktCO2e)","Total ESD GHGs (ktCO2e)","Total ESD GHGs (ktCO2e)","Total ESD GHGs (ktCO2e)",{"$f":"IW16","v":"Total ESD GHGs (ktCO2e)"},{"$f":"IX16","v":"Total ESD GHGs (ktCO2e)"},{"$f":"IY16","v":"Total ESD GHGs (ktCO2e)"},{"$f":"IZ16","v":"Total ESD GHGs (ktCO2e)"},{"$f":"JA16","v":"Total ESD GHGs (ktCO2e)"},{"$f":"JB16","v":"Total ESD GHGs (ktCO2e)"},{"$f":"JC16","v":"Total ESD GHGs (ktCO2e)"},{"$f":"JD16","v":"Total ESD GHGs (ktCO2e)"},{"$f":"JE16","v":"Total ESD GHGs (ktCO2e)"},{"$f":"JF16","v":"Total ESD GHGs (ktCO2e)"}]
[null,null,2014,2015,2016,2017,2018,2019,2020,2021,2022,2023,2024,2025,2026,2027,2028,2029,2030,2031,2032,2033,2034,2035,2036,2037,2038,2039,2040,{"$f":"$C$17","v":2014},2015,2016,2017,2018,2019,2020,2021,2022,2023,2024,2025,2026,2027,2028,2029,2030,2031,2032,2033,2034,2035,2036,2037,2038,2039,2040,{"$f":"$C$17","v":2014},2015,2016,2017,2018,2019,2020,2021,2022,2023,2024,2025,2026,2027,2028,2029,2030,2031,2032,2033,2034,2035,2036,2037,2038,2039,2040,{"$f":"$C$17","v":2014},2015,2016,2017,2018,2019,2020,2021,2022,2023,2024,2025,2026,2027,2028,2029,2030,2031,2032,2033,2034,2035,2036,2037,2038,2039,2040,{"$f":"$C$17","v":2014},2015,2016,2017,2018,2019,2020,2021,2022,2023,2024,2025,2026,2027,2028,2029,2030,2031,2032,2033,2034,2035,2036,2037,2038,2039,2040,{"$f":"$C$17","v":2014},2015,2016,2017,2018,2019,2020,2021,2022,2023,2024,2025,2026,2027,2028,2029,2030,2031,2032,2033,2034,2035,2036,2037,2038,2039,2040,{"$f":"$C$17","v":2014},2015,2016,2017,2018,2019,2020,2021,2022,2023,2024,2025,2026,2027,2028,2029,2030,2031,2032,2033,2034,2035,2036,2037,2038,2039,2040,{"$f":"$C$17","v":2014},2015,2016,2017,2018,2019,2020,2021,2022,2023,2024,2025,2026,2027,2028,2029,2030,2031,2032,2033,2034,2035,2036,2037,2038,2039,2040,{"$f":"$C$17","v":2014},2015,2016,2017,2018,2019,2020,2021,2022,2023,2024,2025,2026,2027,2028,2029,2030,2031,2032,2033,2034,2035,2036,2037,2038,2039,2040,{"$f":"$C$17","v":2014},2015,2016,2017,2018,2019,2020,2021,2022,2023,2024,2025,2026,2027,2028,2029,2030,2031,2032,2033,2034,2035,2036,2037,2038,2039,2040]
["Total excluding LULUCF","WEM",101154.38383681339,102035.69946574567,null,null,null,null,100255.63424544872,null,null,null,null,92156.071041583404,null,null,null,null,88500.786649111193,null,null,null,null,83065.076978238736,null,null,null,null,null,21.220454560363962,21.34224511027951,null,null,null,null,21.941259013960252,null,null,null,null,22.876168437309548,null,null,null,null,23.70016189214779,null,null,null,null,23.581311249048341,null,null,null,null,null,529.54097666641928,537.07571923214243,null,null,null,null,530.32168131642868,null,null,null,null,506.18528621389765,null,null,null,null,491.54800026490136,null,null,null,null,444.0457653255994,null,null,null,null,null,2830.3822492779182,2898.8636373444883,null,null,null,null,2333.750686158905,null,null,null,null,1873.3360877055457,null,null,null,null,858.28873074565104,null,null,null,null,340.02386709943687,null,null,null,null,null,5.3419390210361497,6.2665841026495848,null,null,null,null,3.7677709294513426,null,null,null,null,3.547200000000001,null,null,null,null,3.547200000000001,null,null,null,null,3.547200000000001,null,null,null,null,null,96.014766107423995,88.67156785731629,null,null,null,null,105.51246993069348,null,null,null,null,95.652755627626306,null,null,null,null,104.26657917062694,null,null,null,null,93.439720368886285,null,null,null,null,null,2.3529599999999999,2.58,null,null,null,null,2.58,null,null,null,null,2.58,null,null,null,null,2.58,null,null,null,null,2.58,null,null,null,null,null,123650.69890076129,124818.96327871697,0,0,0,0,122497.78239153863,0,0,0,0,113602.91743458228,0,0,0,0,108820.81740951008,0,0,0,0,101633.04265106346,null,null,null,null,null,66695.226999999999,67239.439508354175,0,0,0,0,60540.223835356883,0,0,0,0,53688.287764317589,0,0,0,0,54388.020816666438,null,null,null,null,52075.538168091516,null,null,null,null,null,56948.386017965808,57569.211761862789,0,0,0,0,61948.657947041749,0,0,0,0,59905.678401124678,0,0,0,0,54423.794663703622,null,null,null,null,49548.462025831956]
["Total including LULUCF","WEM",93276.22839815887,95770.469465745671,null,null,null,null,97676.744245448717,null,null,null,null,88618.561041583409,null,null,null,null,84932.84664911119,null,null,null,null,79068.666978238733,null,null,null,null,null,21.261297839430622,21.381509704401712,null,null,null,null,21.978107802528786,null,null,null,null,22.912963079477024,null,null,null,null,23.736912092518931,null,null,null,null,23.618033255507314,null,null,null,null,null,532.47328503741937,540.34873714830542,null,null,null,null,533.26441846254511,null,null,null,null,509.13333514788377,null,null,null,null,494.4990233132786,null,null,null,null,446.99834974121444,null,null,null,null,null,2830.3822492779182,2898.8636373444883,null,null,null,null,2333.750686158905,null,null,null,null,1873.3360877055457,null,null,null,null,858.28873074565104,null,null,null,null,340.02386709943687,null,null,null,null,null,5.3419390210361497,6.2665841026495848,null,null,null,null,3.7677709294513426,null,null,null,null,3.547200000000001,null,null,null,null,3.547200000000001,null,null,null,null,3.547200000000001,null,null,null,null,null,96.014766107423995,88.67156785731629,null,null,null,null,105.51246993069348,null,null,null,null,95.652755627626306,null,null,null,null,104.26657917062694,null,null,null,null,93.439720368886285,null,null,null,null,null,2.3529599999999999,2.58,null,null,null,null,2.58,null,null,null,null,2.58,null,null,null,null,2.58,null,null,null,null,2.58,null,null,null,null,null,115858.02246854364,118647.26327871697,0,0,0,0,120003.44175918496,0,0,0,0,110150.06346129785,0,0,0,0,105337.59454543011,0,0,0,0,97721.380419378605,null,null,null,null,null,66695.226999999999,67239.439508354175,0,0,0,0,60540.223835356883,0,0,0,0,53688.287764317589,0,0,0,0,54388.020816666438,null,null,null,null,52075.538168091516,null,null,null,null,null,56948.386017965808,57569.211761862789,0,0,0,0,61948.657947041749,0,0,0,0,59905.678401124678,0,0,0,0,54423.794663703622,null,null,null,null,49548.462025831956]
["1. Energy","WEM",89585.8217685157,90468.399416412329,null,null,null,null,88690.96300855829,null,null,null,null,80640.651085779129,null,null,null,null,77035.56135730393,null,null,null,null,71647.810504207839,null,null,null,null,null,3.4658001977087798,3.5676464340569418,null,null,null,null,4.0136290122691918,null,null,null,null,4.1304359018249022,null,null,null,null,3.9585366504923871,null,null,null,null,3.4875969317965128,null,null,null,null,null,176.29567725661235,177.94483930368546,null,null,null,null,172.5595294827703,null,null,null,null,150.66330946078673,null,null,null,null,147.56278163493278,null,null,null,null,127.80987614629889,null,null,null,null,null,null,null,null,null,null,null,null,null,null,null,null,null,null,null,null,null,null,null,null,null,null,null,null,null,null,null,null,null,null,null,null,null,null,null,null,null,null,null,null,null,null,null,null,null,null,null,null,null,null,null,null,null,null,null,null,null,null,null,null,null,null,null,null,null,null,null,null,null,null,null,null,null,null,null,null,null,null,null,null,null,null,null,null,null,null,null,null,null,null,null,null,null,null,null,null,null,null,null,null,null,null,null,null,null,null,null,null,null,95026.022158848224,95980.179036353438,null,null,null,null,94201.012691283744,null,null,null,null,85638.103721042615,null,null,null,null,81904.274820023988,null,null,null,null,75882.361293540685,null,null,null,null,null,55523.726999999999,56076.906504988139,null,null,null,null,50899.809227675622,null,null,null,null,44088.881112744581,null,null,null,null,44243.535008121835,null,null,null,null,41969.591174968831,null,null,null,null,null,39495.209276052745,39892.960522865287,null,null,null,null,43292.302854468137,null,null,null,null,41540.271339158033,null,null,null,null,37651.737882762151,null,null,null,null,33903.727661431862]
["1.A. Fuel combustion ","WEM",89382.689914491377,90267.349416412326,null,null,null,null,88506.333008558286,null,null,null,null,80480.141085779134,null,null,null,null,76880.131357303937,null,null,null,null,71524.770504207845,null,null,null,null,null,3.46570727563086,3.5675477977674057,null,null,null,null,4.0135087337031363,null,null,null,null,4.1303394250859027,null,null,null,null,3.95843711530889,null,null,null,null,3.4874926189242079,null,null,null,null,null,25.902671359115672,26.054839303685476,null,null,null,null,25.929529482770317,null,null,null,null,25.133309460786734,null,null,null,null,24.532781634932782,null,null,null,null,24.289876146298891,null,null,null,null,null,null,null,null,null,null,null,null,null,null,null,null,null,null,null,null,null,null,null,null,null,null,null,null,null,null,null,null,null,null,null,null,null,null,null,null,null,null,null,null,null,null,null,null,null,null,null,null,null,null,null,null,null,null,null,null,null,null,null,null,null,null,null,null,null,null,null,null,null,null,null,null,null,null,null,null,null,null,null,null,null,null,null,null,null,null,null,null,null,null,null,null,null,null,null,null,null,null,null,null,null,null,null,null,null,null,null,null,null,91063.037466607275,91981.849642739151,null,null,null,null,90350.59684827106,null,null,null,null,82339.314970974388,null,null,null,null,78673.065158539306,null,null,null,null,73171.290208304737,null,null,null,null,null,55523.726999999999,56076.906504988139,null,null,null,null,50899.809227675622,null,null,null,null,44088.881112744581,null,null,null,null,44243.535008121835,null,null,null,null,41969.591174968831,null,null,null,null,null,35532.224583811789,35894.631129251007,null,null,null,null,39441.887011455452,null,null,null,null,38241.482589089814,null,null,null,null,34420.528221277469,null,null,null,null,31192.656576195914]
["    1.A.1. Energy industries","WEM",52892.464168039092,53442.651399999995,null,null,null,null,50533.2408,null,null,null,null,43638.440900000001,null,null,null,null,41964.299799999993,null,null,null,null,39557.646899999992,null,null,null,null,null,0.7824284579288,0.76950622000000002,null,null,null,null,0.78081927000000018,null,null,null,null,0.6969139000000002,null,null,null,null,0.70806474000000019,null,null,null,null,0.6957913200000001,null,null,null,null,null,1.0191093865795999,1.1394721800000003,null,null,null,null,1.4332832700000002,null,null,null,null,1.4921978299999998,null,null,null,null,1.8087085599999999,null,null,null,null,1.9051551899999999,null,null,null,null,null,null,null,null,null,null,null,null,null,null,null,null,null,null,null,null,null,null,null,null,null,null,null,null,null,null,null,null,null,null,null,null,null,null,null,null,null,null,null,null,null,null,null,null,null,null,null,null,null,null,null,null,null,null,null,null,null,null,null,null,null,null,null,null,null,null,null,null,null,null,null,null,null,null,null,null,null,null,null,null,null,null,null,null,null,null,null,null,null,null,null,null,null,null,null,null,null,null,null,null,null,null,null,null,null,null,null,null,null,53151.105583166369,53700.451058059996,null,null,null,null,50801.757024209997,null,null,null,null,43883.426187949997,null,null,null,null,42220.520806519991,null,null,null,null,39812.621593109994,null,null,null,null,null,50584.981999999996,51126.54029607265,null,null,null,null,46104.476425714405,null,null,null,null,39477.985505056393,null,null,null,null,38850.838683527232,null,null,null,null,36600.702119040921,null,null,null,null,null,2566.1235831663726,2573.9107619873466,null,null,null,null,4697.2805984955867,null,null,null,null,4405.440682893608,null,null,null,null,3369.6821229927609,null,null,null,null,3211.9194740690732]
["       1.A.1.a. Public electricity and heat production","WEM",46474.66478081276,47018.451399999998,null,null,null,null,44246.070800000001,null,null,null,null,37521.7909,null,null,null,null,35814.149799999999,null,null,null,null,33549.956899999997,null,null,null,null,null,0.72217007113502996,0.70917622000000002,null,null,null,null,0.72180927000000017,null,null,null,null,0.63941390000000009,null,null,null,null,0.6502447400000001,null,null,null,null,0.6393913200000001,null,null,null,null,null,0.93902483745888998,1.0587621800000002,null,null,null,null,1.3540232700000001,null,null,null,null,1.41578783,null,null,null,null,1.73194856,null,null,null,null,1.82962519,null,null,null,null,null,null,null,null,null,null,null,null,null,null,null,null,null,null,null,null,null,null,null,null,null,null,null,null,null,null,null,null,null,null,null,null,null,null,null,null,null,null,null,null,null,null,null,null,null,null,null,null,null,null,null,null,null,null,null,null,null,null,null,null,null,null,null,null,null,null,null,null,null,null,null,null,null,null,null,null,null,null,null,null,null,null,null,null,null,null,null,null,null,null,null,null,null,null,null,null,null,null,null,null,null,null,null,null,null,null,null,null,null,46713.347082947468,47256.254968059999,null,null,null,null,44495.020544209998,null,null,null,null,37747.73093795,null,null,null,null,36051.221446519994,null,null,null,null,33786.236143109993,null,null,null,null,null,46201.95,46727.424746730649,null,null,null,null,43066.255422680806,null,null,null,null,36535.625836719089,null,null,null,null,35493.59240935315,null,null,null,null,33301.337311766358,null,null,null,null,null,511.39708294747106,528.83022132935002,null,null,null,null,1428.7651215291917,null,null,null,null,1212.1051012309108,null,null,null,null,557.62903716684377,null,null,null,null,484.89883134363481]
["           1.A.1.b. Petroleum refining","WEM",805.72253438339817,851.85,null,null,null,null,851.85,null,null,null,null,781.81,null,null,null,null,781.81,null,null,null,null,800.74,null,null,null,null,null,6.15262263126E-3,6.5300000000000002E-3,null,null,null,null,6.5300000000000002E-3,null,null,null,null,5.9900000000000005E-3,null,null,null,null,5.9900000000000005E-3,null,null,null,null,6.13E-3,null,null,null,null,null,2.0605461312609999E-2,2.1600000000000001E-2,null,null,null,null,2.1600000000000001E-2,null,null,null,null,1.9820000000000001E-2,null,null,null,null,1.9820000000000001E-2,null,null,null,null,2.0300000000000002E-2,null,null,null,null,null,null,null,null,null,null,null,null,null,null,null,null,null,null,null,null,null,null,null,null,null,null,null,null,null,null,null,null,null,null,null,null,null,null,null,null,null,null,null,null,null,null,null,null,null,null,null,null,null,null,null,null,null,null,null,null,null,null,null,null,null,null,null,null,null,null,null,null,null,null,null,null,null,null,null,null,null,null,null,null,null,null,null,null,null,null,null,null,null,null,null,null,null,null,null,null,null,null,null,null,null,null,null,null,null,null,null,null,null,808.0711524603289,854.33593999999994,null,null,null,null,854.33593999999994,null,null,null,null,784.09051999999997,null,null,null,null,784.09051999999997,null,null,null,null,803.07424000000003,null,null,null,null,null,689.08299999999997,722.80998029777766,null,null,null,null,622.80998029777766,null,null,null,null,571.60114475913804,null,null,null,null,571.60114475913804,null,null,null,null,585.44025619717331,null,null,null,null,null,118.98815246032893,131.52595970222228,null,null,null,null,231.52595970222228,null,null,null,null,212.48937524086193,null,null,null,null,212.48937524086193,null,null,null,null,217.63398380282672]
["           1.A.1.c. Manufacture of solid fuels and other energy industries","WEM",5612.0768528429344,5572.35,null,null,null,null,5435.32,null,null,null,null,5334.84,null,null,null,null,5368.34,null,null,null,null,5206.95,null,null,null,null,null,5.4105764162509999E-2,5.3800000000000001E-2,null,null,null,null,5.2479999999999999E-2,null,null,null,null,5.151E-2,null,null,null,null,5.1830000000000001E-2,null,null,null,null,5.0270000000000002E-2,null,null,null,null,null,5.9479087808099997E-2,5.9110000000000003E-2,null,null,null,null,5.7659999999999996E-2,null,null,null,null,5.6590000000000001E-2,null,null,null,null,5.6939999999999998E-2,null,null,null,null,5.5229999999999994E-2,null,null,null,null,null,null,null,null,null,null,null,null,null,null,null,null,null,null,null,null,null,null,null,null,null,null,null,null,null,null,null,null,null,null,null,null,null,null,null,null,null,null,null,null,null,null,null,null,null,null,null,null,null,null,null,null,null,null,null,null,null,null,null,null,null,null,null,null,null,null,null,null,null,null,null,null,null,null,null,null,null,null,null,null,null,null,null,null,null,null,null,null,null,null,null,null,null,null,null,null,null,null,null,null,null,null,null,null,null,null,null,null,null,5629.687347758565,5589.8601500000004,null,null,null,null,5452.4005399999996,null,null,null,null,5351.60473,null,null,null,null,5385.2088400000002,null,null,null,null,5223.3112099999998,null,null,null,null,null,3693.9490000000001,3676.3055690442256,null,null,null,null,2415.4110227358269,null,null,null,null,2370.7585235781648,null,null,null,null,2785.6451294149451,null,null,null,null,2713.9245510773881,null,null,null,null,null,1935.7383477585649,1913.5545809557748,null,null,null,null,3036.9895172641727,null,null,null,null,2980.8462064218352,null,null,null,null,2599.5637105850551,null,null,null,null,2509.3866589226118]
["   1.A.2. Manufacturing industries and construction ","WEM",9953.0458588679703,9978.7371999999996,null,null,null,null,9665.6121999999996,null,null,null,null,9292.9174000000003,null,null,null,null,9862.7238000000016,null,null,null,null,9813.8848000000016,null,null,null,null,null,0.17463061838714,0.16858000000000001,null,null,null,null,0.16455,null,null,null,null,0.16013000000000002,null,null,null,null,0.16612000000000002,null,null,null,null,0.16703000000000001,null,null,null,null,null,1.3086246080927699,1.2978799999999999,null,null,null,null,1.26695,null,null,null,null,1.2329799999999997,null,null,null,null,1.2792699999999997,null,null,null,null,1.2864899999999997,null,null,null,null,null,null,null,null,null,null,null,null,null,null,null,null,null,null,null,null,null,null,null,null,null,null,null,null,null,null,null,null,null,null,null,null,null,null,null,null,null,null,null,null,null,null,null,null,null,null,null,null,null,null,null,null,null,null,null,null,null,null,null,null,null,null,null,null,null,null,null,null,null,null,null,null,null,null,null,null,null,null,null,null,null,null,null,null,null,null,null,null,null,null,null,null,null,null,null,null,null,null,null,null,null,null,null,null,null,null,null,null,null,10037.801398349658,10061.421039999999,null,null,null,null,9746.3218500000003,null,null,null,null,9371.4606400000011,null,null,null,null,9944.209310000002,null,null,null,null,9895.8219900000004,null,null,null,null,null,4938.7449999999999,4950.3662089154896,null,null,null,null,4795.3328019612127,null,null,null,null,4610.8956076881896,null,null,null,null,5392.6963245946044,null,null,null,null,5368.8890559279125,null,null,null,null,null,5099.0563983496586,5111.0548310845097,null,null,null,null,4950.9890480387876,null,null,null,null,4760.5650323118116,null,null,null,null,4551.5129854053976,null,null,null,null,4526.9329340720878]
["   1.A.3. Transport","WEM",16491.193937786218,16375.360816412331,null,null,null,null,17745.663150282762,null,null,null,null,17205.998168316677,null,null,null,null,15084.791636508748,null,null,null,null,12148.376095643764,null,null,null,null,null,2.1549123188144299,2.2404015777674058,null,null,null,null,2.6511194637031368,null,null,null,null,2.8380655250859022,null,null,null,null,2.65211237530889,null,null,null,null,2.206651298924208,null,null,null,null,null,0.95092892529947004,0.89336712368547755,null,null,null,null,0.60949621277031885,null,null,null,null,0.42392163078673184,null,null,null,null,0.31798307493277933,null,null,null,null,0.24076095629889382,null,null,null,null,null,null,null,null,null,null,null,null,null,null,null,null,null,null,null,null,null,null,null,null,null,null,null,null,null,null,null,null,null,null,null,null,null,null,null,null,null,null,null,null,null,null,null,null,null,null,null,null,null,null,null,null,null,null,null,null,null,null,null,null,null,null,null,null,null,null,null,null,null,null,null,null,null,null,null,null,null,null,null,null,null,null,null,null,null,null,null,null,null,null,null,null,null,null,null,null,null,null,null,null,null,null,null,null,null,null,null,null,null,17157.131031925408,17065.334664679154,null,null,null,null,18550.934155785555,null,null,null,null,18062.339735561945,null,null,null,null,15883.070701224116,null,null,null,null,12811.97720663065,null,null,null,null,null,null,null,null,null,null,null,null,null,null,null,null,null,null,null,null,null,null,null,null,null,null,null,null,null,null,null,null,17150.045149129925,17055.022656179153,null,null,null,null,18542.033546645554,null,null,null,null,18053.388466421944,null,null,null,null,15874.068772084116,null,null,null,null,12802.934749490651]
["      1.A.3.a. Domestic aviation","WEM",7.0206,10.2345285,null,null,null,null,8.776641140001777,null,null,null,null,8.7766411400025319,null,null,null,null,8.7766411399996507,null,null,null,null,8.7766411400004039,null,null,null,null,null,2.1457864343E-4,2.5999999999999998E-4,null,null,null,null,4.1599999999999997E-4,null,null,null,null,5.8600000000000004E-4,null,null,null,null,7.5600000000000005E-4,null,null,null,null,8.92E-4,null,null,null,null,null,5.3534389480000002E-5,0,null,null,null,null,0,null,null,null,null,0,null,null,null,null,0,null,null,null,null,0,null,null,null,null,null,null,null,null,null,null,null,null,null,null,null,null,null,null,null,null,null,null,null,null,null,null,null,null,null,null,null,null,null,null,null,null,null,null,null,null,null,null,null,null,null,null,null,null,null,null,null,null,null,null,null,null,null,null,null,null,null,null,null,null,null,null,null,null,null,null,null,null,null,null,null,null,null,null,null,null,null,null,null,null,null,null,null,null,null,null,null,null,null,null,null,null,null,null,null,null,null,null,null,null,null,null,null,null,null,null,null,null,null,7.0858827954791401,10.312008499999999,null,null,null,null,8.9006091400017766,null,null,null,null,8.9512691400025322,null,null,null,null,9.0019291399996515,null,null,null,null,9.042457140000403]
["      1.A.3.b. Road transportation","WEM",16117.126133454001,16004.411759777789,null,null,null,null,17375.06151540182,null,null,null,null,16836.305758390354,null,null,null,null,14716.631185804359,null,null,null,null,11781.254883909865,null,null,null,null,null,2.0486193903999999,2.1376003600861471,null,null,null,null,2.5571450499625716,null,null,null,null,2.7530900226680011,null,null,null,null,2.5761369278648858,null,null,null,null,2.1378760015402052,null,null,null,null,null,0.93312762540000005,0.87586880456670757,null,null,null,null,0.5934607606183675,null,null,null,null,0.40921906338469283,null,null,null,null,0.30461591159391854,null,null,null,null,0.22870462552583418,null,null,null,null,null,null,null,null,null,null,null,null,null,null,null,null,null,null,null,null,null,null,null,null,null,null,null,null,null,null,null,null,null,null,null,null,null,null,null,null,null,null,null,null,null,null,null,null,null,null,null,null,null,null,null,null,null,null,null,null,null,null,null,null,null,null,null,null,null,null,null,null,null,null,null,null,null,null,null,null,null,null,null,null,null,null,null,null,null,null,null,null,null,null,null,null,null,null,null,null,null,null,null,null,null,null,null,null,null,null,null,null,null,16750.9429024282,16663.313387197628,null,null,null,null,18151.927259306125,null,null,null,null,17666.957061730034,null,null,null,null,15491.935388097943,null,null,null,null,12424.059548006993,null,null,null,null,null,null,null,null,null,null,null,null,null,null,null,null,null,null,null,null,null,null,null,null,null,null,null,null,null,null,null,null,16750.9429024282,16663.313387197628,null,null,null,null,18151.927259306125,null,null,null,null,17666.957061730034,null,null,null,null,15491.935388097943,null,null,null,null,12424.059548006993]
["      1.A.3.c. Railways","WEM",273.77964120000001,264.41000000000003,null,null,null,null,249.22800000000001,null,null,null,null,232.113,null,null,null,null,214.99799999999999,null,null,null,null,197.88300000000001,null,null,null,null,null,0.10566933520000001,0.10205,null,null,null,null,9.3120999999999995E-2,null,null,null,null,8.3956000000000003E-2,null,null,null,null,7.4790999999999996E-2,null,null,null,null,6.7459000000000005E-2,null,null,null,null,null,1.53331378E-2,1.481E-2,null,null,null,null,1.3517E-2,null,null,null,null,1.2192E-2,null,null,null,null,1.0867E-2,null,null,null,null,9.5420000000000105E-3,null,null,null,null,null,null,null,null,null,null,null,null,null,null,null,null,null,null,null,null,null,null,null,null,null,null,null,null,null,null,null,null,null,null,null,null,null,null,null,null,null,null,null,null,null,null,null,null,null,null,null,null,null,null,null,null,null,null,null,null,null,null,null,null,null,null,null,null,null,null,null,null,null,null,null,null,null,null,null,null,null,null,null,null,null,null,null,null,null,null,null,null,null,null,null,null,null,null,null,null,null,null,null,null,null,null,null,null,null,null,null,null,null,305.65243153460005,295.19115000000005,null,null,null,null,277.31598300000002,null,null,null,null,257.436688,null,null,null,null,237.55739299999996,null,null,null,null,218.224332,null,null,null,null,null,null,null,null,null,null,null,null,null,null,null,null,null,null,null,null,null,null,null,null,null,null,null,null,null,null,null,null,305.65243153460005,295.19115000000005,null,null,null,null,277.31598300000002,null,null,null,null,257.436688,null,null,null,null,237.55739299999996,null,null,null,null,218.224332]
["          1.A.3.d. Domestic navigation","WEM",9.5504525999999998,12.74,null,null,null,null,28.6666666666667,null,null,null,null,44.591666666666697,null,null,null,null,60.516666666666701,null,null,null,null,76.441666666666706,null,null,null,null,null,2.5777200000000002E-4,3.4000000000000002E-4,null,null,null,null,2.8499999999999999E-4,null,null,null,null,2.7999999999999998E-4,null,null,null,null,2.7500000000000002E-4,null,null,null,null,2.7099999999999997E-4,null,null,null,null,null,9.0220199999999995E-4,1.1999999999999999E-3,null,null,null,null,1.0200000000000001E-3,null,null,null,null,1.0200000000000001E-3,null,null,null,null,1.0200000000000001E-3,null,null,null,null,1.0200000000000001E-3,null,null,null,null,null,null,null,null,null,null,null,null,null,null,null,null,null,null,null,null,null,null,null,null,null,null,null,null,null,null,null,null,null,null,null,null,null,null,null,null,null,null,null,null,null,null,null,null,null,null,null,null,null,null,null,null,null,null,null,null,null,null,null,null,null,null,null,null,null,null,null,null,null,null,null,null,null,null,null,null,null,null,null,null,null,null,null,null,null,null,null,null,null,null,null,null,null,null,null,null,null,null,null,null,null,null,null,null,null,null,null,null,null,9.6498237059999994,12.871319999999999,null,null,null,null,28.777096666666701,null,null,null,null,44.700606666666701,null,null,null,null,60.624116666666701,null,null,null,null,76.547924666666702,null,null,null,null,null,null,null,null,null,null,null,null,null,null,null,null,null,null,null,null,null,null,null,null,null,null,null,null,null,null,null,null,9.6498237059999994,12.871319999999999,null,null,null,null,28.777096666666701,null,null,null,null,44.700606666666701,null,null,null,null,60.624116666666701,null,null,null,null,76.547924666666702]
["      1.A.3.e. Other transportation","WEM",83.717110532216211,83.56452813454321,null,null,null,null,83.930327074276192,null,null,null,null,84.211102119655408,null,null,null,null,83.869142897724359,null,null,null,null,84.019903927230644,null,null,null,null,null,1.5124257099999999E-4,1.5121768125872845E-4,null,null,null,null,1.5241374056544223E-4,null,null,null,null,1.535024179007343E-4,null,null,null,null,1.5344744400447205E-4,null,null,null,null,1.5329738400283175E-4,null,null,null,null,null,1.5124257099899999E-3,1.4883191187700161E-3,null,null,null,null,1.4984521519513577E-3,null,null,null,null,1.4905674020390222E-3,null,null,null,null,1.4801633388607288E-3,null,null,null,null,1.4943307730596292E-3,null,null,null,null,null,null,null,null,null,null,null,null,null,null,null,null,null,null,null,null,null,null,null,null,null,null,null,null,null,null,null,null,null,null,null,null,null,null,null,null,null,null,null,null,null,null,null,null,null,null,null,null,null,null,null,null,null,null,null,null,null,null,null,null,null,null,null,null,null,null,null,null,null,null,null,null,null,null,null,null,null,null,null,null,null,null,null,null,null,null,null,null,null,null,null,null,null,null,null,null,null,null,null,null,null,null,null,null,null,null,null,null,null,83.799991461123952,83.646798981527553,null,null,null,null,84.013207672763471,null,null,null,null,84.294110025240798,null,null,null,null,83.951874319509201,null,null,null,null,84.102944816989975,null,null,null,null,null,null,null,null,null,null,null,null,null,null,null,null,null,null,null,null,null,null,null,null,null,null,null,null,null,null,null,null,83.799991461123952,83.646798981527553,null,null,null,null,84.013207672763471,null,null,null,null,84.294110025240798,null,null,null,null,83.951874319509201,null,null,null,null,84.102944816989975]
["  1.A.4. Other sectors","WEM",9714.4085951980942,10100.879999999999,null,null,null,null,10138.316858275521,null,null,null,null,9889.5746174624473,null,null,null,null,9494.0861207951966,null,null,null,null,9514.2127085640986,null,null,null,null,null,0.32095453036454002,0.35557,null,null,null,null,0.37865000000000004,null,null,null,null,0.39417000000000008,null,null,null,null,0.38918000000000003,null,null,null,null,0.37357000000000007,null,null,null,null,null,22.589944218559211,22.690629999999999,null,null,null,null,22.581429999999997,null,null,null,null,21.943149999999999,null,null,null,null,21.083860000000001,null,null,null,null,20.813019999999998,null,null,null,null,null,null,null,null,null,null,null,null,null,null,null,null,null,null,null,null,null,null,null,null,null,null,null,null,null,null,null,null,null,null,null,null,null,null,null,null,null,null,null,null,null,null,null,null,null,null,null,null,null,null,null,null,null,null,null,null,null,null,null,null,null,null,null,null,null,null,null,null,null,null,null,null,null,null,null,null,null,null,null,null,null,null,null,null,null,null,null,null,null,null,null,null,null,null,null,null,null,null,null,null,null,null,null,null,null,null,null,null,null,10374.801650710708,10774.105609999999,null,null,null,null,10815.69030827552,null,null,null,null,10555.616027462445,null,null,null,null,10137.158260795195,null,null,null,null,10145.862068564098,null,null,null,null,null,null,null,null,null,null,null,null,null,null,null,null,null,null,null,null,null,null,null,null,null,null,null,null,null,null,null,null,10374.801650710708,10774.105609999999,null,null,null,null,10815.69030827552,null,null,null,null,10555.616027462445,null,null,null,null,10137.158260795195,null,null,null,null,10145.862068564098]
["      1.A.4.a. Commercial/Institutional","WEM",2537.8613316074484,2554.58,null,null,null,null,2836.43,null,null,null,null,2957.65,null,null,null,null,3036.34,null,null,null,null,3092.4199999999996,null,null,null,null,null,7.8086568048999997E-3,7.0000000000000001E-3,null,null,null,null,7.8499999999999993E-3,null,null,null,null,8.2400000000000008E-3,null,null,null,null,8.5000000000000006E-3,null,null,null,null,8.6800000000000002E-3,null,null,null,null,null,0.39220456024514999,0.40391000000000005,null,null,null,null,0.5706,null,null,null,null,0.55032999999999987,null,null,null,null,0.56781999999999999,null,null,null,null,0.54837000000000002,null,null,null,null,null,null,null,null,null,null,null,null,null,null,null,null,null,null,null,null,null,null,null,null,null,null,null,null,null,null,null,null,null,null,null,null,null,null,null,null,null,null,null,null,null,null,null,null,null,null,null,null,null,null,null,null,null,null,null,null,null,null,null,null,null,null,null,null,null,null,null,null,null,null,null,null,null,null,null,null,null,null,null,null,null,null,null,null,null,null,null,null,null,null,null,null,null,null,null,null,null,null,null,null,null,null,null,null,null,null,null,null,null,2549.9934253414376,2566.7637499999996,null,null,null,null,2853.0342999999998,null,null,null,null,2973.8637699999999,null,null,null,null,3053.0684999999999,null,null,null,null,3108.7158899999995,null,null,null,null,null,null,null,null,null,null,null,null,null,null,null,null,null,null,null,null,null,null,null,null,null,null,null,null,null,null,null,null,2549.9934253414376,2566.7637499999996,null,null,null,null,2853.0342999999998,null,null,null,null,2973.8637699999999,null,null,null,null,3053.0684999999999,null,null,null,null,3108.7158899999995]
["          1.A.4.b. Residential      ","WEM",5953.8266723819261,5885.38,null,null,null,null,5606.8168582755206,null,null,null,null,5311.3846174624459,null,null,null,null,4917.4861207951963,null,null,null,null,4970.2127085640996,null,null,null,null,null,0.23650816008313,0.24,null,null,null,null,0.26,null,null,null,null,0.28000000000000003,null,null,null,null,0.28000000000000003,null,null,null,null,0.27,null,null,null,null,null,21.87777247415633,21.852439999999998,null,null,null,null,21.567619999999998,null,null,null,null,20.969100000000001,null,null,null,null,20.113309999999998,null,null,null,null,19.885110000000001,null,null,null,null,null,null,null,null,null,null,null,null,null,null,null,null,null,null,null,null,null,null,null,null,null,null,null,null,null,null,null,null,null,null,null,null,null,null,null,null,null,null,null,null,null,null,null,null,null,null,null,null,null,null,null,null,null,null,null,null,null,null,null,null,null,null,null,null,null,null,null,null,null,null,null,null,null,null,null,null,null,null,null,null,null,null,null,null,null,null,null,null,null,null,null,null,null,null,null,null,null,null,null,null,null,null,null,null,null,null,null,null,null,6571.2504159406071,6503.2110000000002,null,null,null,null,6223.4873582755199,null,null,null,null,5919.0521174624455,null,null,null,null,5503.7588707951954,null,null,null,null,5547.8004585640992,null,null,null,null,null,null,null,null,null,null,null,null,null,null,null,null,null,null,null,null,null,null,null,null,null,null,null,null,null,null,null,null,6571.2504159406071,6503.2110000000002,null,null,null,null,6223.4873582755199,null,null,null,null,5919.0521174624455,null,null,null,null,5503.7588707951954,null,null,null,null,5547.8004585640992]
["              1.A.4.c. Agriculture/Forestry/Fishing","WEM",1222.7205912087202,1660.92,null,null,null,null,1695.07,null,null,null,null,1620.54,null,null,null,null,1540.26,null,null,null,null,1451.58,null,null,null,null,null,7.6637713476509994E-2,0.10857,null,null,null,null,0.1108,null,null,null,null,0.10593000000000001,null,null,null,null,0.10068000000000001,null,null,null,null,9.4890000000000002E-2,null,null,null,null,null,0.31996718415773001,0.43428,null,null,null,null,0.44320999999999999,null,null,null,null,0.42372000000000004,null,null,null,null,0.40273000000000003,null,null,null,null,0.37954000000000004,null,null,null,null,null,null,null,null,null,null,null,null,null,null,null,null,null,null,null,null,null,null,null,null,null,null,null,null,null,null,null,null,null,null,null,null,null,null,null,null,null,null,null,null,null,null,null,null,null,null,null,null,null,null,null,null,null,null,null,null,null,null,null,null,null,null,null,null,null,null,null,null,null,null,null,null,null,null,null,null,null,null,null,null,null,null,null,null,null,null,null,null,null,null,null,null,null,null,null,null,null,null,null,null,null,null,null,null,null,null,null,null,null,1253.5578094286634,1704.13086,null,null,null,null,1739.1686499999998,null,null,null,null,1662.7001400000001,null,null,null,null,1580.33089,null,null,null,null,1489.3457199999998,null,null,null,null,null,null,null,null,null,null,null,null,null,null,null,null,null,null,null,null,null,null,null,null,null,null,null,null,null,null,null,null,1253.5578094286634,1704.13086,null,null,null,null,1739.1686499999998,null,null,null,null,1662.7001400000001,null,null,null,null,1580.33089,null,null,null,null,1489.3457199999998]
["      1.A.5. Other","WEM",331.57735460000009,369.72,null,null,null,null,423.5,null,null,null,null,453.21,null,null,null,null,474.23,null,null,null,null,490.65,null,null,null,null,null,3.2781350135950002E-2,3.3489999999999999E-2,null,null,null,null,3.8369999999999994E-2,null,null,null,null,4.1059999999999999E-2,null,null,null,null,4.2959999999999998E-2,null,null,null,null,4.4450000000000003E-2,null,null,null,null,null,3.4064220584619997E-2,3.3489999999999999E-2,null,null,null,null,3.8369999999999994E-2,null,null,null,null,4.1059999999999999E-2,null,null,null,null,4.2959999999999998E-2,null,null,null,null,4.4450000000000003E-2,null,null,null,null,null,null,null,null,null,null,null,null,null,null,null,null,null,null,null,null,null,null,null,null,null,null,null,null,null,null,null,null,null,null,null,null,null,null,null,null,null,null,null,null,null,null,null,null,null,null,null,null,null,null,null,null,null,null,null,null,null,null,null,null,null,null,null,null,null,null,null,null,null,null,null,null,null,null,null,null,null,null,null,null,null,null,null,null,null,null,null,null,null,null,null,null,null,null,null,null,null,null,null,null,null,null,null,null,null,null,null,null,null,342.19780245512874,380.53727000000003,null,null,null,null,435.89350999999999,null,null,null,null,466.47237999999999,null,null,null,null,488.10608000000002,null,null,null,null,505.00734999999997,null,null,null,null,null,null,null,null,null,null,null,null,null,null,null,null,null,null,null,null,null,null,null,null,null,null,null,null,null,null,null,null,342.19780245512874,380.53727000000003,null,null,null,null,435.89350999999999,null,null,null,null,466.47237999999999,null,null,null,null,488.10608000000002,null,null,null,null,505.00734999999997]
["   1.B. Fugitive emissions from fuels","WEM",203.13185402431742,201.05,null,null,null,null,184.63,null,null,null,null,160.51,null,null,null,null,155.43,null,null,null,null,123.04,null,null,null,null,null,9.2922077920000004E-5,9.86362895363164E-5,null,null,null,null,1.2027856605522544E-4,null,null,null,null,9.6476738999442033E-5,null,null,null,null,9.9535183496980362E-5,null,null,null,null,1.0431287230483541E-4,null,null,null,null,null,150.39300589749669,151.88999999999999,null,null,null,null,146.63,null,null,null,null,125.53,null,null,null,null,123.03,null,null,null,null,103.52,null,null,null,null,null,null,null,null,null,null,null,null,null,null,null,null,null,null,null,null,null,null,null,null,null,null,null,null,null,null,null,null,null,null,null,null,null,null,null,null,null,null,null,null,null,null,null,null,null,null,null,null,null,null,null,null,null,null,null,null,null,null,null,null,null,null,null,null,null,null,null,null,null,null,null,null,null,null,null,null,null,null,null,null,null,null,null,null,null,null,null,null,null,null,null,null,null,null,null,null,null,null,null,null,null,null,null,null,null,null,null,null,null,3962.9846922409552,3998.3293936142813,null,null,null,null,3850.4158430126845,null,null,null,null,3298.7887500682218,null,null,null,null,3231.2096614846823,null,null,null,null,2711.0710852359471,null,null,null,null,null,null,null,null,null,null,null,null,null,null,null,null,null,null,null,null,null,null,null,null,null,null,null,null,null,null,null,null,3962.9846922409552,3998.3293936142813,null,null,null,null,3850.4158430126845,null,null,null,null,3298.7887500682218,null,null,null,null,3231.2096614846823,null,null,null,null,2711.0710852359471]
["          1.B.1. Solid fuels","WEM",196.82767999999999,194.33,null,null,null,null,176.44,null,null,null,null,153.94,null,null,null,null,148.65,null,null,null,null,115.93,null,null,null,null,null,"NA",null,null,null,null,null,null,null,null,null,null,null,null,null,null,null,null,null,null,null,null,null,null,null,null,null,null,125.37375202841476,123.89,null,null,null,null,112.49,null,null,null,null,98.14,null,null,null,null,94.77,null,null,null,null,73.91,null,null,null,null,null,null,null,null,null,null,null,null,null,null,null,null,null,null,null,null,null,null,null,null,null,null,null,null,null,null,null,null,null,null,null,null,null,null,null,null,null,null,null,null,null,null,null,null,null,null,null,null,null,null,null,null,null,null,null,null,null,null,null,null,null,null,null,null,null,null,null,null,null,null,null,null,null,null,null,null,null,null,null,null,null,null,null,null,null,null,null,null,null,null,null,null,null,null,null,null,null,null,null,null,null,null,null,null,null,null,null,null,null,3331.171480710369,3291.58,null,null,null,null,2988.69,null,null,null,null,2607.44,null,null,null,null,2517.9,null,null,null,null,1963.68,null,null,null,null,null,null,null,null,null,null,null,null,null,null,null,null,null,null,null,null,null,null,null,null,null,null,null,null,null,null,null,null,3331.171480710369,3291.58,null,null,null,null,2988.69,null,null,null,null,2607.44,null,null,null,null,2517.9,null,null,null,null,1963.68]
["          1.B.2. Oil and natural gas and other emissions from energy production","WEM",6.3041740243174296,6.72,null,null,null,null,8.19,null,null,null,null,6.57,null,null,null,null,6.78,null,null,null,null,7.11,null,null,null,null,null,9.2922077920000004E-5,9.86362895363164E-5,null,null,null,null,1.2027856605522544E-4,null,null,null,null,9.6476738999442033E-5,null,null,null,null,9.9535183496980362E-5,null,null,null,null,1.0431287230483541E-4,null,null,null,null,null,25.019253869081918,28,null,null,null,null,34.14,null,null,null,null,27.39,null,null,null,null,28.26,null,null,null,null,29.61,null,null,null,null,null,null,null,null,null,null,null,null,null,null,null,null,null,null,null,null,null,null,null,null,null,null,null,null,null,null,null,null,null,null,null,null,null,null,null,null,null,null,null,null,null,null,null,null,null,null,null,null,null,null,null,null,null,null,null,null,null,null,null,null,null,null,null,null,null,null,null,null,null,null,null,null,null,null,null,null,null,null,null,null,null,null,null,null,null,null,null,null,null,null,null,null,null,null,null,null,null,null,null,null,null,null,null,null,null,null,null,null,null,631.81321153058548,706.74939361428187,null,null,null,null,861.72584301268444,null,null,null,null,691.34875006822188,null,null,null,null,713.30966148468212,null,null,null,null,747.39108523594689,null,null,null,null,null,null,null,null,null,null,null,null,null,null,null,null,null,null,null,null,null,null,null,null,null,null,null,null,null,null,null,null,631.81321153058548,706.74939361428187,null,null,null,null,861.72584301268444,null,null,null,null,691.34875006822188,null,null,null,null,713.30966148468212,null,null,null,null,747.39108523594689]
["       1.C. CO2 transport and storage","WEM","NO"]
["2. Industrial processes","WEM",11229.505187654831,11222.742049333332,null,null,null,null,11195.012049333334,null,null,null,null,11138.802049333333,null,null,null,null,11082.532049333333,null,null,null,null,11029.182049333334,null,null,null,null,null,1.8577999999999999,1.8721300000000001,null,null,null,null,1.86731,null,null,null,null,1.8625,null,null,null,null,1.8569899999999999,null,null,null,null,1.8521800000000002,null,null,null,null,null,22.641452563312981,22.658139999999996,null,null,null,null,22.642969999999998,null,null,null,null,22.627939999999999,null,null,null,null,22.611629999999998,null,null,null,null,22.59675,null,null,null,null,null,2830.3822492779182,2898.8636373444883,null,null,null,null,2333.750686158905,null,null,null,null,1873.3360877055457,null,null,null,null,858.28873074565104,null,null,null,null,340.02386709943687,null,null,null,null,null,5.3419390210361497,6.2665841026495848,null,null,null,null,3.7677709294513426,null,null,null,null,3.547200000000001,null,null,null,null,3.547200000000001,null,null,null,null,3.547200000000001,null,null,null,null,null,96.014766107423995,88.67156785731629,null,null,null,null,105.51246993069348,null,null,null,null,95.652755627626306,null,null,null,null,104.26657917062694,null,null,null,null,93.439720368886285,null,null,null,null,null,2.3529599999999999,2.58,null,null,null,null,2.58,null,null,null,null,2.58,null,null,null,null,2.58,null,null,null,null,2.58,null,null,null,null,null,15283.261090036611,15343.472078637786,0,0,0,0,14763.155606352384,0,0,0,0,14234.641592666507,0,0,0,0,13169.888329249612,0,0,0,0,12585.641226801659,null,null,null,null,null,11171.5,11162.533003366032,0,0,0,0,9640.4146076812649,0,0,0,0,9599.4066515730046,0,0,0,0,10144.485808544605,0,0,0,0,10105.946993122685,null,null,null,null,0,4111.7610900366108,4180.9390752717536,null,null,null,null,5122.7409986711191,null,null,null,null,4635.2349410935021,null,null,null,null,3025.4025207050054,null,null,null,null,2479.6942336789707]
["   2.A. Mineral Industry ","WEM",2543.4782038190565,2549.19,null,null,null,null,2626.76,null,null,null,null,2673.74,null,null,null,null,2721.0299999999997,null,null,null,null,2768.3199999999997,null,null,null,null,null,null,null,null,null,null,null,null,null,null,null,null,null,null,null,null,null,null,null,null,null,null,null,null,null,null,null,null,null,null,null,null,null,null,null,null,null,null,null,null,null,null,null,null,null,null,null,null,null,null,null,null,null,null,null,"NO",null,null,null,null,null,null,null,null,null,null,null,null,null,null,null,null,null,null,null,null,null,null,null,null,null,null,"NO",null,null,null,null,null,null,null,null,null,null,null,null,null,null,null,null,null,null,null,null,null,null,null,null,null,null,"NO",null,null,null,null,null,null,null,null,null,null,null,null,null,null,null,null,null,null,null,null,null,null,null,null,null,null,"NO",null,null,null,null,null,null,null,null,null,null,null,null,null,null,null,null,null,null,null,null,null,null,null,null,null,null,2543.4782038190565,2549.19,null,null,null,null,2626.76,null,null,null,null,2673.74,null,null,null,null,2721.0299999999997,null,null,null,null,2768.3199999999997,null,null,null,null,null,2302.4,2307.8189528186172,0,0,0,0,2277.5261627655022,0,0,0,0,2326.4726635879406,0,0,0,0,2475.6295540746014,0,0,0,0,2524.7864445612627,null,null,null,null,null,241.0782038190564,241.37104718138289,null,null,null,null,349.23383723449763,null,null,null,null,347.26733641205942,null,null,null,null,245.40044592539846,null,null,null,null,243.53355543873738]
["         2.A. of which cement production","WEM",1482,1486.8,null,null,null,null,1539.9,null,null,null,null,1593,null,null,null,null,1646.1,null,null,null,null,1699.2,null,null,null,null,null,null,null,null,null,null,null,null,null,null,null,null,null,null,null,null,null,null,null,null,null,null,null,null,null,null,null,null,null,null,null,null,null,null,null,null,null,null,null,null,null,null,null,null,null,null,null,null,null,null,null,null,null,null,null,"NO",null,null,null,null,null,null,null,null,null,null,null,null,null,null,null,null,null,null,null,null,null,null,null,null,null,null,"NO",null,null,null,null,null,null,null,null,null,null,null,null,null,null,null,null,null,null,null,null,null,null,null,null,null,null,"NO",null,null,null,null,null,null,null,null,null,null,null,null,null,null,null,null,null,null,null,null,null,null,null,null,null,null,"NO",null,null,null,null,null,null,null,null,null,null,null,null,null,null,null,null,null,null,null,null,null,null,null,null,null,null,1482,1486.8,null,null,null,null,1539.9,null,null,null,null,1593,null,null,null,null,1646.1,null,null,null,null,1699.2,null,null,null,null,null,1482,1486.8,null,null,null,null,1539.9,null,null,null,null,1593,null,null,null,null,1646.1,null,null,null,null,1699.2,null,null,null,null,null,0,0,null,null,null,null,0,null,null,null,null,0,null,null,null,null,0,null,null,null,null,0]
["         2.A. of which other non cement production","WEM",1061.4780000000001,1062.3900000000001,null,null,null,null,1086.8599999999999,null,null,null,null,1080.74,null,null,null,null,1074.93,null,null,null,null,1069.1199999999999,null,null,null,null,null,null,null,null,null,null,null,null,null,null,null,null,null,null,null,null,null,null,null,null,null,null,null,null,null,null,null,null,null,null,null,null,null,null,null,null,null,null,null,null,null,null,null,null,null,null,null,null,null,null,null,null,null,null,null,"NO",null,null,null,null,null,null,null,null,null,null,null,null,null,null,null,null,null,null,null,null,null,null,null,null,null,null,"NO",null,null,null,null,null,null,null,null,null,null,null,null,null,null,null,null,null,null,null,null,null,null,null,null,null,null,"NO",null,null,null,null,null,null,null,null,null,null,null,null,null,null,null,null,null,null,null,null,null,null,null,null,null,null,"NO",null,null,null,null,null,null,null,null,null,null,null,null,null,null,null,null,null,null,null,null,null,null,null,null,null,null,1061.4780000000001,1062.3900000000001,null,null,null,null,1086.8599999999999,null,null,null,null,1080.74,null,null,null,null,1074.93,null,null,null,null,1069.1199999999999,null,null,null,null,null,820.4,821.01895281861709,null,null,null,null,737.62616276550227,null,null,null,null,733.47266358794059,null,null,null,null,829.52955407460161,null,null,null,null,825.58644456126251,null,null,null,null,null,241.07800000000009,241.37104718138301,null,null,null,null,349.23383723449763,null,null,null,null,347.26733641205942,null,null,null,null,245.40044592539846,null,null,null,null,243.53355543873738]
["   2.B. Chemical industry","WEM",1989.495374669332,2011.02,null,null,null,null,2002.39,null,null,null,null,1993.76,null,null,null,null,1983.9,null,null,null,null,1975.27,null,null,null,null,null,1.1077999999999999,1.1221300000000001,null,null,null,null,1.11731,null,null,null,null,1.1125,null,null,null,null,1.1069899999999999,null,null,null,null,1.1021800000000002,null,null,null,null,null,2.1288909433129799,2.1529199999999999,null,null,null,null,2.1436799999999998,null,null,null,null,2.1344400000000001,null,null,null,null,2.1238800000000002,null,null,null,null,2.1146400000000001,null,null,null,null,null,"NO",null,null,null,null,null,null,null,null,null,null,null,null,null,null,null,null,null,null,null,null,null,null,null,null,null,null,"NO",null,null,null,null,null,null,null,null,null,null,null,null,null,null,null,null,null,null,null,null,null,null,null,null,null,null,"NO",null,null,null,null,null,null,null,null,null,null,null,null,null,null,null,null,null,null,null,null,null,null,null,null,null,null,"NO",null,null,null,null,null,null,null,null,null,null,null,null,null,null,null,null,null,null,null,null,null,null,null,null,null,null,2372.8420482521565,2399.23774,null,null,null,null,2388.9403800000005,null,null,null,null,2378.6459999999997,null,null,null,null,2366.8800200000001,null,null,null,null,2356.5856400000002,null,null,null,null,null,2126.6999999999998,2142.5707291302379,null,null,null,null,1436.3793168013722,null,null,null,null,1430.1896962335725,null,null,null,null,1623.1152583550106,null,null,null,null,1616.9256377872116,null,null,null,null,null,246.14204825215666,256.66701086976218,null,null,null,null,952.56106319862829,null,null,null,null,948.45630376642725,null,null,null,null,743.76476164498945,null,null,null,null,739.66000221278864]
["   2.C. Metal industry","WEM",6579.8895598331092,6545.8899999999994,null,null,null,null,6449.22,null,null,null,null,6354.66,null,null,null,null,6260.96,null,null,null,null,6168.95,null,null,null,null,null,"NA",null,null,null,null,null,null,null,null,null,null,null,null,null,null,null,null,null,null,null,null,null,null,null,null,null,null,20.51256162,20.505219999999998,null,null,null,null,20.499289999999998,null,null,null,null,20.493499999999997,null,null,null,null,20.487749999999998,null,null,null,null,20.482109999999999,null,null,null,null,null,"NO",null,null,null,null,null,null,null,null,null,null,null,null,null,null,null,null,null,null,null,null,null,null,null,null,null,null,"NO",null,null,null,null,null,null,null,null,null,null,null,null,null,null,null,null,null,null,null,null,null,null,null,null,null,null,"NO",null,null,null,null,null,null,null,null,null,null,null,null,null,null,null,null,null,null,null,null,null,null,null,null,null,null,"NO",null,null,null,null,null,null,null,null,null,null,null,null,null,null,null,null,null,null,null,null,null,null,null,null,null,null,7092.7036003331095,7058.5204999999996,null,null,null,null,6961.7022500000003,null,null,null,null,6866.9974999999995,null,null,null,null,6773.1537499999995,null,null,null,null,6681.0027499999997,null,null,null,null,null,6742.4,6712.1433214171766,0,0,0,0,5926.5091281143896,0,0,0,0,5842.7442917514927,0,0,0,0,6045.7409961149933,0,0,0,0,5964.2349107742111,null,null,null,null,null,350.3036003331099,346.37717858282303,null,null,null,null,1035.1931218856109,null,null,null,null,1024.2532082485079,null,null,null,null,727.41275388500662,null,null,null,null,716.76783922578807]
["         2.C. of which Iron and steel production","WEM",6498.7856926131089,6464.73,null,null,null,null,6368.06,null,null,null,null,6273.5,null,null,null,null,6179.8,null,null,null,null,6087.79,null,null,null,null,null,null,null,null,null,null,null,null,null,null,null,null,null,null,null,null,null,null,null,null,null,null,null,null,null,null,null,null,0.40376161999999999,0.39641999999999999,null,null,null,null,0.39049,null,null,null,null,0.38469999999999999,null,null,null,null,0.37895000000000001,null,null,null,null,0.37330999999999998,null,null,null,null,null,"NO",null,null,null,null,null,null,null,null,null,null,null,null,null,null,null,null,null,null,null,null,null,null,null,null,null,null,"NO",null,null,null,null,null,null,null,null,null,null,null,null,null,null,null,null,null,null,null,null,null,null,null,null,null,null,"NO",null,null,null,null,null,null,null,null,null,null,null,null,null,null,null,null,null,null,null,null,null,null,null,null,null,null,"NO",null,null,null,null,null,null,null,null,null,null,null,null,null,null,null,null,null,null,null,null,null,null,null,null,null,null,6508.8797331131091,6474.6404999999995,null,null,null,null,6377.8222500000002,null,null,null,null,6283.1175000000003,null,null,null,null,6189.2737500000003,null,null,null,null,6097.1227499999995,null,null,null,null,null,6357,6326.7159460437761,null,null,null,null,5641.081752740989,null,null,null,null,5557.3169163780922,null,null,null,null,5674.3136207415937,null,null,null,null,5592.8075354008115,null,null,null,null,null,151.87973311310907,147.92455395622346,null,null,null,null,736.74049725901114,null,null,null,null,725.80058362190812,null,null,null,null,514.9601292584066,null,null,null,null,504.31521459918804]
["         2.C. of which other non Iron and steel production","WEM",81.103999999999999,81.16,null,null,null,null,81.16,null,null,null,null,81.16,null,null,null,null,81.16,null,null,null,null,81.16,null,null,null,null,null,null,null,null,null,null,null,null,null,null,null,null,null,null,null,null,null,null,null,null,null,null,null,null,null,null,null,null,20.108799999999999,20.108799999999999,null,null,null,null,20.108799999999999,null,null,null,null,20.108799999999999,null,null,null,null,20.108799999999999,null,null,null,null,20.108799999999999,null,null,null,null,null,"NO",null,null,null,null,null,null,null,null,null,null,null,null,null,null,null,null,null,null,null,null,null,null,null,null,null,null,"NO",null,null,null,null,null,null,null,null,null,null,null,null,null,null,null,null,null,null,null,null,null,null,null,null,null,null,"NO",null,null,null,null,null,null,null,null,null,null,null,null,null,null,null,null,null,null,null,null,null,null,null,null,null,null,"NO",null,null,null,null,null,null,null,null,null,null,null,null,null,null,null,null,null,null,null,null,null,null,null,null,null,null,583.82399999999996,583.88,null,null,null,null,583.88,null,null,null,null,583.88,null,null,null,null,583.88,null,null,null,null,583.88,null,null,null,null,null,385.4,385.4273753734002,null,null,null,null,285.4273753734002,null,null,null,null,285.4273753734002,null,null,null,null,371.42737537340003,null,null,null,null,371.42737537340003,null,null,null,null,null,198.42399999999998,198.4526246265998,null,null,null,null,298.4526246265998,null,null,null,null,298.4526246265998,null,null,null,null,212.4526246266,null,null,null,null,212.4526246266]
["       2.D. Non-energy products from fuels and solvent use","WEM",116.64204933333333,116.64204933333333,null,null,null,null,116.64204933333333,null,null,null,null,116.64204933333333,null,null,null,null,116.64204933333333,null,null,null,null,116.64204933333333,null,null,null,null,null,"NA",null,null,null,null,null,null,null,null,null,null,null,null,null,null,null,null,null,null,null,null,null,null,null,null,null,null,"NA",null,null,null,null,null,null,null,null,null,null,null,null,null,null,null,null,null,null,null,null,null,null,null,null,null,null,"NO",null,null,null,null,null,null,null,null,null,null,null,null,null,null,null,null,null,null,null,null,null,null,null,null,null,null,"NO",null,null,null,null,null,null,null,null,null,null,null,null,null,null,null,null,null,null,null,null,null,null,null,null,null,null,"NO",null,null,null,null,null,null,null,null,null,null,null,null,null,null,null,null,null,null,null,null,null,null,null,null,null,null,"NO",null,null,null,null,null,null,null,null,null,null,null,null,null,null,null,null,null,null,null,null,null,null,null,null,null,null,116.64204933333333,116.64204933333333,null,null,null,null,116.64204933333333,null,null,null,null,116.64204933333333,null,null,null,null,116.64204933333333,null,null,null,null,116.64204933333333,null,null,null,null,null,null,null,null,null,null,null,null,null,null,null,null,null,null,null,null,null,null,null,null,null,null,null,null,null,null,null,null,116.64204933333333,116.64204933333333,null,null,null,null,116.64204933333333,null,null,null,null,116.64204933333333,null,null,null,null,116.64204933333333,null,null,null,null,116.64204933333333]
["       2.E. Electronics industry","WEM",null,null,null,null,null,null,null,null,null,null,null,null,null,null,null,null,null,null,null,null,null,null,null,null,null,null,null,null,null,null,null,null,null,null,null,null,null,null,null,null,null,null,null,null,null,null,null,null,null,null,null,null,null,null,null,null,null,null,null,null,null,null,null,null,null,null,null,null,null,null,null,null,null,null,null,null,null,null,null,null,null,"NO",null,null,null,null,null,null,null,null,null,null,null,null,null,null,null,null,null,null,null,null,null,null,null,null,null,null,0.45492840000000001,2.0010641999999996,null,null,null,null,3.5471999999999997,null,null,null,null,3.5471999999999997,null,null,null,null,3.5471999999999997,null,null,null,null,3.5471999999999997,null,null,null,null,null,17.198,15.882698941368485,null,null,null,null,18.899212396537397,null,null,null,null,17.133157304610883,null,null,null,null,18.676050583409076,null,null,null,null,16.736762229948845,null,null,null,null,null,2.3530000000000002,2.58,null,null,null,null,2.58,null,null,null,null,2.58,null,null,null,null,2.58,null,null,null,null,2.58,null,null,null,null,null,20.005928400000002,20.463763141368482,null,null,null,null,25.026412396537395,null,null,null,null,23.260357304610885,null,null,null,null,24.803250583409074,null,null,null,null,22.863962229948847,null,null,null,null,null,null,null,null,null,null,null,null,null,null,null,null,null,null,null,null,null,null,null,null,null,null,null,null,null,null,null,null,20.005928400000002,20.463763141368482,null,null,null,null,25.026412396537395,null,null,null,null,23.260357304610885,null,null,null,null,24.803250583409074,null,null,null,null,22.863962229948847]
["       2.F. Product uses as substitutes for ODS(2)","WEM",null,null,null,null,null,null,null,null,null,null,null,null,null,null,null,null,null,null,null,null,null,null,null,null,null,null,null,null,null,null,null,null,null,null,null,null,null,null,null,null,null,null,null,null,null,null,null,null,null,null,null,null,null,null,null,null,null,null,null,null,null,null,null,null,null,null,null,null,null,null,null,null,null,null,null,null,null,null,null,null,null,2830.3822492779182,2898.8636373444883,null,null,null,null,2333.750686158905,null,null,null,null,1873.3360877055457,null,null,null,null,858.28873074565104,null,null,null,null,340.02386709943687,null,null,null,null,null,4.8870106210361497,4.2655199026495856,null,null,null,null,0.22057092945134266,null,null,null,null,1.4305041251323359E-15,null,null,null,null,1.4305041251323359E-15,null,null,null,null,1.4305041251323359E-15,null,null,null,null,null,"NO",null,null,null,null,null,null,null,null,null,null,null,null,null,null,null,null,null,null,null,null,null,null,null,null,null,null,"NO",null,null,null,null,null,null,null,null,null,null,null,null,null,null,null,null,null,null,null,null,null,null,null,null,null,null,2835.2692598989543,2903.1291572471378,null,null,null,null,2333.9712570883562,null,null,null,null,1873.3360877055457,null,null,null,null,858.28873074565104,null,null,null,null,340.02386709943687,null,null,null,null,null,null,null,null,null,null,null,null,null,null,null,null,null,null,null,null,null,null,null,null,null,null,null,null,null,null,null,null,2835.2692598989543,2903.1291572471378,null,null,null,null,2333.9712570883562,null,null,null,null,1873.3360877055457,null,null,null,null,858.28873074565104,null,null,null,null,340.02386709943687]
["       2.G. Other product manufacture and use","WEM","NO",null,null,null,null,null,null,null,null,null,null,null,null,null,null,null,null,null,null,null,null,null,null,null,null,null,null,0.75,0.75,null,null,null,null,0.75,null,null,null,null,0.75,null,null,null,null,0.75,null,null,null,null,0.75,null,null,null,null,null,"NO",null,null,null,null,null,null,null,null,null,null,null,null,null,null,null,null,null,null,null,null,null,null,null,null,null,null,"NO",null,null,null,null,null,null,null,null,null,null,null,null,null,null,null,null,null,null,null,null,null,null,null,null,null,null,"NO",null,null,null,null,null,null,null,null,null,null,null,null,null,null,null,null,null,null,null,null,null,null,null,null,null,null,78.819999999999993,72.788868915947802,null,null,null,null,86.613257534156091,null,null,null,null,78.51959832301543,null,null,null,null,85.590528587217861,null,null,null,null,76.702958138937447,null,null,null,null,null,null,null,null,null,null,null,null,null,null,null,null,null,null,null,null,null,null,null,null,null,null,null,null,null,null,null,null,302.32,296.28886891594777,null,null,null,null,310.11325753415611,null,null,null,null,302.01959832301543,null,null,null,null,309.09052858721788,null,null,null,null,300.20295813893745,null,null,null,null,null,null,null,null,null,null,null,null,null,null,null,null,null,null,null,null,null,null,null,null,null,null,null,null,null,null,null,null,302.32,296.28886891594777,null,null,null,null,310.11325753415611,null,null,null,null,302.01959832301543,null,null,null,null,309.09052858721788,null,null,null,null,300.20295813893745]
["       2.H. Other (please specify)","WEM","NO",null,null,null,null,null,null,null,null,null,null,null,null,null,null,null,null,null,null,null,null,null,null,null,null,null,null,"NO",null,null,null,null,null,null,null,null,null,null,null,null,null,null,null,null,null,null,null,null,null,null,null,null,null,null,"NO",null,null,null,null,null,null,null,null,null,null,null,null,null,null,null,null,null,null,null,null,null,null,null,null,null,null,"NO",null,null,null,null,null,null,null,null,null,null,null,null,null,null,null,null,null,null,null,null,null,null,null,null,null,null,"NO",null,null,null,null,null,null,null,null,null,null,null,null,null,null,null,null,null,null,null,null,null,null,null,null,null,null,"NO",null,null,null,null,null,null,null,null,null,null,null,null,null,null,null,null,null,null,null,null,null,null,null,null,null,null,"NO",null,null,null,null,null,null,null,null,null,null,null,null,null,null,null,null,null,null,null,null,null,null,null,null,null,null,null,null,null,null,null,null,null,null,null,null,null,null,null,null,null,null,null,null,null,null,null,null,null,null,null,null,null,null,null,null,null,null,null,null,null,null,null,null,null,null,null,null,null,null,null,null,null,null,null,null,null,null,null,null,0,0,null,null,null,null,0,null,null,null,null,0,null,null,null,null,0,null,null,null,null,0]
["3. Agriculture","WEM",207.3195771428571,212.13,null,null,null,null,217,null,null,null,null,217,null,null,null,null,217,null,null,null,null,217,null,null,null,null,null,15.08178438198618,15.032287493594209,null,null,null,null,15.075467591825173,null,null,null,null,15.850256739531176,null,null,null,null,16.793148012089674,null,null,null,null,17.100557549583378,null,null,null,null,null,143.41867869119969,146.69635546777914,null,null,null,null,157.17778597912616,null,null,null,null,167.34554645664599,null,null,null,null,178.43903330344656,null,null,null,null,183.45973424751622,null,null,null,null,null,null,null,null,null,null,null,null,null,null,null,null,null,null,null,null,null,null,null,null,null,null,null,null,null,null,null,null,null,null,null,null,null,null,null,null,null,null,null,null,null,null,null,null,null,null,null,null,null,null,null,null,null,null,null,null,null,null,null,null,null,null,null,null,null,null,null,null,null,null,null,null,null,null,null,null,null,null,null,null,null,null,null,null,null,null,null,null,null,null,null,null,null,null,null,null,null,null,null,null,null,null,null,null,null,null,null,null,null,8287.1582902547307,8359.1605597855523,null,null,null,null,8638.9339918420555,null,null,null,null,9124.0151697964411,null,null,null,null,9682.3339401888879,null,null,null,null,9899.4595059637522,null,null,null,null,null,null,null,null,null,null,null,null,null,null,null,null,null,null,null,null,null,null,null,null,null,null,null,null,null,null,null,null,8287.1582902547307,8359.1605597855523,null,null,null,null,8638.9339918420555,null,null,null,null,9124.0151697964411,null,null,null,null,9682.3339401888879,null,null,null,null,9899.4595059637522]
["      3.A. Enteric fermentation","WEM",null,null,null,null,null,null,null,null,null,null,null,null,null,null,null,null,null,null,null,null,null,null,null,null,null,null,null,null,null,null,null,null,null,null,null,null,null,null,null,null,null,null,null,null,null,null,null,null,null,null,null,null,null,null,112.69088456461427,115.83778045181379,null,null,null,null,123.68325197008993,null,null,null,null,130.92834473777933,null,null,null,null,139.50466554348085,null,null,null,null,143.3140124069223,null,null,null,null,null,null,null,null,null,null,null,null,null,null,null,null,null,null,null,null,null,null,null,null,null,null,null,null,null,null,null,null,null,null,null,null,null,null,null,null,null,null,null,null,null,null,null,null,null,null,null,null,null,null,null,null,null,null,null,null,null,null,null,null,null,null,null,null,null,null,null,null,null,null,null,null,null,null,null,null,null,null,null,null,null,null,null,null,null,null,null,null,null,null,null,null,null,null,null,null,null,null,null,null,null,null,null,null,null,null,null,null,null,2817.2721141153565,2895.9445112953445,null,null,null,null,3092.0812992522483,null,null,null,null,3273.2086184444834,null,null,null,null,3487.6166385870215,null,null,null,null,3582.8503101730576,null,null,null,null,null,null,null,null,null,null,null,null,null,null,null,null,null,null,null,null,null,null,null,null,null,null,null,null,null,null,null,null,2817.2721141153565,2895.9445112953445,null,null,null,null,3092.0812992522483,null,null,null,null,3273.2086184444834,null,null,null,null,3487.6166385870215,null,null,null,null,3582.8503101730576]
["      3.B. Manure management","WEM",null,null,null,null,null,null,null,null,null,null,null,null,null,null,null,null,null,null,null,null,null,null,null,null,null,null,null,4.4027504398042199,4.1526370826182184,null,null,null,null,4.6413859720133157,null,null,null,null,4.7118077604843274,null,null,null,null,4.9767439350140945,null,null,null,null,5.1156335127125461,null,null,null,null,null,30.72779412658543,30.858575015965364,null,null,null,null,33.494534009036215,null,null,null,null,36.417201718866679,null,null,null,null,38.934367759965703,null,null,null,null,40.145721840593907,null,null,null,null,null,null,null,null,null,null,null,null,null,null,null,null,null,null,null,null,null,null,null,null,null,null,null,null,null,null,null,null,null,null,null,null,null,null,null,null,null,null,null,null,null,null,null,null,null,null,null,null,null,null,null,null,null,null,null,null,null,null,null,null,null,null,null,null,null,null,null,null,null,null,null,null,null,null,null,null,null,null,null,null,null,null,null,null,null,null,null,null,null,null,null,null,null,null,null,null,null,null,null,null,null,null,null,null,null,null,null,null,null,2080.2144842262933,2008.9502260193631,null,null,null,null,2220.4963698858737,null,null,null,null,2314.5487555959967,null,null,null,null,2456.4288866333427,null,null,null,null,2528.1018328031864,null,null,null,null,null,null,null,null,null,null,null,null,null,null,null,null,null,null,null,null,null,null,null,null,null,null,null,null,null,null,null,null,2080.2144842262933,2008.9502260193631,null,null,null,null,2220.4963698858737,null,null,null,null,2314.5487555959967,null,null,null,null,2456.4288866333427,null,null,null,null,2528.1018328031864]
["      3.C. Rice cultivation","WEM",null,null,null,null,null,null,null,null,null,null,null,null,null,null,null,null,null,null,null,null,null,null,null,null,null,null,null,null,null,null,null,null,null,null,null,null,null,null,null,null,null,null,null,null,null,null,null,null,null,null,null,null,null,null,"NO",null,null,null,null,null,null,null,null,null,null,null,null,null,null,null,null,null,null,null,null,null,null,null,null,null,null,null,null,null,null,null,null,null,null,null,null,null,null,null,null,null,null,null,null,null,null,null,null,null,null,null,null,null,null,null,null,null,null,null,null,null,null,null,null,null,null,null,null,null,null,null,null,null,null,null,null,null,null,null,null,null,null,null,null,null,null,null,null,null,null,null,null,null,null,null,null,null,null,null,null,null,null,null,null,null,null,null,null,null,null,null,null,null,null,null,null,null,null,null,null,null,null,null,null,null,null,null,null,null,null,null,null,null,null,"NO"]
["      3.D. Agricultural soils","WEM",null,null,null,null,null,null,null,null,null,null,null,null,null,null,null,null,null,null,null,null,null,null,null,null,null,null,null,10.67903394218196,10.879650410975991,null,null,null,null,10.434081619811858,null,null,null,null,11.138448979046849,null,null,null,null,11.816404077075578,null,null,null,null,11.984924036870833,null,null,null,null,null,"NA",null,null,null,null,null,null,null,null,null,null,null,null,null,null,null,null,null,null,null,null,null,null,null,null,null,null,null,null,null,null,null,null,null,null,null,null,null,null,null,null,null,null,null,null,null,null,null,null,null,null,null,null,null,null,null,null,null,null,null,null,null,null,null,null,null,null,null,null,null,null,null,null,null,null,null,null,null,null,null,null,null,null,null,null,null,null,null,null,null,null,null,null,null,null,null,null,null,null,null,null,null,null,null,null,null,null,null,null,null,null,null,null,null,null,null,null,null,null,null,null,null,null,null,null,null,null,null,null,null,null,null,null,null,null,3182.352114770224,3242.1358224708451,null,null,null,null,3109.3563227039335,null,null,null,null,3319.2577957559611,null,null,null,null,3521.2884149685224,null,null,null,null,3571.5073629875083,null,null,null,null,null,null,null,null,null,null,null,null,null,null,null,null,null,null,null,null,null,null,null,null,null,null,null,null,null,null,null,null,3182.352114770224,3242.1358224708451,null,null,null,null,3109.3563227039335,null,null,null,null,3319.2577957559611,null,null,null,null,3521.2884149685224,null,null,null,null,3571.5073629875083]
["      3.E. Prescribed burning of savannahs","WEM",null,null,null,null,null,null,null,null,null,null,null,null,null,null,null,null,null,null,null,null,null,null,null,null,null,null,null,"NO",null,null,null,null,null,null,null,null,null,null,null,null,null,null,null,null,null,null,null,null,null,null,null,null,null,null,"NO",null,null,null,null,null,null,null,null,null,null,null,null,null,null,null,null,null,null,null,null,null,null,null,null,null,null,null,null,null,null,null,null,null,null,null,null,null,null,null,null,null,null,null,null,null,null,null,null,null,null,null,null,null,null,null,null,null,null,null,null,null,null,null,null,null,null,null,null,null,null,null,null,null,null,null,null,null,null,null,null,null,null,null,null,null,null,null,null,null,null,null,null,null,null,null,null,null,null,null,null,null,null,null,null,null,null,null,null,null,null,null,null,null,null,null,null,null,null,null,null,null,null,null,null,null,null,null,null,null,null,null,null,null,null,"NO"]
["      3.F. Field burning of agricultural residues ","WEM",null,null,null,null,null,null,null,null,null,null,null,null,null,null,null,null,null,null,null,null,null,null,null,null,null,null,null,"NO",null,null,null,null,null,null,null,null,null,null,null,null,null,null,null,null,null,null,null,null,null,null,null,null,null,null,"NO",null,null,null,null,null,null,null,null,null,null,null,null,null,null,null,null,null,null,null,null,null,null,null,null,null,null,null,null,null,null,null,null,null,null,null,null,null,null,null,null,null,null,null,null,null,null,null,null,null,null,null,null,null,null,null,null,null,null,null,null,null,null,null,null,null,null,null,null,null,null,null,null,null,null,null,null,null,null,null,null,null,null,null,null,null,null,null,null,null,null,null,null,null,null,null,null,null,null,null,null,null,null,null,null,null,null,null,null,null,null,null,null,null,null,null,null,null,null,null,null,null,null,null,null,null,null,null,null,null,null,null,null,null,null,"NO"]
["      3.G. Liming","WEM",150.28772000000001,155.13,null,null,null,null,160,null,null,null,null,160,null,null,null,null,160,null,null,null,null,160,null,null,null,null,null,null,null,null,null,null,null,null,null,null,null,null,null,null,null,null,null,null,null,null,null,null,null,null,null,null,null,null,null,null,null,null,null,null,null,null,null,null,null,null,null,null,null,null,null,null,null,null,null,null,null,null,null,null,null,null,null,null,null,null,null,null,null,null,null,null,null,null,null,null,null,null,null,null,null,null,null,null,null,null,null,null,null,null,null,null,null,null,null,null,null,null,null,null,null,null,null,null,null,null,null,null,null,null,null,null,null,null,null,null,null,null,null,null,null,null,null,null,null,null,null,null,null,null,null,null,null,null,null,null,null,null,null,null,null,null,null,null,null,null,null,null,null,null,null,null,null,null,null,null,null,null,null,null,null,null,null,null,null,null,null,null,null,150.28772000000001,155.13,null,null,null,null,160,null,null,null,null,160,null,null,null,null,160,null,null,null,null,160,null,null,null,null,null,null,null,null,null,null,null,null,null,null,null,null,null,null,null,null,null,null,null,null,null,null,null,null,null,null,null,null,150.28772000000001,155.13,null,null,null,null,160,null,null,null,null,160,null,null,null,null,160,null,null,null,null,160]
["      3.H. Urea application ","WEM",57.031857142857099,57,null,null,null,null,57,null,null,null,null,57,null,null,null,null,57,null,null,null,null,57,null,null,null,null,null,null,null,null,null,null,null,null,null,null,null,null,null,null,null,null,null,null,null,null,null,null,null,null,null,null,null,null,null,null,null,null,null,null,null,null,null,null,null,null,null,null,null,null,null,null,null,null,null,null,null,null,null,null,null,null,null,null,null,null,null,null,null,null,null,null,null,null,null,null,null,null,null,null,null,null,null,null,null,null,null,null,null,null,null,null,null,null,null,null,null,null,null,null,null,null,null,null,null,null,null,null,null,null,null,null,null,null,null,null,null,null,null,null,null,null,null,null,null,null,null,null,null,null,null,null,null,null,null,null,null,null,null,null,null,null,null,null,null,null,null,null,null,null,null,null,null,null,null,null,null,null,null,null,null,null,null,null,null,null,null,null,null,57.031857142857099,57,null,null,null,null,57,null,null,null,null,57,null,null,null,null,57,null,null,null,null,57,null,null,null,null,null,null,null,null,null,null,null,null,null,null,null,null,null,null,null,null,null,null,null,null,null,null,null,null,null,null,null,null,57.031857142857099,57,null,null,null,null,57,null,null,null,null,57,null,null,null,null,57,null,null,null,null,57]
["      3.I. Other carbon-containing fertilizers","WEM","NO",null,null,null,null,null,null,null,null,null,null,null,null,null,null,null,null,null,null,null,null,null,null,null,null,null,null,null,null,null,null,null,null,null,null,null,null,null,null,null,null,null,null,null,null,null,null,null,null,null,null,null,null,null,null,null,null,null,null,null,null,null,null,null,null,null,null,null,null,null,null,null,null,null,null,null,null,null,null,null,null,null,null,null,null,null,null,null,null,null,null,null,null,null,null,null,null,null,null,null,null,null,null,null,null,null,null,null,null,null,null,null,null,null,null,null,null,null,null,null,null,null,null,null,null,null,null,null,null,null,null,null,null,null,null,null,null,null,null,null,null,null,null,null,null,null,null,null,null,null,null,null,null,null,null,null,null,null,null,null,null,null,null,null,null,null,null,null,null,null,null,null,null,null,null,null,null,null,null,null,null,null,null,null,null,null,null,null,null,"NO"]
["      3.J. Other (please specify)","WEM","NO",null,null,null,null,null,null,null,null,null,null,null,null,null,null,null,null,null,null,null,null,null,null,null,null,null,null,"NO",null,null,null,null,null,null,null,null,null,null,null,null,null,null,null,null,null,null,null,null,null,null,null,null,null,null,"NO",null,null,null,null,null,null,null,null,null,null,null,null,null,null,null,null,null,null,null,null,null,null,null,null,null,null,null,null,null,null,null,null,null,null,null,null,null,null,null,null,null,null,null,null,null,null,null,null,null,null,null,null,null,null,null,null,null,null,null,null,null,null,null,null,null,null,null,null,null,null,null,null,null,null,null,null,null,null,null,null,null,null,null,null,null,null,null,null,null,null,null,null,null,null,null,null,null,null,null,null,null,null,null,null,null,null,null,null,null,null,null,null,null,null,null,null,null,null,null,null,null,null,null,null,null,null,null,null,null,null,null,null,null,null,"NO"]
["4. Land Use, Land-Use Change and Forestry","WEM",-7878.1554386545176,-6265.2400000000007,null,null,null,null,-2578.89,null,null,null,null,-3537.52,null,null,null,null,-3567.95,null,null,null,null,-3996.42,null,null,null,null,null,4.084327906666E-2,3.9264594122200902E-2,null,null,null,null,3.6848788568535525E-2,null,null,null,null,3.6794642167473579E-2,null,null,null,null,3.6750200371139796E-2,null,null,null,null,3.6722006458972341E-2,null,null,null,null,null,2.932308371,3.2730179161630311,null,null,null,null,2.9427371461164635,null,null,null,null,2.9480489339860929,null,null,null,null,2.9510230483772224,null,null,null,null,2.9525844156150316,null,null,null,null,null,null,null,null,null,null,null,null,null,null,null,null,null,null,null,null,null,null,null,null,null,null,null,null,null,null,null,null,null,null,null,null,null,null,null,null,null,null,null,null,null,null,null,null,null,null,null,null,null,null,null,null,null,null,null,null,null,null,null,null,null,null,null,null,null,null,null,null,null,null,null,null,null,null,null,null,null,null,null,null,null,null,null,null,null,null,null,null,null,null,null,null,null,null,null,null,null,null,null,null,null,null,null,null,null,null,null,null,null,-7792.6764322176532,-6171.7,null,null,null,null,-2494.3406323536647,null,null,null,null,-3452.8539732844401,null,null,null,null,-3483.2228640799694,null,null,null,null,-3911.6622316848502]
["     4.A. Forest land","WEM",-7389.9475611711478,-5731.27,null,null,null,null,-1982.24,null,null,null,null,-2946.4,null,null,null,null,-2992.6,null,null,null,null,-3436.56,null,null,null,null,null,2.0156495E-2,2.2501998173620846E-2,null,null,null,null,2.0228181714661404E-2,null,null,null,null,2.0264694595330476E-2,null,null,null,null,2.0285138462164912E-2,null,null,null,null,2.029587119792808E-2,null,null,null,null,null,2.932308371,3.2730179161630311,null,null,null,null,2.9427371461164635,null,null,null,null,2.9480489339860929,null,null,null,null,2.9510230483772224,null,null,null,null,2.9525844156150316,null,null,null,null,null,null,null,null,null,null,null,null,null,null,null,null,null,null,null,null,null,null,null,null,null,null,null,null,null,null,null,null,null,null,null,null,null,null,null,null,null,null,null,null,null,null,null,null,null,null,null,null,null,null,null,null,null,null,null,null,null,null,null,null,null,null,null,null,null,null,null,null,null,null,null,null,null,null,null,null,null,null,null,null,null,null,null,null,null,null,null,null,null,null,null,null,null,null,null,null,null,null,null,null,null,null,null,null,null,null,null,null,null,-7310.6332163861471,-5642.73,null,null,null,null,-1902.6435731961194,null,null,null,null,-2866.6598976609389,null,null,null,null,-2912.7794525288441,null,null,null,null,-3356.6972199926413]
["     4.B. Cropland","WEM",12.104131334568221,12.01,null,null,null,null,11.91,null,null,null,null,11.85,null,null,null,null,11.8,null,null,null,null,11.77,null,null,null,null,null,1.6887170666660001E-2,1.676259594858006E-2,null,null,null,null,1.662060685387412E-2,null,null,null,null,1.6529947572143103E-2,null,null,null,null,1.6465061908974881E-2,null,null,null,null,1.6426135261044261E-2,null,null,null,null,null,"NO",null,null,null,null,null,null,null,null,null,null,null,null,null,null,null,null,null,null,null,null,null,null,null,null,null,null,null,null,null,null,null,null,null,null,null,null,null,null,null,null,null,null,null,null,null,null,null,null,null,null,null,null,null,null,null,null,null,null,null,null,null,null,null,null,null,null,null,null,null,null,null,null,null,null,null,null,null,null,null,null,null,null,null,null,null,null,null,null,null,null,null,null,null,null,null,null,null,null,null,null,null,null,null,null,null,null,null,null,null,null,null,null,null,null,null,null,null,null,null,null,null,null,null,null,null,null,null,null,null,null,null,null,null,null,17.136508193232899,17.010000000000002,null,null,null,null,16.862940842454488,null,null,null,null,16.775924376498644,null,null,null,null,16.706588448874516,null,null,null,null,16.664988307791191]
["     4.C. Grassland","WEM",-569.10013733154005,-578.72,null,null,null,null,-585.89,null,null,null,null,-591.70000000000005,null,null,null,null,-596.51,null,null,null,null,-600.55999999999995,null,null,null,null,null,"NA",null,null,null,null,null,null,null,null,null,null,null,null,null,null,null,null,null,null,null,null,null,null,null,null,null,null,"NO",null,null,null,null,null,null,null,null,null,null,null,null,null,null,null,null,null,null,null,null,null,null,null,null,null,null,null,null,null,null,null,null,null,null,null,null,null,null,null,null,null,null,null,null,null,null,null,null,null,null,null,null,null,null,null,null,null,null,null,null,null,null,null,null,null,null,null,null,null,null,null,null,null,null,null,null,null,null,null,null,null,null,null,null,null,null,null,null,null,null,null,null,null,null,null,null,null,null,null,null,null,null,null,null,null,null,null,null,null,null,null,null,null,null,null,null,null,null,null,null,null,null,null,null,null,null,null,null,null,null,null,null,null,null,-569.10013733154005,-578.72,null,null,null,null,-585.89,null,null,null,null,-591.70000000000005,null,null,null,null,-596.51,null,null,null,null,-600.55999999999995]
["     4.D. Wetlands","WEM",26.763885171086791,26.69,null,null,null,null,26.92,null,null,null,null,27.15,null,null,null,null,27.39,null,null,null,null,27.27,null,null,null,null,null,"NO",null,null,null,null,null,null,null,null,null,null,null,null,null,null,null,null,null,null,null,null,null,null,null,null,null,null,"NO",null,null,null,null,null,null,null,null,null,null,null,null,null,null,null,null,null,null,null,null,null,null,null,null,null,null,null,null,null,null,null,null,null,null,null,null,null,null,null,null,null,null,null,null,null,null,null,null,null,null,null,null,null,null,null,null,null,null,null,null,null,null,null,null,null,null,null,null,null,null,null,null,null,null,null,null,null,null,null,null,null,null,null,null,null,null,null,null,null,null,null,null,null,null,null,null,null,null,null,null,null,null,null,null,null,null,null,null,null,null,null,null,null,null,null,null,null,null,null,null,null,null,null,null,null,null,null,null,null,null,null,null,null,null,26.763885171086791,26.69,null,null,null,null,26.92,null,null,null,null,27.15,null,null,null,null,27.39,null,null,null,null,27.27]
["     4.E. Settlements","WEM",127.60436333333345,128.46,null,null,null,null,129.47,null,null,null,null,129.68,null,null,null,null,129.72,null,null,null,null,129.72999999999999,null,null,null,null,null,"NO",null,null,null,null,null,null,null,null,null,null,null,null,null,null,null,null,null,null,null,null,null,null,null,null,null,null,"NO",null,null,null,null,null,null,null,null,null,null,null,null,null,null,null,null,null,null,null,null,null,null,null,null,null,null,null,null,null,null,null,null,null,null,null,null,null,null,null,null,null,null,null,null,null,null,null,null,null,null,null,null,null,null,null,null,null,null,null,null,null,null,null,null,null,null,null,null,null,null,null,null,null,null,null,null,null,null,null,null,null,null,null,null,null,null,null,null,null,null,null,null,null,null,null,null,null,null,null,null,null,null,null,null,null,null,null,null,null,null,null,null,null,null,null,null,null,null,null,null,null,null,null,null,null,null,null,null,null,null,null,null,null,null,127.60436333333345,128.46,null,null,null,null,129.47,null,null,null,null,129.68,null,null,null,null,129.72,null,null,null,null,129.72999999999999]
["     4.F. Other Land","WEM",8.5487600000000104,8.6,null,null,null,null,8.57,null,null,null,null,8.5299999999999994,null,null,null,null,8.5,null,null,null,null,8.4600000000000009,null,null,null,null,null,"NO",null,null,null,null,null,null,null,null,null,null,null,null,null,null,null,null,null,null,null,null,null,null,null,null,null,null,"NO",null,null,null,null,null,null,null,null,null,null,null,null,null,null,null,null,null,null,null,null,null,null,null,null,null,null,null,null,null,null,null,null,null,null,null,null,null,null,null,null,null,null,null,null,null,null,null,null,null,null,null,null,null,null,null,null,null,null,null,null,null,null,null,null,null,null,null,null,null,null,null,null,null,null,null,null,null,null,null,null,null,null,null,null,null,null,null,null,null,null,null,null,null,null,null,null,null,null,null,null,null,null,null,null,null,null,null,null,null,null,null,null,null,null,null,null,null,null,null,null,null,null,null,null,null,null,null,null,null,null,null,null,null,null,8.5487600000000104,8.6,null,null,null,null,8.57,null,null,null,null,8.5299999999999994,null,null,null,null,8.5,null,null,null,null,8.4600000000000009]
["     4.G. Harvested wood products","WEM",-94.128879990818959,-131.01,null,null,null,null,-187.63,null,null,null,null,-176.63,null,null,null,null,-156.25,null,null,null,null,-136.53,null,null,null,null,null,null,null,null,null,null,null,null,null,null,null,null,null,null,null,null,null,null,null,null,null,null,null,null,null,null,null,null,null,null,null,null,null,null,null,null,null,null,null,null,null,null,null,null,null,null,null,null,null,null,null,null,null,null,null,null,null,null,null,null,null,null,null,null,null,null,null,null,null,null,null,null,null,null,null,null,null,null,null,null,null,null,null,null,null,null,null,null,null,null,null,null,null,null,null,null,null,null,null,null,null,null,null,null,null,null,null,null,null,null,null,null,null,null,null,null,null,null,null,null,null,null,null,null,null,null,null,null,null,null,null,null,null,null,null,null,null,null,null,null,null,null,null,null,null,null,null,null,null,null,null,null,null,null,null,null,null,null,null,null,null,null,null,-94.128879990818959,-131.01,null,null,null,null,-187.63,null,null,null,null,-176.63,null,null,null,null,-156.25,null,null,null,null,-136.53]
["     4.H. Other","WEM","NO",null,null,null,null,null,null,null,null,null,null,null,null,null,null,null,null,null,null,null,null,null,null,null,null,null,null,"NO",null,null,null,null,null,null,null,null,null,null,null,null,null,null,null,null,null,null,null,null,null,null,null,null,null,null,"NO",null,null,null,null,null,null,null,null,null,null,null,null,null,null,null,null,null,null,null,null,null,null,null,null,null,null,null,null,null,null,null,null,null,null,null,null,null,null,null,null,null,null,null,null,null,null,null,null,null,null,null,null,null,null,null,null,null,null,null,null,null,null,null,null,null,null,null,null,null,null,null,null,null,null,null,null,null,null,null,null,null,null,null,null,null,null,null,null,null,null,null,null,null,null,null,null,null,null,null,null,null,null,null,null,null,null,null,null,null,null,null,null,null,null,null,null,null,null,null,null,null,null,null,null,null,null,null,null,null,null,null,null,null,null,"NO"]
["5. Waste","WEM",131.73730350000014,132.428,null,null,null,null,152.6591875570937,null,null,null,null,159.61790647095032,null,null,null,null,165.69324247394013,null,null,null,null,171.0844246975648,null,null,null,null,null,0.81506998066900005,0.87018118262835997,null,null,null,null,0.98485240986588796,null,null,null,null,1.0329757959534729,null,null,null,null,1.0914872295657279,null,null,null,null,1.1409767676684464,null,null,null,null,null,187.18516815529429,189.77638446067775,null,null,null,null,177.9413958545322,null,null,null,null,165.54849029646493,null,null,null,null,142.93455532652203,null,null,null,null,110.17940493178429,null,null,null,null,null,null,null,null,null,null,null,null,null,null,null,null,null,null,null,null,null,null,null,null,null,null,null,null,null,null,null,null,null,null,null,null,null,null,null,null,null,null,null,null,null,null,null,null,null,null,null,null,null,null,null,null,null,null,null,null,null,null,null,null,null,null,null,null,null,null,null,null,null,null,null,null,null,null,null,null,null,null,null,null,null,null,null,null,null,null,null,null,null,null,null,null,null,null,null,null,null,null,null,null,null,null,null,null,null,null,null,null,null,5054.2573616217196,5136.1516039401959,null,null,null,null,4894.6801020604335,null,null,null,null,4606.1569510767076,null,null,null,null,4064.3203200475773,null,null,null,null,3265.5806247573692,null,null,null,null,null,null,null,null,null,null,null,null,null,null,null,null,null,null,null,null,null,null,null,null,null,null,null,null,null,null,null,null,5054.2573616217196,5136.1516039401959,null,null,null,null,4894.6801020604335,null,null,null,null,4606.1569510767076,null,null,null,null,4064.3203200475773,null,null,null,null,3265.5806247573692]
["     5.A. Solid Waste Disposal ","WEM","NO","NO",null,null,null,null,"NO",null,null,null,null,"NO",null,null,null,null,"NO",null,null,null,null,"NO",null,null,null,null,null,null,null,null,null,null,null,null,null,null,null,null,null,null,null,null,null,null,null,null,null,null,null,null,null,null,null,null,133.23153083,132.27683928954821,null,null,null,null,118.22409999999999,null,null,null,null,104.03259999999997,null,null,null,null,83.546099999999996,null,null,null,null,56.76460000000003,null,null,null,null,null,null,null,null,null,null,null,null,null,null,null,null,null,null,null,null,null,null,null,null,null,null,null,null,null,null,null,null,null,null,null,null,null,null,null,null,null,null,null,null,null,null,null,null,null,null,null,null,null,null,null,null,null,null,null,null,null,null,null,null,null,null,null,null,null,null,null,null,null,null,null,null,null,null,null,null,null,null,null,null,null,null,null,null,null,null,null,null,null,null,null,null,null,null,null,null,null,null,null,null,null,null,null,null,null,null,null,null,null,3330.7882707499998,3306.9209822387052,null,null,null,null,2955.6025,null,null,null,null,2600.8149999999991,null,null,null,null,2088.6524999999997,null,null,null,null,1419.1150000000007,null,null,null,null,null,null,null,null,null,null,null,null,null,null,null,null,null,null,null,null,null,null,null,null,null,null,null,null,null,null,null,null,3330.7882707499998,3306.9209822387052,null,null,null,null,2955.6025,null,null,null,null,2600.8149999999991,null,null,null,null,2088.6524999999997,null,null,null,null,1419.1150000000007]
["     5.B. Biological treatment of solid waste","WEM",null,"NO",null,null,null,null,"NO",null,null,null,null,"NO",null,null,null,null,"NO",null,null,null,null,"NO",null,null,null,null,null,0.12248232000000001,0.14961490949495998,null,null,null,null,0.16200000000000001,null,null,null,null,0.24,null,null,null,null,0.32810225280000005,null,null,null,null,0.40628134230000007,null,null,null,null,null,24.711772,24.632400000000001,null,null,null,null,22.26,null,null,null,null,21.5,null,null,null,null,18.044696704,null,null,null,null,14.637084564,null,null,null,null,null,null,null,null,null,null,null,null,null,null,null,null,null,null,null,null,null,null,null,null,null,null,null,null,null,null,null,null,null,null,null,null,null,null,null,null,null,null,null,null,null,null,null,null,null,null,null,null,null,null,null,null,null,null,null,null,null,null,null,null,null,null,null,null,null,null,null,null,null,null,null,null,null,null,null,null,null,null,null,null,null,null,null,null,null,null,null,null,null,null,null,null,null,null,null,null,null,null,null,null,null,null,null,null,null,null,null,null,null,654.29403135999996,660.39524302949815,null,null,null,null,604.77599999999995,null,null,null,null,609.02,null,null,null,null,548.89188893440007,null,null,null,null,486.9989541054,null,null,null,null,null,null,null,null,null,null,null,null,null,null,null,null,null,null,null,null,null,null,null,null,null,null,null,null,null,null,null,null,654.29403135999996,660.39524302949815,null,null,null,null,604.77599999999995,null,null,null,null,609.02,null,null,null,null,548.89188893440007,null,null,null,null,486.9989541054]
["     5.C. Incineration and open burning of waste","WEM",131.73730350000014,132.428,null,null,null,null,152.6591875570937,null,null,null,null,159.61790647095032,null,null,null,null,165.69324247394013,null,null,null,null,171.0844246975648,null,null,null,null,null,8.0242000000000004E-3,8.0662731333999999E-3,null,null,null,null,8.2341305010242942E-3,null,null,null,null,8.6094698472736781E-3,null,null,null,null,8.937161290459697E-3,null,null,null,null,9.227950850488803E-3,null,null,null,null,null,4.4935519999999998E-5,4.5171129547040004E-5,null,null,null,null,4.6111130805736054E-5,null,null,null,null,4.8213031144732586E-5,null,null,null,null,5.0048103226574308E-5,null,null,null,null,5.167652476273729E-5,null,null,null,null,null,null,null,null,null,null,null,null,null,null,null,null,null,null,null,null,null,null,null,null,null,null,null,null,null,null,null,null,null,null,null,null,null,null,null,null,null,null,null,null,null,null,null,null,null,null,null,null,null,null,null,null,null,null,null,null,null,null,null,null,null,null,null,null,null,null,null,null,null,null,null,null,null,null,null,null,null,null,null,null,null,null,null,null,null,null,null,null,null,null,null,null,null,null,null,null,null,null,null,null,null,null,null,null,null,null,null,null,null,134.12963848800015,134.83287867199186,null,null,null,null,155.1141112246691,null,null,null,null,162.18473381121649,null,null,null,null,168.35776774107779,null,null,null,null,173.83564596412953,null,null,null,null,null,null,null,null,null,null,null,null,null,null,null,null,null,null,null,null,null,null,null,null,null,null,null,null,null,null,null,null,134.12963848800015,134.83287867199186,null,null,null,null,155.1141112246691,null,null,null,null,162.18473381121649,null,null,null,null,168.35776774107779,null,null,null,null,173.83564596412953]
["     5.D. Wastewater treatment and discharge","WEM",null,null,null,null,null,null,null,null,null,null,null,null,null,null,null,null,null,null,null,null,null,null,null,null,null,null,null,0.68456346066899998,0.71250000000000002,null,null,null,null,0.81461827936486364,null,null,null,null,0.78436632610619927,null,null,null,null,0.75444781547526807,null,null,null,null,0.72546747451795757,null,null,null,null,null,29.241820389774301,32.867100000000001,null,null,null,null,37.457249743401405,null,null,null,null,40.015842083433796,null,null,null,null,41.343708574418798,null,null,null,null,38.7776686912595,null,null,null,null,null,null,null,null,null,null,null,null,null,null,null,null,null,null,null,null,null,null,null,null,null,null,null,null,null,null,null,null,null,null,null,null,null,null,null,null,null,null,null,null,null,null,null,null,null,null,null,null,null,null,null,null,null,null,null,null,null,null,null,null,null,null,null,null,null,null,null,null,null,null,null,null,null,null,null,null,null,null,null,null,null,null,null,null,null,null,null,null,null,null,null,null,null,null,null,null,null,null,null,null,null,null,null,null,null,null,null,null,null,935.04542102371954,1034.0025000000001,null,null,null,null,1179.1874908357645,null,null,null,null,1234.1372172654924,null,null,null,null,1258.4181633720998,null,null,null,null,1185.6310246878388,null,null,null,null,null,null,null,null,null,null,null,null,null,null,null,null,null,null,null,null,null,null,null,null,null,null,null,null,null,null,null,null,935.04542102371954,1034.0025000000001,null,null,null,null,1179.1874908357645,null,null,null,null,1234.1372172654924,null,null,null,null,1258.4181633720998,null,null,null,null,1185.6310246878388]
["     5.E. Other (please specify)","WEM","NO","NO",null,null,null,null,"NO",null,null,null,null,"NO",null,null,null,null,"NO",null,null,null,null,"NO",null,null,null,null,null,"NO","NO",null,null,null,null,"NO",null,null,null,null,"NO",null,null,null,null,"NO",null,null,null,null,"NO",null,null,null,null,null,"NO","NO",null,null,null,null,"NO",null,null,null,null,"NO",null,null,null,null,"NO",null,null,null,null,"NO",null,null,null,null,null,null,null,null,null,null,null,null,null,null,null,null,null,null,null,null,null,null,null,null,null,null,null,null,null,null,null,null,null,null,null,null,null,null,null,null,null,null,null,null,null,null,null,null,null,null,null,null,null,null,null,null,null,null,null,null,null,null,null,null,null,null,null,null,null,null,null,null,null,null,null,null,null,null,null,null,null,null,null,null,null,null,null,null,null,null,null,null,null,null,null,null,null,null,null,null,null,null,null,null,null,null,null,null,null,null,null,null,null,"NO",null,null,null,null,null,null,null,null,null,null,null,null,null,null,null,null,null,null,null,null,null,null,null,null,null,null,null,null,null,null,null,null,null,null,null,null,null,null,null,null,null,null,null,null,null,null,null,null,null,null,null,null,null,"NO"]
["Memo items","WEM"]
["M.International bunkers","WEM",875.22506499999997,876.22506499999997,null,null,null,null,881.22506499999997,null,null,null,null,886.22506499999997,null,null,null,null,891.22506499999997,null,null,null,null,896.22506499999997,null,null,null,null,null,2.4758866000000001E-2,2.5999999999999999E-2,null,null,null,null,2.7E-2,null,null,null,null,2.8000000000000001E-2,null,null,null,null,0.03,null,null,null,null,3.1E-2,null,null,null,null,null,6.1204550000000003E-3,6.0000000000000001E-3,null,null,null,null,6.0000000000000001E-3,null,null,null,null,6.0000000000000001E-3,null,null,null,null,6.0000000000000001E-3,null,null,null,null,6.0000000000000001E-3,null,null,null,null,null,null,null,null,null,null,null,null,null,null,null,null,null,null,null,null,null,null,null,null,null,null,null,null,null,null,null,null,null,null,null,null,null,null,null,null,null,null,null,null,null,null,null,null,null,null,null,null,null,null,null,null,null,null,null,null,null,null,null,null,null,null,null,null,null,null,null,null,null,null,null,null,null,null,null,null,null,null,null,null,null,null,null,null,null,null,null,null,null,null,null,null,null,null,null,null,null,null,null,null,null,null,null,null,null,null,null,null,null,882.75599999999997,884.123065,null,null,null,null,889.421065,null,null,null,null,894.719065,null,null,null,null,900.315065,null,null,null,null,905.61306499999989]
["              M.IB.Aviation","WEM",875.22506499999997,876.22506499999997,null,null,null,null,881.22506499999997,null,null,null,null,886.22506499999997,null,null,null,null,891.22506499999997,null,null,null,null,896.22506499999997,null,null,null,null,null,2.4758866000000001E-2,2.5999999999999999E-2,null,null,null,null,2.7E-2,null,null,null,null,2.8000000000000001E-2,null,null,null,null,0.03,null,null,null,null,3.1E-2,null,null,null,null,null,6.1204550000000003E-3,6.0000000000000001E-3,null,null,null,null,6.0000000000000001E-3,null,null,null,null,6.0000000000000001E-3,null,null,null,null,6.0000000000000001E-3,null,null,null,null,6.0000000000000001E-3,null,null,null,null,null,null,null,null,null,null,null,null,null,null,null,null,null,null,null,null,null,null,null,null,null,null,null,null,null,null,null,null,null,null,null,null,null,null,null,null,null,null,null,null,null,null,null,null,null,null,null,null,null,null,null,null,null,null,null,null,null,null,null,null,null,null,null,null,null,null,null,null,null,null,null,null,null,null,null,null,null,null,null,null,null,null,null,null,null,null,null,null,null,null,null,null,null,null,null,null,null,null,null,null,null,null,null,null,null,null,null,null,null,882.75599999999997,884.123065,null,null,null,null,889.421065,null,null,null,null,894.719065,null,null,null,null,900.315065,null,null,null,null,905.61306499999989]
["              M.IB.Navigation","WEM","NO",null,null,null,null,null,null,null,null,null,null,null,null,null,null,null,null,null,null,null,null,null,null,null,null,null,null,"NO"]
["        M.CO2 emissions from biomass","WEM",13247.6909667934,13275.434822221237,null,null,null,null,14523.908316474019,null,null,null,null,16174.667714430476,null,null,null,null,18088.993738951405,null,null,null,null,20058.807474328016,null,null,null,null,null,null,null,null,null,null,null,null,null,null,null,null,null,null,null,null,null,null,null,null,null,null,null,null,null,null,null,null,null,null,null,null,null,null,null,null,null,null,null,null,null,null,null,null,null,null,null,null,null,null,null,null,null,null,null,null,null,null,null,null,null,null,null,null,null,null,null,null,null,null,null,null,null,null,null,null,null,null,null,null,null,null,null,null,null,null,null,null,null,null,null,null,null,null,null,null,null,null,null,null,null,null,null,null,null,null,null,null,null,null,null,null,null,null,null,null,null,null,null,null,null,null,null,null,null,null,null,null,null,null,null,null,null,null,null,null,null,null,null,null,null,null,null,null,null,null,null,null,null,null,null,null,null,null,null,null,null,null,null,null,null,null,null,13247.6909667934,13275.434822221237,null,null,null,null,14523.908316474019,null,null,null,null,16174.667714430476,null,null,null,null,18088.993738951405,null,null,null,null,20058.807474328016]
["        M.CO2 captured","WEM","NO"]
["        M.Long-term storage of C in waste disposal sites","WEM",10689.369339999999,10837.342966335043,null,null,null,null,9453.7883203983365,null,null,null,null,8162.4001965064035,null,null,null,null,6291.889280459257,null,null,null,null,3241.5910983607619]
["        M.Indirect N2O","WEM",null,null,null,null,null,null,null,null,null,null,null,null,null,null,null,null,null,null,null,null,null,null,null,null,null,null,null,4.6832348107913004,4.7712141200959648,null,null,null,null,4.5758122434206197,null,null,null,null,4.884708886526564,null,null,null,null,5.1820225698083728,null,null,null,null,5.2559261219741629]
["        M.International aviation in the EU ETS","WEM",875.22506499999997,876.22506499999997,null,null,null,null,881.22506499999997,null,null,null,null,886.22506499999997,null,null,null,null,891.22506499999997,null,null,null,null,896.22506499999997,null,null,null,null,null,null,null,null,null,null,null,null,null,null,null,null,null,null,null,null,null,null,null,null,null,null,null,null,null,null,null,null,null,null,null,null,null,null,null,null,null,null,null,null,null,null,null,null,null,null,null,null,null,null,null,null,null,null,null,null,null,null,null,null,null,null,null,null,null,null,null,null,null,null,null,null,null,null,null,null,null,null,null,null,null,null,null,null,null,null,null,null,null,null,null,null,null,null,null,null,null,null,null,null,null,null,null,null,null,null,null,null,null,null,null,null,null,null,null,null,null,null,null,null,null,null,null,null,null,null,null,null,null,null,null,null,null,null,null,null,null,null,null,null,null,null,null,null,null,null,null,null,null,null,null,null,null,null,null,null,null,null,null,null,null,null,null,875.22506499999997,876.22506499999997,null,null,null,null,881.22506499999997,null,null,null,null,886.22506499999997,null,null,null,null,891.22506499999997,null,null,null,null,896.22506499999997,null,null,null,null,null,875.22506499999997,876.22506499999997,null,null,null,null,881.22506499999997,null,null,null,null,886.22506499999997,null,null,null,null,891.22506499999997,null,null,null,null,896.22506499999997]
[]
["Total excluding LULUCF","WOM"]
["Total including LULUCF","WOM"]
["1. Energy","WOM"]
["1.A. Fuel combustion ","WOM"]
["    1.A.1. Energy industries","WOM"]
["       1.A.1.a. Public electricity and heat production","WOM"]
["           1.A.1.b. Petroleum refining","WOM"]
["           1.A.1.c. Manufacture of solid fuels and other energy industries","WOM"]
["   1.A.2. Manufacturing industries and construction ","WOM"]
["   1.A.3. Transport","WOM"]
["      1.A.3.a. Domestic aviation","WOM"]
["      1.A.3.b. Road transportation","WOM"]
["      1.A.3.c. Railways","WOM"]
["          1.A.3.d. Domestic navigation","WOM"]
["      1.A.3.e. Other transportation","WOM"]
["  1.A.4. Other sectors","WOM"]
["      1.A.4.a. Commercial/Institutional","WOM"]
["          1.A.4.b. Residential      ","WOM"]
["              1.A.4.c. Agriculture/Forestry/Fishing","WOM"]
["      1.A.5. Other","WOM"]
["   1.B. Fugitive emissions from fuels","WOM"]
["          1.B.1. Solid fuels","WOM"]
["          1.B.2. Oil and natural gas and other emissions from energy production","WOM"]
["       1.C. CO2 transport and storage","WOM"]
["2. Industrial processes","WOM"]
["   2.A. Mineral Industry ","WOM"]
["         2.A. of which cement production","WOM"]
["         2.A. of which other non cement production","WOM"]
["   2.B. Chemical industry","WOM"]
["   2.C. Metal industry","WOM"]
["         2.C. of which Iron and steel production","WOM"]
["         2.C. of which other non Iron and steel production","WOM"]
["       2.D. Non-energy products from fuels and solvent use","WOM"]
["       2.E. Electronics industry","WOM"]
["       2.F. Product uses as substitutes for ODS(2)","WOM"]
["       2.G. Other product manufacture and use","WOM"]
["       2.H. Other (please specify)","WOM"]
["3. Agriculture","WOM"]
["      3.A. Enteric fermentation","WOM"]
["      3.B. Manure management","WOM"]
["      3.C. Rice cultivation","WOM"]
["      3.D. Agricultural soils","WOM"]
["      3.E. Prescribed burning of savannahs","WOM"]
["      3.F. Field burning of agricultural residues ","WOM"]
["      3.G. Liming","WOM"]
["      3.H. Urea application ","WOM"]
["      3.I. Other carbon-containing fertilizers","WOM"]
["      3.J. Other (please specify)","WOM"]
["4. Land Use, Land-Use Change and Forestry","WOM"]
["     4.A. Forest land","WOM"]
["     4.B. Cropland","WOM"]
["     4.C. Grassland","WOM"]
["     4.D. Wetlands","WOM"]
["     4.E. Settlements","WOM"]
["     4.F. Other Land","WOM"]
["     4.G. Harvested wood products","WOM"]
["     4.H. Other","WOM"]
["5. Waste","WOM"]
["    5.A. Solid Waste Disposal ","WOM"]
["    5.B. Biological treatment of solid waste","WOM"]
["    5.C. Incineration and open burning of waste","WOM"]
["    5.D. Wastewater treatment and discharge","WOM"]
["    5.E. Other (please specify)","WOM"]
["Memo items","WOM"]
["M.International bunkers","WOM"]
["              M.IB.Aviation","WOM"]
["              M.IB.Navigation","WOM"]
["        M.CO2 emissions from biomass","WOM"]
["        M.CO2 captured","WOM"]
["        M.Long-term storage of C in waste disposal sites","WOM"]
["        M.Indirect N2O","WOM"]
["        M.International aviation in the EU ETS","WOM"]
[]
["Total excluding LULUCF","WAM",101154.38383681339,102035.69946574567,null,null,null,null,99938.151443278606,null,null,null,null,91824.875385171137,null,null,null,null,88168.941066402724,null,null,null,null,82731.907674222035,null,null,null,null,null,21.220454560363962,20.805613155349217,null,null,null,null,21.797540880470141,null,null,null,null,22.519415615274472,null,null,null,null,22.346599933118835,null,null,null,null,22.230693699464958,null,null,null,null,null,529.54097666641928,537.07571923214232,null,null,null,null,530.32168131642868,null,null,null,null,508.13928621389766,null,null,null,null,480.52650026490136,null,null,null,null,408.37376532559938,null,null,null,null,null,2830.3822492779182,2898.8636373444883,null,null,null,null,2333.750686158905,null,null,null,null,1873.3360877055457,null,null,null,null,858.28873074565104,null,null,null,null,340.02386709943687,null,null,null,null,null,5.3419390210361497,6.2665841026495848,null,null,null,null,3.7677709294513426,null,null,null,null,3.547200000000001,null,null,null,null,3.547200000000001,null,null,null,null,3.547200000000001,null,null,null,null,null,96.014766107423995,88.67156785731629,null,null,null,null,105.51246993069348,null,null,null,null,95.652755627626306,null,null,null,null,104.26657917062694,null,null,null,null,93.439720368886285,null,null,null,null,null,2.3529599999999999,2.58,null,null,null,null,2.58,null,null,null,null,2.58,null,null,null,null,2.58,null,null,null,null,2.58,null,null,null,null,null,123650.69890076129,124659.04695614774,null,null,null,null,122137.47173558848,null,null,null,null,113214.25979720356,null,null,null,null,107810.07355301097,null,null,null,null,100005.58932727092,null,null,null,null,null,66695.226999999999,67239.439508354175,null,null,null,null,60488.878033395667,null,null,null,null,53614.838156629397,null,null,null,null,54316.240492071833,null,null,null,null,52008.306112163606,null,null,null,null,null,56948.386017965808,57409.295439293557,null,null,null,null,61633.790135742805,null,null,null,null,59579.266754174154,null,null,null,null,53468.299854589124,null,null,null,null,47966.379820807306]
["Total including LULUCF","WAM",93276.22839815887,95770.467911426749,null,null,null,null,96900.67938624238,null,null,null,null,87702.557749016152,null,null,null,null,84206.346458849031,null,null,null,null,78247.550537084928,null,null,null,null,null,21.261297839430622,20.844877749471419,null,null,null,null,21.834389669038675,null,null,null,null,22.556210257441947,null,null,null,null,22.383350133489976,null,null,null,null,22.267415705923931,null,null,null,null,null,532.47328503741926,540.3487371483053,null,null,null,null,533.26441846254511,null,null,null,null,511.08733514788378,null,null,null,null,483.4775233132786,null,null,null,null,411.32634974121441,null,null,null,null,null,2830.3822492779182,2898.8636373444883,null,null,null,null,2333.750686158905,null,null,null,null,1873.3360877055457,null,null,null,null,858.28873074565104,null,null,null,null,340.02386709943687,null,null,null,null,null,5.3419390210361497,6.2665841026495848,null,null,null,null,3.7677709294513426,null,null,null,null,3.547200000000001,null,null,null,null,3.547200000000001,null,null,null,null,3.547200000000001,null,null,null,null,null,96.014766107423995,88.67156785731629,null,null,null,null,105.51246993069348,null,null,null,null,95.652755627626306,null,null,null,null,104.26657917062694,null,null,null,null,93.439720368886285,null,null,null,null,null,2.3529599999999999,2.58,null,null,null,null,2.58,null,null,null,null,2.58,null,null,null,null,2.58,null,null,null,null,2.58,null,null,null,null,null,115858.02246854364,118487.34695614774,null,null,null,null,119184.54904619859,null,null,null,null,109176.60818776413,null,null,null,null,103932.20608137731,null,null,null,null,95605.989958448961,null,null,null,null,null,66695.226999999999,67239.439508354175,null,null,null,null,60488.878033395667,null,null,null,null,53614.838156629397,null,null,null,null,54316.240492071833,null,null,null,null,52008.306112163606,null,null,null,null,null,56948.386017965808,57409.295439293557,null,null,null,null,61633.790135742805,null,null,null,null,59579.266754174154,null,null,null,null,53468.299854589124,null,null,null,null,47966.379820807306]
["1. Energy","WAM",89585.8217685157,90468.399416412329,null,null,null,null,88373.48020638818,null,null,null,null,80309.455429366863,null,null,null,null,76703.715774595461,null,null,null,null,71314.641200191138,null,null,null,null,null,3.4658001977087798,3.5676464340569418,null,null,null,null,4.0136290122691918,null,null,null,null,4.1304359018249022,null,null,null,null,3.9585366504923871,null,null,null,null,3.4875969317965128,null,null,null,null,null,176.29567725661235,177.94483930368546,null,null,null,null,172.5595294827703,null,null,null,null,150.66330946078673,null,null,null,null,147.56278163493278,null,null,null,null,127.80987614629889,null,null,null,null,null,null,null,null,null,null,null,null,null,null,null,null,null,null,null,null,null,null,null,null,null,null,null,null,null,null,null,null,null,null,null,null,null,null,null,null,null,null,null,null,null,null,null,null,null,null,null,null,null,null,null,null,null,null,null,null,null,null,null,null,null,null,null,null,null,null,null,null,null,null,null,null,null,null,null,null,null,null,null,null,null,null,null,null,null,null,null,null,null,null,null,null,null,null,null,null,null,null,null,null,null,null,null,null,null,null,null,null,null,95026.022158848224,95980.179036353438,null,null,null,null,93883.530039113655,null,null,null,null,85306.908424630354,null,null,null,null,81572.429927315519,null,null,null,null,75549.191999523988,null,null,null,null,null,55523.726999999999,56076.906504988139,null,null,null,null,50848.463425714406,null,null,null,null,44015.431505056389,null,null,null,null,44171.75468352723,null,null,null,null,41902.359119040921,null,null,null,null,null,39495.209276052745,39892.960522865287,null,null,null,null,43020.263046949251,null,null,null,null,41271.322033173958,null,null,null,null,37375.14203743828,null,null,null,null,33615.929486183064]
["1.A. Fuel combustion ","WAM",89382.689914491377,90267.349416412326,null,null,null,null,88188.850206388175,null,null,null,null,80148.945429366868,null,null,null,null,76548.285774595468,null,null,null,null,71191.601200191144,null,null,null,null,null,3.46570727563086,3.5675477977674057,null,null,null,null,4.0135087337031363,null,null,null,null,4.1303394250859027,null,null,null,null,3.95843711530889,null,null,null,null,3.4874926189242079,null,null,null,null,null,25.902671359115672,26.054839303685476,null,null,null,null,25.929529482770317,null,null,null,null,25.133309460786734,null,null,null,null,24.532781634932782,null,null,null,null,24.289876146298891,null,null,null,null,null,null,null,null,null,null,null,null,null,null,null,null,null,null,null,null,null,null,null,null,null,null,null,null,null,null,null,null,null,null,null,null,null,null,null,null,null,null,null,null,null,null,null,null,null,null,null,null,null,null,null,null,null,null,null,null,null,null,null,null,null,null,null,null,null,null,null,null,null,null,null,null,null,null,null,null,null,null,null,null,null,null,null,null,null,null,null,null,null,null,null,null,null,null,null,null,null,null,null,null,null,null,null,null,null,null,null,null,null,91063.037466607275,91981.849642739151,null,null,null,null,90033.114196100971,null,null,null,null,82008.119674562127,null,null,null,null,78341.220265830838,null,null,null,null,72838.12091428804,null,null,null,null,null,55523.726999999999,56076.906504988139,null,null,null,null,50848.463425714406,null,null,null,null,44015.431505056389,null,null,null,null,44171.75468352723,null,null,null,null,41902.359119040921,null,null,null,null,null,35532.224583811789,35894.631129251007,null,null,null,null,39169.847203936566,null,null,null,null,37972.533283105739,null,null,null,null,34143.932375953598,null,null,null,null,30904.858400947116]
["    1.A.1. Energy industries","WAM",52892.464168039092,53442.651399999995,null,null,null,null,50533.2408,null,null,null,null,43638.440900000001,null,null,null,null,41964.299799999993,null,null,null,null,39557.646899999992,null,null,null,null,null,0.7824284579288,0.76950622000000002,null,null,null,null,0.78081927000000018,null,null,null,null,0.6969139000000002,null,null,null,null,0.70806474000000019,null,null,null,null,0.6957913200000001,null,null,null,null,null,1.0191093865795999,1.1394721800000003,null,null,null,null,1.4332832700000002,null,null,null,null,1.4921978299999998,null,null,null,null,1.8087085599999999,null,null,null,null,1.9051551899999999,null,null,null,null,null,null,null,null,null,null,null,null,null,null,null,null,null,null,null,null,null,null,null,null,null,null,null,null,null,null,null,null,null,null,null,null,null,null,null,null,null,null,null,null,null,null,null,null,null,null,null,null,null,null,null,null,null,null,null,null,null,null,null,null,null,null,null,null,null,null,null,null,null,null,null,null,null,null,null,null,null,null,null,null,null,null,null,null,null,null,null,null,null,null,null,null,null,null,null,null,null,null,null,null,null,null,null,null,null,null,null,null,null,53151.105583166369,53700.451058059996,null,null,null,null,50801.757024209997,null,null,null,null,43883.426187949997,null,null,null,null,42220.520806519991,null,null,null,null,39812.621593109994,null,null,null,null,null,50584.981999999996,51126.54029607265,null,null,null,null,46104.476425714405,null,null,null,null,39477.985505056393,null,null,null,null,38850.838683527232,null,null,null,null,36600.702119040921,null,null,null,null,null,2566.1235831663726,2573.9107619873466,null,null,null,null,4697.2805984955867,null,null,null,null,4405.440682893608,null,null,null,null,3369.6821229927609,null,null,null,null,3211.9194740690732]
["       1.A.1.a. Public electricity and heat production","WAM",46474.66478081276,47018.451399999998,null,null,null,null,44246.070800000001,null,null,null,null,37521.7909,null,null,null,null,35814.149799999999,null,null,null,null,33549.956899999997,null,null,null,null,null,0.72217007113502996,0.70917622000000002,null,null,null,null,0.72180927000000017,null,null,null,null,0.63941390000000009,null,null,null,null,0.6502447400000001,null,null,null,null,0.6393913200000001,null,null,null,null,null,0.93902483745888998,1.0587621800000002,null,null,null,null,1.3540232700000001,null,null,null,null,1.41578783,null,null,null,null,1.73194856,null,null,null,null,1.82962519,null,null,null,null,null,null,null,null,null,null,null,null,null,null,null,null,null,null,null,null,null,null,null,null,null,null,null,null,null,null,null,null,null,null,null,null,null,null,null,null,null,null,null,null,null,null,null,null,null,null,null,null,null,null,null,null,null,null,null,null,null,null,null,null,null,null,null,null,null,null,null,null,null,null,null,null,null,null,null,null,null,null,null,null,null,null,null,null,null,null,null,null,null,null,null,null,null,null,null,null,null,null,null,null,null,null,null,null,null,null,null,null,null,46713.347082947468,47256.254968059999,null,null,null,null,44495.020544209998,null,null,null,null,37747.73093795,null,null,null,null,36051.221446519994,null,null,null,null,33786.236143109993,null,null,null,null,null,46201.95,46727.424746730649,null,null,null,null,43066.255422680806,null,null,null,null,36535.625836719089,null,null,null,null,35493.59240935315,null,null,null,null,33301.337311766358,null,null,null,null,null,511.39708294747106,528.83022132935002,null,null,null,null,1428.7651215291917,null,null,null,null,1212.1051012309108,null,null,null,null,557.62903716684377,null,null,null,null,484.89883134363481]
["           1.A.1.b. Petroleum refining","WAM",805.72253438339817,851.85,null,null,null,null,851.85,null,null,null,null,781.81,null,null,null,null,781.81,null,null,null,null,800.74,null,null,null,null,null,6.15262263126E-3,6.5300000000000002E-3,null,null,null,null,6.5300000000000002E-3,null,null,null,null,5.9900000000000005E-3,null,null,null,null,5.9900000000000005E-3,null,null,null,null,6.13E-3,null,null,null,null,null,2.0605461312609999E-2,2.1600000000000001E-2,null,null,null,null,2.1600000000000001E-2,null,null,null,null,1.9820000000000001E-2,null,null,null,null,1.9820000000000001E-2,null,null,null,null,2.0300000000000002E-2,null,null,null,null,null,null,null,null,null,null,null,null,null,null,null,null,null,null,null,null,null,null,null,null,null,null,null,null,null,null,null,null,null,null,null,null,null,null,null,null,null,null,null,null,null,null,null,null,null,null,null,null,null,null,null,null,null,null,null,null,null,null,null,null,null,null,null,null,null,null,null,null,null,null,null,null,null,null,null,null,null,null,null,null,null,null,null,null,null,null,null,null,null,null,null,null,null,null,null,null,null,null,null,null,null,null,null,null,null,null,null,null,null,808.0711524603289,854.33593999999994,null,null,null,null,854.33593999999994,null,null,null,null,784.09051999999997,null,null,null,null,784.09051999999997,null,null,null,null,803.07424000000003,null,null,null,null,null,689.08299999999997,722.80998029777766,null,null,null,null,622.80998029777766,null,null,null,null,571.60114475913804,null,null,null,null,571.60114475913804,null,null,null,null,585.44025619717331,null,null,null,null,null,118.98815246032893,131.52595970222228,null,null,null,null,231.52595970222228,null,null,null,null,212.48937524086193,null,null,null,null,212.48937524086193,null,null,null,null,217.63398380282672]
["           1.A.1.c. Manufacture of solid fuels and other energy industries","WAM",5612.0768528429344,5572.35,null,null,null,null,5435.32,null,null,null,null,5334.84,null,null,null,null,5368.34,null,null,null,null,5206.95,null,null,null,null,null,5.4105764162509999E-2,5.3800000000000001E-2,null,null,null,null,5.2479999999999999E-2,null,null,null,null,5.151E-2,null,null,null,null,5.1830000000000001E-2,null,null,null,null,5.0270000000000002E-2,null,null,null,null,null,5.9479087808099997E-2,5.9110000000000003E-2,null,null,null,null,5.7659999999999996E-2,null,null,null,null,5.6590000000000001E-2,null,null,null,null,5.6939999999999998E-2,null,null,null,null,5.5229999999999994E-2,null,null,null,null,null,null,null,null,null,null,null,null,null,null,null,null,null,null,null,null,null,null,null,null,null,null,null,null,null,null,null,null,null,null,null,null,null,null,null,null,null,null,null,null,null,null,null,null,null,null,null,null,null,null,null,null,null,null,null,null,null,null,null,null,null,null,null,null,null,null,null,null,null,null,null,null,null,null,null,null,null,null,null,null,null,null,null,null,null,null,null,null,null,null,null,null,null,null,null,null,null,null,null,null,null,null,null,null,null,null,null,null,null,5629.687347758565,5589.8601500000004,null,null,null,null,5452.4005399999996,null,null,null,null,5351.60473,null,null,null,null,5385.2088400000002,null,null,null,null,5223.3112099999998,null,null,null,null,null,3693.9490000000001,3676.3055690442256,null,null,null,null,2415.4110227358269,null,null,null,null,2370.7585235781648,null,null,null,null,2785.6451294149451,null,null,null,null,2713.9245510773881,null,null,null,null,null,1935.7383477585649,1913.5545809557748,null,null,null,null,3036.9895172641727,null,null,null,null,2980.8462064218352,null,null,null,null,2599.5637105850551,null,null,null,null,2509.3866589226118]
["   1.A.2. Manufacturing industries and construction ","WAM",9953.0458588679703,9978.7371999999996,null,null,null,null,9608.2121999999999,null,null,null,null,9210.8114000000005,null,null,null,null,9782.0768000000007,null,null,null,null,9738.3428000000004,null,null,null,null,null,0.17463061838714,0.16858000000000001,null,null,null,null,0.16455,null,null,null,null,0.16013000000000002,null,null,null,null,0.16612000000000002,null,null,null,null,0.16703000000000001,null,null,null,null,null,1.3086246080927699,1.2978799999999999,null,null,null,null,1.26695,null,null,null,null,1.2329799999999997,null,null,null,null,1.2792699999999997,null,null,null,null,1.2864899999999997,null,null,null,null,null,null,null,null,null,null,null,null,null,null,null,null,null,null,null,null,null,null,null,null,null,null,null,null,null,null,null,null,null,null,null,null,null,null,null,null,null,null,null,null,null,null,null,null,null,null,null,null,null,null,null,null,null,null,null,null,null,null,null,null,null,null,null,null,null,null,null,null,null,null,null,null,null,null,null,null,null,null,null,null,null,null,null,null,null,null,null,null,null,null,null,null,null,null,null,null,null,null,null,null,null,null,null,null,null,null,null,null,null,10037.801398349658,10061.421039999999,null,null,null,null,9688.9220000000005,null,null,null,null,9289.3549999999996,null,null,null,null,9863.5630000000001,null,null,null,null,9820.2800000000007,null,null,null,null,null,4938.7449999999999,4950.3662089154896,null,null,null,null,4743.9870000000001,null,null,null,null,4537.4459999999999,null,null,null,null,5320.9160000000002,null,null,null,null,5301.6570000000002,null,null,null,null,null,5099.0563983496586,5111.0548310845097,null,null,null,null,4944.9009999999998,null,null,null,null,4751.9049999999997,null,null,null,null,4542.6459999999997,null,null,null,null,4518.6229999999996]
["   1.A.3. Transport","WAM",16491.193937786218,16375.360816412331,null,null,null,null,17485.580348112664,null,null,null,null,16956.908511904414,null,null,null,null,14833.593053800279,null,null,null,null,11890.74879162706,null,null,null,null,null,2.1549123188144299,2.2404015777674058,null,null,null,null,2.6511194637031368,null,null,null,null,2.8380655250859022,null,null,null,null,2.65211237530889,null,null,null,null,2.206651298924208,null,null,null,null,null,0.95092892529947004,0.89336712368547755,null,null,null,null,0.60949621277031885,null,null,null,null,0.42392163078673184,null,null,null,null,0.31798307493277933,null,null,null,null,0.24076095629889382,null,null,null,null,null,null,null,null,null,null,null,null,null,null,null,null,null,null,null,null,null,null,null,null,null,null,null,null,null,null,null,null,null,null,null,null,null,null,null,null,null,null,null,null,null,null,null,null,null,null,null,null,null,null,null,null,null,null,null,null,null,null,null,null,null,null,null,null,null,null,null,null,null,null,null,null,null,null,null,null,null,null,null,null,null,null,null,null,null,null,null,null,null,null,null,null,null,null,null,null,null,null,null,null,null,null,null,null,null,null,null,null,null,17157.131031925408,17065.334664679154,null,null,null,null,18290.851353615457,null,null,null,null,17813.250079149682,null,null,null,null,15631.872118515648,null,null,null,null,12554.349902613947,null,null,null,null,null,null,null,null,null,null,null,null,null,null,null,null,null,null,null,null,null,null,null,null,null,null,null,null,null,null,null,null,17150.045149129925,17055.022656179153,null,null,null,null,18276.081787165458,null,null,null,null,17793.099192749683,null,null,null,null,15606.339912165648,null,null,null,null,12523.446508313948]
["      1.A.3.a. Domestic aviation","WAM",7.0206,10.2345285,null,null,null,null,14.64559845,null,null,null,null,19.976258399999999,null,null,null,null,25.30691835,null,null,null,null,30.637578299999998,null,null,null,null,null,2.1457864343E-4,2.5999999999999998E-4,null,null,null,null,4.1599999999999997E-4,null,null,null,null,5.8600000000000004E-4,null,null,null,null,7.5600000000000005E-4,null,null,null,null,8.92E-4,null,null,null,null,null,5.3534389480000002E-5,0,null,null,null,null,0,null,null,null,null,0,null,null,null,null,0,null,null,null,null,0,null,null,null,null,null,null,null,null,null,null,null,null,null,null,null,null,null,null,null,null,null,null,null,null,null,null,null,null,null,null,null,null,null,null,null,null,null,null,null,null,null,null,null,null,null,null,null,null,null,null,null,null,null,null,null,null,null,null,null,null,null,null,null,null,null,null,null,null,null,null,null,null,null,null,null,null,null,null,null,null,null,null,null,null,null,null,null,null,null,null,null,null,null,null,null,null,null,null,null,null,null,null,null,null,null,null,null,null,null,null,null,null,null,7.0858827954791401,10.312008499999999,null,null,null,null,14.769566449999999,null,null,null,null,20.150886399999997,null,null,null,null,25.532206349999999,null,null,null,null,30.903394299999999]
["      1.A.3.b. Road transportation","WAM",16117.126133454001,16004.411759777789,null,null,null,null,17109.109755921723,null,null,null,null,16576.016484718093,null,null,null,null,14448.902325885891,null,null,null,null,11501.766642733162,null,null,null,null,null,2.0486193903999999,2.1376003600861471,null,null,null,null,2.5571450499625716,null,null,null,null,2.7530900226680011,null,null,null,null,2.5761369278648858,null,null,null,null,2.1378760015402052,null,null,null,null,null,0.93312762540000005,0.87586880456670757,null,null,null,null,0.5934607606183675,null,null,null,null,0.40921906338469283,null,null,null,null,0.30461591159391854,null,null,null,null,0.22870462552583418,null,null,null,null,null,null,null,null,null,null,null,null,null,null,null,null,null,null,null,null,null,null,null,null,null,null,null,null,null,null,null,null,null,null,null,null,null,null,null,null,null,null,null,null,null,null,null,null,null,null,null,null,null,null,null,null,null,null,null,null,null,null,null,null,null,null,null,null,null,null,null,null,null,null,null,null,null,null,null,null,null,null,null,null,null,null,null,null,null,null,null,null,null,null,null,null,null,null,null,null,null,null,null,null,null,null,null,null,null,null,null,null,null,16750.9429024282,16663.313387197628,null,null,null,null,17885.975499826029,null,null,null,null,17406.667788057774,null,null,null,null,15224.206528179475,null,null,null,null,12144.57130683029,null,null,null,null,null,null,null,null,null,null,null,null,null,null,null,null,null,null,null,null,null,null,null,null,null,null,null,null,null,null,null,null,16750.9429024282,16663.313387197628,null,null,null,null,17885.975499826029,null,null,null,null,17406.667788057774,null,null,null,null,15224.206528179475,null,null,null,null,12144.57130683029]
["      1.A.3.c. Railways","WAM",273.77964120000001,264.41000000000003,null,null,null,null,249.22800000000001,null,null,null,null,232.113,null,null,null,null,214.99799999999999,null,null,null,null,197.88300000000001,null,null,null,null,null,0.10566933520000001,0.10205,null,null,null,null,9.3120999999999995E-2,null,null,null,null,8.3956000000000003E-2,null,null,null,null,7.4790999999999996E-2,null,null,null,null,6.7459000000000005E-2,null,null,null,null,null,1.53331378E-2,1.481E-2,null,null,null,null,1.3517E-2,null,null,null,null,1.2192E-2,null,null,null,null,1.0867E-2,null,null,null,null,9.5420000000000105E-3,null,null,null,null,null,null,null,null,null,null,null,null,null,null,null,null,null,null,null,null,null,null,null,null,null,null,null,null,null,null,null,null,null,null,null,null,null,null,null,null,null,null,null,null,null,null,null,null,null,null,null,null,null,null,null,null,null,null,null,null,null,null,null,null,null,null,null,null,null,null,null,null,null,null,null,null,null,null,null,null,null,null,null,null,null,null,null,null,null,null,null,null,null,null,null,null,null,null,null,null,null,null,null,null,null,null,null,null,null,null,null,null,null,305.65243153460005,295.19115000000005,null,null,null,null,277.31598300000002,null,null,null,null,257.436688,null,null,null,null,237.55739299999996,null,null,null,null,218.224332,null,null,null,null,null,null,null,null,null,null,null,null,null,null,null,null,null,null,null,null,null,null,null,null,null,null,null,null,null,null,null,null,305.65243153460005,295.19115000000005,null,null,null,null,277.31598300000002,null,null,null,null,257.436688,null,null,null,null,237.55739299999996,null,null,null,null,218.224332]
["          1.A.3.d. Domestic navigation","WAM",9.5504525999999998,12.74,null,null,null,null,28.6666666666667,null,null,null,null,44.591666666666697,null,null,null,null,60.516666666666701,null,null,null,null,76.441666666666706,null,null,null,null,null,2.5777200000000002E-4,3.4000000000000002E-4,null,null,null,null,2.8499999999999999E-4,null,null,null,null,2.7999999999999998E-4,null,null,null,null,2.7500000000000002E-4,null,null,null,null,2.7099999999999997E-4,null,null,null,null,null,9.0220199999999995E-4,1.1999999999999999E-3,null,null,null,null,1.0200000000000001E-3,null,null,null,null,1.0200000000000001E-3,null,null,null,null,1.0200000000000001E-3,null,null,null,null,1.0200000000000001E-3,null,null,null,null,null,null,null,null,null,null,null,null,null,null,null,null,null,null,null,null,null,null,null,null,null,null,null,null,null,null,null,null,null,null,null,null,null,null,null,null,null,null,null,null,null,null,null,null,null,null,null,null,null,null,null,null,null,null,null,null,null,null,null,null,null,null,null,null,null,null,null,null,null,null,null,null,null,null,null,null,null,null,null,null,null,null,null,null,null,null,null,null,null,null,null,null,null,null,null,null,null,null,null,null,null,null,null,null,null,null,null,null,null,9.6498237059999994,12.871319999999999,null,null,null,null,28.777096666666701,null,null,null,null,44.700606666666701,null,null,null,null,60.624116666666701,null,null,null,null,76.547924666666702,null,null,null,null,null,null,null,null,null,null,null,null,null,null,null,null,null,null,null,null,null,null,null,null,null,null,null,null,null,null,null,null,9.6498237059999994,12.871319999999999,null,null,null,null,28.777096666666701,null,null,null,null,44.700606666666701,null,null,null,null,60.624116666666701,null,null,null,null,76.547924666666702]
["      1.A.3.e. Other transportation","WAM",83.717110532216211,83.56452813454321,null,null,null,null,83.930327074276192,null,null,null,null,84.211102119655408,null,null,null,null,83.869142897724359,null,null,null,null,84.019903927230644,null,null,null,null,null,1.5124257099999999E-4,1.5121768125872845E-4,null,null,null,null,1.5241374056544223E-4,null,null,null,null,1.535024179007343E-4,null,null,null,null,1.5344744400447205E-4,null,null,null,null,1.5329738400283175E-4,null,null,null,null,null,1.5124257099899999E-3,1.4883191187700161E-3,null,null,null,null,1.4984521519513577E-3,null,null,null,null,1.4905674020390222E-3,null,null,null,null,1.4801633388607288E-3,null,null,null,null,1.4943307730596292E-3,null,null,null,null,null,null,null,null,null,null,null,null,null,null,null,null,null,null,null,null,null,null,null,null,null,null,null,null,null,null,null,null,null,null,null,null,null,null,null,null,null,null,null,null,null,null,null,null,null,null,null,null,null,null,null,null,null,null,null,null,null,null,null,null,null,null,null,null,null,null,null,null,null,null,null,null,null,null,null,null,null,null,null,null,null,null,null,null,null,null,null,null,null,null,null,null,null,null,null,null,null,null,null,null,null,null,null,null,null,null,null,null,null,83.799991461123952,83.646798981527553,null,null,null,null,84.013207672763471,null,null,null,null,84.294110025240798,null,null,null,null,83.951874319509201,null,null,null,null,84.102944816989975,null,null,null,null,null,null,null,null,null,null,null,null,null,null,null,null,null,null,null,null,null,null,null,null,null,null,null,null,null,null,null,null,83.799991461123952,83.646798981527553,null,null,null,null,84.013207672763471,null,null,null,null,84.294110025240798,null,null,null,null,83.951874319509201,null,null,null,null,84.102944816989975]
["  1.A.4. Other sectors","WAM",9714.4085951980942,10100.879999999999,null,null,null,null,10138.316858275521,null,null,null,null,9889.5746174624473,null,null,null,null,9494.0861207951966,null,null,null,null,9514.2127085640986,null,null,null,null,null,0.32095453036454002,0.35557,null,null,null,null,0.37865000000000004,null,null,null,null,0.39417000000000008,null,null,null,null,0.38918000000000003,null,null,null,null,0.37357000000000007,null,null,null,null,null,22.589944218559211,22.690629999999999,null,null,null,null,22.581429999999997,null,null,null,null,21.943149999999999,null,null,null,null,21.083860000000001,null,null,null,null,20.813019999999998,null,null,null,null,null,null,null,null,null,null,null,null,null,null,null,null,null,null,null,null,null,null,null,null,null,null,null,null,null,null,null,null,null,null,null,null,null,null,null,null,null,null,null,null,null,null,null,null,null,null,null,null,null,null,null,null,null,null,null,null,null,null,null,null,null,null,null,null,null,null,null,null,null,null,null,null,null,null,null,null,null,null,null,null,null,null,null,null,null,null,null,null,null,null,null,null,null,null,null,null,null,null,null,null,null,null,null,null,null,null,null,null,null,10374.801650710708,10774.105609999999,null,null,null,null,10815.69030827552,null,null,null,null,10555.616027462445,null,null,null,null,10137.158260795195,null,null,null,null,10145.862068564098,null,null,null,null,null,null,null,null,null,null,null,null,null,null,null,null,null,null,null,null,null,null,null,null,null,null,null,null,null,null,null,null,10374.801650710708,10774.105609999999,null,null,null,null,10815.69030827552,null,null,null,null,10555.616027462445,null,null,null,null,10137.158260795195,null,null,null,null,10145.862068564098]
["      1.A.4.a. Commercial/Institutional","WAM",2537.8613316074484,2554.58,null,null,null,null,2836.43,null,null,null,null,2957.65,null,null,null,null,3036.34,null,null,null,null,3092.4199999999996,null,null,null,null,null,7.8086568048999997E-3,7.0000000000000001E-3,null,null,null,null,7.8499999999999993E-3,null,null,null,null,8.2400000000000008E-3,null,null,null,null,8.5000000000000006E-3,null,null,null,null,8.6800000000000002E-3,null,null,null,null,null,0.39220456024514999,0.40391000000000005,null,null,null,null,0.5706,null,null,null,null,0.55032999999999987,null,null,null,null,0.56781999999999999,null,null,null,null,0.54837000000000002,null,null,null,null,null,null,null,null,null,null,null,null,null,null,null,null,null,null,null,null,null,null,null,null,null,null,null,null,null,null,null,null,null,null,null,null,null,null,null,null,null,null,null,null,null,null,null,null,null,null,null,null,null,null,null,null,null,null,null,null,null,null,null,null,null,null,null,null,null,null,null,null,null,null,null,null,null,null,null,null,null,null,null,null,null,null,null,null,null,null,null,null,null,null,null,null,null,null,null,null,null,null,null,null,null,null,null,null,null,null,null,null,null,2549.9934253414376,2566.7637499999996,null,null,null,null,2853.0342999999998,null,null,null,null,2973.8637699999999,null,null,null,null,3053.0684999999999,null,null,null,null,3108.7158899999995,null,null,null,null,null,null,null,null,null,null,null,null,null,null,null,null,null,null,null,null,null,null,null,null,null,null,null,null,null,null,null,null,2549.9934253414376,2566.7637499999996,null,null,null,null,2853.0342999999998,null,null,null,null,2973.8637699999999,null,null,null,null,3053.0684999999999,null,null,null,null,3108.7158899999995]
["          1.A.4.b. Residential      ","WAM",5953.8266723819261,5885.38,null,null,null,null,5606.8168582755206,null,null,null,null,5311.3846174624459,null,null,null,null,4917.4861207951963,null,null,null,null,4970.2127085640996,null,null,null,null,null,0.23650816008313,0.24,null,null,null,null,0.26,null,null,null,null,0.28000000000000003,null,null,null,null,0.28000000000000003,null,null,null,null,0.27,null,null,null,null,null,21.87777247415633,21.852439999999998,null,null,null,null,21.567619999999998,null,null,null,null,20.969100000000001,null,null,null,null,20.113309999999998,null,null,null,null,19.885110000000001,null,null,null,null,null,null,null,null,null,null,null,null,null,null,null,null,null,null,null,null,null,null,null,null,null,null,null,null,null,null,null,null,null,null,null,null,null,null,null,null,null,null,null,null,null,null,null,null,null,null,null,null,null,null,null,null,null,null,null,null,null,null,null,null,null,null,null,null,null,null,null,null,null,null,null,null,null,null,null,null,null,null,null,null,null,null,null,null,null,null,null,null,null,null,null,null,null,null,null,null,null,null,null,null,null,null,null,null,null,null,null,null,null,6571.2504159406071,6503.2110000000002,null,null,null,null,6223.4873582755199,null,null,null,null,5919.0521174624455,null,null,null,null,5503.7588707951954,null,null,null,null,5547.8004585640992,null,null,null,null,null,null,null,null,null,null,null,null,null,null,null,null,null,null,null,null,null,null,null,null,null,null,null,null,null,null,null,null,6571.2504159406071,6503.2110000000002,null,null,null,null,6223.4873582755199,null,null,null,null,5919.0521174624455,null,null,null,null,5503.7588707951954,null,null,null,null,5547.8004585640992]
["              1.A.4.c. Agriculture/Forestry/Fishing","WAM",1222.7205912087202,1660.92,null,null,null,null,1695.07,null,null,null,null,1620.54,null,null,null,null,1540.26,null,null,null,null,1451.58,null,null,null,null,null,7.6637713476509994E-2,0.10857,null,null,null,null,0.1108,null,null,null,null,0.10593000000000001,null,null,null,null,0.10068000000000001,null,null,null,null,9.4890000000000002E-2,null,null,null,null,null,0.31996718415773001,0.43428,null,null,null,null,0.44320999999999999,null,null,null,null,0.42372000000000004,null,null,null,null,0.40273000000000003,null,null,null,null,0.37954000000000004,null,null,null,null,null,null,null,null,null,null,null,null,null,null,null,null,null,null,null,null,null,null,null,null,null,null,null,null,null,null,null,null,null,null,null,null,null,null,null,null,null,null,null,null,null,null,null,null,null,null,null,null,null,null,null,null,null,null,null,null,null,null,null,null,null,null,null,null,null,null,null,null,null,null,null,null,null,null,null,null,null,null,null,null,null,null,null,null,null,null,null,null,null,null,null,null,null,null,null,null,null,null,null,null,null,null,null,null,null,null,null,null,null,1253.5578094286634,1704.13086,null,null,null,null,1739.1686499999998,null,null,null,null,1662.7001400000001,null,null,null,null,1580.33089,null,null,null,null,1489.3457199999998,null,null,null,null,null,null,null,null,null,null,null,null,null,null,null,null,null,null,null,null,null,null,null,null,null,null,null,null,null,null,null,null,1253.5578094286634,1704.13086,null,null,null,null,1739.1686499999998,null,null,null,null,1662.7001400000001,null,null,null,null,1580.33089,null,null,null,null,1489.3457199999998]
["      1.A.5. Other","WAM",331.57735460000009,369.72,null,null,null,null,423.5,null,null,null,null,453.21,null,null,null,null,474.23,null,null,null,null,490.65,null,null,null,null,null,3.2781350135950002E-2,3.3489999999999999E-2,null,null,null,null,3.8369999999999994E-2,null,null,null,null,4.1059999999999999E-2,null,null,null,null,4.2959999999999998E-2,null,null,null,null,4.4450000000000003E-2,null,null,null,null,null,3.4064220584619997E-2,3.3489999999999999E-2,null,null,null,null,3.8369999999999994E-2,null,null,null,null,4.1059999999999999E-2,null,null,null,null,4.2959999999999998E-2,null,null,null,null,4.4450000000000003E-2,null,null,null,null,null,null,null,null,null,null,null,null,null,null,null,null,null,null,null,null,null,null,null,null,null,null,null,null,null,null,null,null,null,null,null,null,null,null,null,null,null,null,null,null,null,null,null,null,null,null,null,null,null,null,null,null,null,null,null,null,null,null,null,null,null,null,null,null,null,null,null,null,null,null,null,null,null,null,null,null,null,null,null,null,null,null,null,null,null,null,null,null,null,null,null,null,null,null,null,null,null,null,null,null,null,null,null,null,null,null,null,null,null,342.19780245512874,380.53727000000003,null,null,null,null,435.89350999999999,null,null,null,null,466.47237999999999,null,null,null,null,488.10608000000002,null,null,null,null,505.00734999999997,null,null,null,null,null,null,null,null,null,null,null,null,null,null,null,null,null,null,null,null,null,null,null,null,null,null,null,null,null,null,null,null,342.19780245512874,380.53727000000003,null,null,null,null,435.89350999999999,null,null,null,null,466.47237999999999,null,null,null,null,488.10608000000002,null,null,null,null,505.00734999999997]
["   1.B. Fugitive emissions from fuels","WAM",203.13185402431742,201.05,null,null,null,null,184.63,null,null,null,null,160.51,null,null,null,null,155.43,null,null,null,null,123.04,null,null,null,null,null,9.2922077920000004E-5,9.86362895363164E-5,null,null,null,null,1.2027856605522544E-4,null,null,null,null,9.6476738999442033E-5,null,null,null,null,9.9535183496980362E-5,null,null,null,null,1.0431287230483541E-4,null,null,null,null,null,150.39300589749669,151.88999999999999,null,null,null,null,146.63,null,null,null,null,125.53,null,null,null,null,123.03,null,null,null,null,103.52,null,null,null,null,null,null,null,null,null,null,null,null,null,null,null,null,null,null,null,null,null,null,null,null,null,null,null,null,null,null,null,null,null,null,null,null,null,null,null,null,null,null,null,null,null,null,null,null,null,null,null,null,null,null,null,null,null,null,null,null,null,null,null,null,null,null,null,null,null,null,null,null,null,null,null,null,null,null,null,null,null,null,null,null,null,null,null,null,null,null,null,null,null,null,null,null,null,null,null,null,null,null,null,null,null,null,null,null,null,null,null,null,null,3962.9846922409552,3998.3293936142813,null,null,null,null,3850.4158430126845,null,null,null,null,3298.7887500682218,null,null,null,null,3231.2096614846823,null,null,null,null,2711.0710852359471,null,null,null,null,null,null,null,null,null,null,null,null,null,null,null,null,null,null,null,null,null,null,null,null,null,null,null,null,null,null,null,null,3962.9846922409552,3998.3293936142813,null,null,null,null,3850.4158430126845,null,null,null,null,3298.7887500682218,null,null,null,null,3231.2096614846823,null,null,null,null,2711.0710852359471]
["          1.B.1. Solid fuels","WAM",196.82767999999999,194.33,null,null,null,null,176.44,null,null,null,null,153.94,null,null,null,null,148.65,null,null,null,null,115.93,null,null,null,null,null,"NA",null,null,null,null,null,null,null,null,null,null,null,null,null,null,null,null,null,null,null,null,null,null,null,null,null,null,125.37375202841476,123.89,null,null,null,null,112.49,null,null,null,null,98.14,null,null,null,null,94.77,null,null,null,null,73.91,null,null,null,null,null,null,null,null,null,null,null,null,null,null,null,null,null,null,null,null,null,null,null,null,null,null,null,null,null,null,null,null,null,null,null,null,null,null,null,null,null,null,null,null,null,null,null,null,null,null,null,null,null,null,null,null,null,null,null,null,null,null,null,null,null,null,null,null,null,null,null,null,null,null,null,null,null,null,null,null,null,null,null,null,null,null,null,null,null,null,null,null,null,null,null,null,null,null,null,null,null,null,null,null,null,null,null,null,null,null,null,null,null,3331.171480710369,3291.58,null,null,null,null,2988.69,null,null,null,null,2607.44,null,null,null,null,2517.9,null,null,null,null,1963.68,null,null,null,null,null,null,null,null,null,null,null,null,null,null,null,null,null,null,null,null,null,null,null,null,null,null,null,null,null,null,null,null,3331.171480710369,3291.58,null,null,null,null,2988.69,null,null,null,null,2607.44,null,null,null,null,2517.9,null,null,null,null,1963.68]
["          1.B.2. Oil and natural gas and other emissions from energy production","WAM",6.3041740243174296,6.72,null,null,null,null,8.19,null,null,null,null,6.57,null,null,null,null,6.78,null,null,null,null,7.11,null,null,null,null,null,9.2922077920000004E-5,9.86362895363164E-5,null,null,null,null,1.2027856605522544E-4,null,null,null,null,9.6476738999442033E-5,null,null,null,null,9.9535183496980362E-5,null,null,null,null,1.0431287230483541E-4,null,null,null,null,null,25.019253869081918,28,null,null,null,null,34.14,null,null,null,null,27.39,null,null,null,null,28.26,null,null,null,null,29.61,null,null,null,null,null,null,null,null,null,null,null,null,null,null,null,null,null,null,null,null,null,null,null,null,null,null,null,null,null,null,null,null,null,null,null,null,null,null,null,null,null,null,null,null,null,null,null,null,null,null,null,null,null,null,null,null,null,null,null,null,null,null,null,null,null,null,null,null,null,null,null,null,null,null,null,null,null,null,null,null,null,null,null,null,null,null,null,null,null,null,null,null,null,null,null,null,null,null,null,null,null,null,null,null,null,null,null,null,null,null,null,null,null,631.81321153058548,706.74939361428187,null,null,null,null,861.72584301268444,null,null,null,null,691.34875006822188,null,null,null,null,713.30966148468212,null,null,null,null,747.39108523594689,null,null,null,null,null,null,null,null,null,null,null,null,null,null,null,null,null,null,null,null,null,null,null,null,null,null,null,null,null,null,null,null,631.81321153058548,706.74939361428187,null,null,null,null,861.72584301268444,null,null,null,null,691.34875006822188,null,null,null,null,713.30966148468212,null,null,null,null,747.39108523594689]
["       1.C. CO2 transport and storage","WAM","NO"]
["2. Industrial processes","WAM",11229.505187654831,11222.742049333332,null,null,null,null,11195.012049333334,null,null,null,null,11138.802049333333,null,null,null,null,11082.532049333333,null,null,null,null,11029.182049333334,null,null,null,null,null,1.8577999999999999,1.8721300000000001,null,null,null,null,1.86731,null,null,null,null,1.8625,null,null,null,null,1.8569899999999999,null,null,null,null,1.8521800000000002,null,null,null,null,null,22.641452563312981,22.658139999999996,null,null,null,null,22.642969999999998,null,null,null,null,22.627939999999999,null,null,null,null,22.611629999999998,null,null,null,null,22.59675,null,null,null,null,null,2830.3822492779182,2898.8636373444883,null,null,null,null,2333.750686158905,null,null,null,null,1873.3360877055457,null,null,null,null,858.28873074565104,null,null,null,null,340.02386709943687,null,null,null,null,null,5.3419390210361497,6.2665841026495848,null,null,null,null,3.7677709294513426,null,null,null,null,3.547200000000001,null,null,null,null,3.547200000000001,null,null,null,null,3.547200000000001,null,null,null,null,null,96.014766107423995,88.67156785731629,null,null,null,null,105.51246993069348,null,null,null,null,95.652755627626306,null,null,null,null,104.26657917062694,null,null,null,null,93.439720368886285,null,null,null,null,null,2.3529599999999999,2.58,null,null,null,null,2.58,null,null,null,null,2.58,null,null,null,null,2.58,null,null,null,null,2.58,null,null,null,null,null,15283.261090036611,15343.472078637786,0,0,0,0,14763.155606352384,0,0,0,0,14234.641592666507,0,0,0,0,13169.888329249612,0,0,0,0,12585.641226801659,null,null,null,null,null,11171.5,11162.533003366032,0,0,0,0,9640.4146076812649,0,0,0,0,9599.4066515730046,0,0,0,0,10144.485808544605,0,0,0,0,10105.946993122685,null,null,null,null,0,4111.7610900366108,4180.9390752717536,0,0,0,0,5122.7409986711191,0,0,0,0,4635.2349410935021,0,0,0,0,3025.4025207050054,0,0,0,0,2479.6942336789707]
["   2.A. Mineral Industry ","WAM",2543.4782038190565,2549.19,null,null,null,null,2626.76,null,null,null,null,2673.74,null,null,null,null,2721.0299999999997,null,null,null,null,2768.3199999999997,null,null,null,null,null,null,null,null,null,null,null,null,null,null,null,null,null,null,null,null,null,null,null,null,null,null,null,null,null,null,null,null,null,null,null,null,null,null,null,null,null,null,null,null,null,null,null,null,null,null,null,null,null,null,null,null,null,null,null,"NO",null,null,null,null,null,null,null,null,null,null,null,null,null,null,null,null,null,null,null,null,null,null,null,null,null,null,"NO",null,null,null,null,null,null,null,null,null,null,null,null,null,null,null,null,null,null,null,null,null,null,null,null,null,null,"NO",null,null,null,null,null,null,null,null,null,null,null,null,null,null,null,null,null,null,null,null,null,null,null,null,null,null,"NO",null,null,null,null,null,null,null,null,null,null,null,null,null,null,null,null,null,null,null,null,null,null,null,null,null,null,2543.4782038190565,2549.19,null,null,null,null,2626.76,null,null,null,null,2673.74,null,null,null,null,2721.0299999999997,null,null,null,null,2768.3199999999997,null,null,null,null,null,2302.4,2307.8189528186172,0,0,0,0,2277.5261627655022,0,0,0,0,2326.4726635879406,0,0,0,0,2475.6295540746014,0,0,0,0,2524.7864445612627,null,null,null,null,null,241.0782038190564,241.37104718138289,0,0,0,0,349.23383723449763,0,0,0,0,347.26733641205942,0,0,0,0,245.40044592539846,0,0,0,0,243.53355543873738]
["         2.A. of which cement production","WAM",1482,1486.8,null,null,null,null,1539.9,null,null,null,null,1593,null,null,null,null,1646.1,null,null,null,null,1699.2,null,null,null,null,null,null,null,null,null,null,null,null,null,null,null,null,null,null,null,null,null,null,null,null,null,null,null,null,null,null,null,null,null,null,null,null,null,null,null,null,null,null,null,null,null,null,null,null,null,null,null,null,null,null,null,null,null,null,null,"NO",null,null,null,null,null,null,null,null,null,null,null,null,null,null,null,null,null,null,null,null,null,null,null,null,null,null,"NO",null,null,null,null,null,null,null,null,null,null,null,null,null,null,null,null,null,null,null,null,null,null,null,null,null,null,"NO",null,null,null,null,null,null,null,null,null,null,null,null,null,null,null,null,null,null,null,null,null,null,null,null,null,null,"NO",null,null,null,null,null,null,null,null,null,null,null,null,null,null,null,null,null,null,null,null,null,null,null,null,null,null,1482,1486.8,null,null,null,null,1539.9,null,null,null,null,1593,null,null,null,null,1646.1,null,null,null,null,1699.2,null,null,null,null,null,1482,1486.8,null,null,null,null,1539.9,null,null,null,null,1593,null,null,null,null,1646.1,null,null,null,null,1699.2,null,null,null,null,null,0,0,null,null,null,null,0,null,null,null,null,0,null,null,null,null,0,null,null,null,null,0]
["         2.A. of which other non cement production","WAM",1061.4780000000001,1062.3900000000001,null,null,null,null,1086.8599999999999,null,null,null,null,1080.74,null,null,null,null,1074.93,null,null,null,null,1069.1199999999999,null,null,null,null,null,null,null,null,null,null,null,null,null,null,null,null,null,null,null,null,null,null,null,null,null,null,null,null,null,null,null,null,null,null,null,null,null,null,null,null,null,null,null,null,null,null,null,null,null,null,null,null,null,null,null,null,null,null,null,"NO",null,null,null,null,null,null,null,null,null,null,null,null,null,null,null,null,null,null,null,null,null,null,null,null,null,null,"NO",null,null,null,null,null,null,null,null,null,null,null,null,null,null,null,null,null,null,null,null,null,null,null,null,null,null,"NO",null,null,null,null,null,null,null,null,null,null,null,null,null,null,null,null,null,null,null,null,null,null,null,null,null,null,"NO",null,null,null,null,null,null,null,null,null,null,null,null,null,null,null,null,null,null,null,null,null,null,null,null,null,null,1061.4780000000001,1062.3900000000001,null,null,null,null,1086.8599999999999,null,null,null,null,1080.74,null,null,null,null,1074.93,null,null,null,null,1069.1199999999999,null,null,null,null,null,820.4,821.01895281861709,null,null,null,null,737.62616276550227,null,null,null,null,733.47266358794059,null,null,null,null,829.52955407460161,null,null,null,null,825.58644456126251,null,null,null,null,null,241.07800000000009,241.37104718138301,null,null,null,null,349.23383723449763,null,null,null,null,347.26733641205942,null,null,null,null,245.40044592539846,null,null,null,null,243.53355543873738]
["   2.B. Chemical industry","WAM",1989.495374669332,2011.02,null,null,null,null,2002.39,null,null,null,null,1993.76,null,null,null,null,1983.9,null,null,null,null,1975.27,null,null,null,null,null,1.1077999999999999,1.1221300000000001,null,null,null,null,1.11731,null,null,null,null,1.1125,null,null,null,null,1.1069899999999999,null,null,null,null,1.1021800000000002,null,null,null,null,null,2.1288909433129799,2.1529199999999999,null,null,null,null,2.1436799999999998,null,null,null,null,2.1344400000000001,null,null,null,null,2.1238800000000002,null,null,null,null,2.1146400000000001,null,null,null,null,null,"NO",null,null,null,null,null,null,null,null,null,null,null,null,null,null,null,null,null,null,null,null,null,null,null,null,null,null,"NO",null,null,null,null,null,null,null,null,null,null,null,null,null,null,null,null,null,null,null,null,null,null,null,null,null,null,"NO",null,null,null,null,null,null,null,null,null,null,null,null,null,null,null,null,null,null,null,null,null,null,null,null,null,null,"NO",null,null,null,null,null,null,null,null,null,null,null,null,null,null,null,null,null,null,null,null,null,null,null,null,null,null,2372.8420482521565,2399.23774,null,null,null,null,2388.9403800000005,null,null,null,null,2378.6459999999997,null,null,null,null,2366.8800200000001,null,null,null,null,2356.5856400000002,null,null,null,null,null,2126.6999999999998,2142.5707291302379,null,null,null,null,1436.3793168013722,null,null,null,null,1430.1896962335725,null,null,null,null,1623.1152583550106,null,null,null,null,1616.9256377872116,null,null,null,null,null,246.14204825215666,256.66701086976218,null,null,null,null,952.56106319862829,null,null,null,null,948.45630376642725,null,null,null,null,743.76476164498945,null,null,null,null,739.66000221278864]
["   2.C. Metal industry","WAM",6579.8895598331092,6545.8899999999994,null,null,null,null,6449.22,null,null,null,null,6354.66,null,null,null,null,6260.96,null,null,null,null,6168.95,null,null,null,null,null,"NA",null,null,null,null,null,null,null,null,null,null,null,null,null,null,null,null,null,null,null,null,null,null,null,null,null,null,20.51256162,20.505219999999998,null,null,null,null,20.499289999999998,null,null,null,null,20.493499999999997,null,null,null,null,20.487749999999998,null,null,null,null,20.482109999999999,null,null,null,null,null,"NO",null,null,null,null,null,null,null,null,null,null,null,null,null,null,null,null,null,null,null,null,null,null,null,null,null,null,"NO",null,null,null,null,null,null,null,null,null,null,null,null,null,null,null,null,null,null,null,null,null,null,null,null,null,null,"NO",null,null,null,null,null,null,null,null,null,null,null,null,null,null,null,null,null,null,null,null,null,null,null,null,null,null,"NO",null,null,null,null,null,null,null,null,null,null,null,null,null,null,null,null,null,null,null,null,null,null,null,null,null,null,7092.7036003331095,7058.5204999999996,null,null,null,null,6961.7022500000003,null,null,null,null,6866.9974999999995,null,null,null,null,6773.1537499999995,null,null,null,null,6681.0027499999997,null,null,null,null,null,6742.4,6712.1433214171766,0,0,0,0,5926.5091281143896,0,0,0,0,5842.7442917514927,0,0,0,0,6045.7409961149933,0,0,0,0,5964.2349107742111,null,null,null,null,null,350.3036003331099,346.37717858282303,0,0,0,0,1035.1931218856109,0,0,0,0,1024.2532082485079,0,0,0,0,727.41275388500662,0,0,0,0,716.76783922578807]
["         2.C. of which Iron and steel production","WAM",6498.7856926131089,6464.73,null,null,null,null,6368.06,null,null,null,null,6273.5,null,null,null,null,6179.8,null,null,null,null,6087.79,null,null,null,null,null,null,null,null,null,null,null,null,null,null,null,null,null,null,null,null,null,null,null,null,null,null,null,null,null,null,null,null,0.40376161999999999,0.39641999999999999,null,null,null,null,0.39049,null,null,null,null,0.38469999999999999,null,null,null,null,0.37895000000000001,null,null,null,null,0.37330999999999998,null,null,null,null,null,"NO",null,null,null,null,null,null,null,null,null,null,null,null,null,null,null,null,null,null,null,null,null,null,null,null,null,null,"NO",null,null,null,null,null,null,null,null,null,null,null,null,null,null,null,null,null,null,null,null,null,null,null,null,null,null,"NO",null,null,null,null,null,null,null,null,null,null,null,null,null,null,null,null,null,null,null,null,null,null,null,null,null,null,"NO",null,null,null,null,null,null,null,null,null,null,null,null,null,null,null,null,null,null,null,null,null,null,null,null,null,null,6508.8797331131091,6474.6404999999995,null,null,null,null,6377.8222500000002,null,null,null,null,6283.1175000000003,null,null,null,null,6189.2737500000003,null,null,null,null,6097.1227499999995,null,null,null,null,null,6357,6326.7159460437761,null,null,null,null,5641.081752740989,null,null,null,null,5557.3169163780922,null,null,null,null,5674.3136207415937,null,null,null,null,5592.8075354008115,null,null,null,null,null,151.87973311310907,147.92455395622346,null,null,null,null,736.74049725901114,null,null,null,null,725.80058362190812,null,null,null,null,514.9601292584066,null,null,null,null,504.31521459918804]
["         2.C. of which other non Iron and steel production","WAM",81.103999999999999,81.16,null,null,null,null,81.16,null,null,null,null,81.16,null,null,null,null,81.16,null,null,null,null,81.16,null,null,null,null,null,null,null,null,null,null,null,null,null,null,null,null,null,null,null,null,null,null,null,null,null,null,null,null,null,null,null,null,20.108799999999999,20.108799999999999,null,null,null,null,20.108799999999999,null,null,null,null,20.108799999999999,null,null,null,null,20.108799999999999,null,null,null,null,20.108799999999999,null,null,null,null,null,"NO",null,null,null,null,null,null,null,null,null,null,null,null,null,null,null,null,null,null,null,null,null,null,null,null,null,null,"NO",null,null,null,null,null,null,null,null,null,null,null,null,null,null,null,null,null,null,null,null,null,null,null,null,null,null,"NO",null,null,null,null,null,null,null,null,null,null,null,null,null,null,null,null,null,null,null,null,null,null,null,null,null,null,"NO",null,null,null,null,null,null,null,null,null,null,null,null,null,null,null,null,null,null,null,null,null,null,null,null,null,null,583.82399999999996,583.88,null,null,null,null,583.88,null,null,null,null,583.88,null,null,null,null,583.88,null,null,null,null,583.88,null,null,null,null,null,385.4,385.4273753734002,null,null,null,null,285.4273753734002,null,null,null,null,285.4273753734002,null,null,null,null,371.42737537340003,null,null,null,null,371.42737537340003,null,null,null,null,null,198.42399999999998,198.4526246265998,null,null,null,null,298.4526246265998,null,null,null,null,298.4526246265998,null,null,null,null,212.4526246266,null,null,null,null,212.4526246266]
["       2.D. Non-energy products from fuels and solvent use","WAM",116.64204933333333,116.64204933333333,null,null,null,null,116.64204933333333,null,null,null,null,116.64204933333333,null,null,null,null,116.64204933333333,null,null,null,null,116.64204933333333,null,null,null,null,null,"NA",null,null,null,null,null,null,null,null,null,null,null,null,null,null,null,null,null,null,null,null,null,null,null,null,null,null,"NA",null,null,null,null,null,null,null,null,null,null,null,null,null,null,null,null,null,null,null,null,null,null,null,null,null,null,"NO",null,null,null,null,null,null,null,null,null,null,null,null,null,null,null,null,null,null,null,null,null,null,null,null,null,null,"NO",null,null,null,null,null,null,null,null,null,null,null,null,null,null,null,null,null,null,null,null,null,null,null,null,null,null,"NO",null,null,null,null,null,null,null,null,null,null,null,null,null,null,null,null,null,null,null,null,null,null,null,null,null,null,"NO",null,null,null,null,null,null,null,null,null,null,null,null,null,null,null,null,null,null,null,null,null,null,null,null,null,null,116.64204933333333,116.64204933333333,null,null,null,null,116.64204933333333,null,null,null,null,116.64204933333333,null,null,null,null,116.64204933333333,null,null,null,null,116.64204933333333,null,null,null,null,null,null,null,null,null,null,null,null,null,null,null,null,null,null,null,null,null,null,null,null,null,null,null,null,null,null,null,null,116.64204933333333,116.64204933333333,null,null,null,null,116.64204933333333,null,null,null,null,116.64204933333333,null,null,null,null,116.64204933333333,null,null,null,null,116.64204933333333]
["       2.E. Electronics industry","WAM",null,null,null,null,null,null,null,null,null,null,null,null,null,null,null,null,null,null,null,null,null,null,null,null,null,null,null,null,null,null,null,null,null,null,null,null,null,null,null,null,null,null,null,null,null,null,null,null,null,null,null,null,null,null,null,null,null,null,null,null,null,null,null,null,null,null,null,null,null,null,null,null,null,null,null,null,null,null,null,null,null,"NO",null,null,null,null,null,null,null,null,null,null,null,null,null,null,null,null,null,null,null,null,null,null,null,null,null,null,0.45492840000000001,2.0010641999999996,null,null,null,null,3.5471999999999997,null,null,null,null,3.5471999999999997,null,null,null,null,3.5471999999999997,null,null,null,null,3.5471999999999997,null,null,null,null,null,17.198,15.882698941368485,null,null,null,null,18.899212396537397,null,null,null,null,17.133157304610883,null,null,null,null,18.676050583409076,null,null,null,null,16.736762229948845,null,null,null,null,null,2.3530000000000002,2.58,null,null,null,null,2.58,null,null,null,null,2.58,null,null,null,null,2.58,null,null,null,null,2.58,null,null,null,null,null,20.005928400000002,20.463763141368482,null,null,null,null,25.026412396537395,null,null,null,null,23.260357304610885,null,null,null,null,24.803250583409074,null,null,null,null,22.863962229948847,null,null,null,null,null,null,null,null,null,null,null,null,null,null,null,null,null,null,null,null,null,null,null,null,null,null,null,null,null,null,null,null,20.005928400000002,20.463763141368482,null,null,null,null,25.026412396537395,null,null,null,null,23.260357304610885,null,null,null,null,24.803250583409074,null,null,null,null,22.863962229948847]
["       2.F. Product uses as substitutes for ODS(2)","WAM",null,null,null,null,null,null,null,null,null,null,null,null,null,null,null,null,null,null,null,null,null,null,null,null,null,null,null,null,null,null,null,null,null,null,null,null,null,null,null,null,null,null,null,null,null,null,null,null,null,null,null,null,null,null,null,null,null,null,null,null,null,null,null,null,null,null,null,null,null,null,null,null,null,null,null,null,null,null,null,null,null,2830.3822492779182,2898.8636373444883,null,null,null,null,2333.750686158905,null,null,null,null,1873.3360877055457,null,null,null,null,858.28873074565104,null,null,null,null,340.02386709943687,null,null,null,null,null,4.8870106210361497,4.2655199026495856,null,null,null,null,0.22057092945134266,null,null,null,null,1.4305041251323359E-15,null,null,null,null,1.4305041251323359E-15,null,null,null,null,1.4305041251323359E-15,null,null,null,null,null,"NO",null,null,null,null,null,null,null,null,null,null,null,null,null,null,null,null,null,null,null,null,null,null,null,null,null,null,"NO",null,null,null,null,null,null,null,null,null,null,null,null,null,null,null,null,null,null,null,null,null,null,null,null,null,null,2835.2692598989543,2903.1291572471378,null,null,null,null,2333.9712570883562,null,null,null,null,1873.3360877055457,null,null,null,null,858.28873074565104,null,null,null,null,340.02386709943687,null,null,null,null,null,null,null,null,null,null,null,null,null,null,null,null,null,null,null,null,null,null,null,null,null,null,null,null,null,null,null,null,2835.2692598989543,2903.1291572471378,null,null,null,null,2333.9712570883562,null,null,null,null,1873.3360877055457,null,null,null,null,858.28873074565104,null,null,null,null,340.02386709943687]
["       2.G. Other product manufacture and use","WAM","NO",null,null,null,null,null,null,null,null,null,null,null,null,null,null,null,null,null,null,null,null,null,null,null,null,null,null,0.75,0.75,null,null,null,null,0.75,null,null,null,null,0.75,null,null,null,null,0.75,null,null,null,null,0.75,null,null,null,null,null,"NO",null,null,null,null,null,null,null,null,null,null,null,null,null,null,null,null,null,null,null,null,null,null,null,null,null,null,"NO",null,null,null,null,null,null,null,null,null,null,null,null,null,null,null,null,null,null,null,null,null,null,null,null,null,null,"NO",null,null,null,null,null,null,null,null,null,null,null,null,null,null,null,null,null,null,null,null,null,null,null,null,null,null,78.819999999999993,72.788868915947802,null,null,null,null,86.613257534156091,null,null,null,null,78.51959832301543,null,null,null,null,85.590528587217861,null,null,null,null,76.702958138937447,null,null,null,null,null,null,null,null,null,null,null,null,null,null,null,null,null,null,null,null,null,null,null,null,null,null,null,null,null,null,null,null,302.32,296.28886891594777,0,0,0,0,310.11325753415611,0,0,0,0,302.01959832301543,0,0,0,0,309.09052858721788,0,0,0,0,300.20295813893745,null,null,null,null,null,null,null,null,null,null,null,null,null,null,null,null,null,null,null,null,null,null,null,null,null,null,null,null,null,null,null,null,302.32,296.28886891594777,0,0,0,0,310.11325753415611,0,0,0,0,302.01959832301543,0,0,0,0,309.09052858721788,0,0,0,0,300.20295813893745]
["       2.H. Other (please specify)","WAM","NO",null,null,null,null,null,null,null,null,null,null,null,null,null,null,null,null,null,null,null,null,null,null,null,null,null,null,"NO",null,null,null,null,null,null,null,null,null,null,null,null,null,null,null,null,null,null,null,null,null,null,null,null,null,null,"NO",null,null,null,null,null,null,null,null,null,null,null,null,null,null,null,null,null,null,null,null,null,null,null,null,null,null,"NO",null,null,null,null,null,null,null,null,null,null,null,null,null,null,null,null,null,null,null,null,null,null,null,null,null,null,"NO",null,null,null,null,null,null,null,null,null,null,null,null,null,null,null,null,null,null,null,null,null,null,null,null,null,null,"NO",null,null,null,null,null,null,null,null,null,null,null,null,null,null,null,null,null,null,null,null,null,null,null,null,null,null,"NO"]
["3. Agriculture","WAM",207.3195771428571,212.13,null,null,null,null,217,null,null,null,null,217,null,null,null,null,217,null,null,null,null,217,null,null,null,null,null,15.08178438198618,14.495655538663913,null,null,null,null,14.931749458335062,null,null,null,null,15.493503917496096,null,null,null,null,15.439586053060719,null,null,null,null,15.74994,null,null,null,null,null,143.41867869119969,146.69635546777914,null,null,null,null,157.17778597912616,null,null,null,null,167.34554645664599,null,null,null,null,178.43903330344656,null,null,null,null,183.45973424751622,null,null,null,null,null,null,null,null,null,null,null,null,null,null,null,null,null,null,null,null,null,null,null,null,null,null,null,null,null,null,null,null,null,null,null,null,null,null,null,null,null,null,null,null,null,null,null,null,null,null,null,null,null,null,null,null,null,null,null,null,null,null,null,null,null,null,null,null,null,null,null,null,null,null,null,null,null,null,null,null,null,null,null,null,null,null,null,null,null,null,null,null,null,null,null,null,null,null,null,null,null,null,null,null,null,null,null,null,null,null,null,null,null,8287.1582902547307,8199.2442372163241,null,null,null,null,8596.1059880620014,null,null,null,null,9017.702828829988,null,null,null,null,9278.9724763982595,null,null,null,null,9496.9754761879049,null,null,null,null,null,null,null,null,null,null,null,null,null,null,null,null,null,null,null,null,null,null,null,null,null,null,null,null,null,null,null,null,8287.1582902547307,8199.2442372163241,null,null,null,null,8596.1059880620014,null,null,null,null,9017.702828829988,null,null,null,null,9278.9724763982595,null,null,null,null,9496.9754761879049]
["      3.A. Enteric fermentation","WAM",null,null,null,null,null,null,null,null,null,null,null,null,null,null,null,null,null,null,null,null,null,null,null,null,null,null,null,null,null,null,null,null,null,null,null,null,null,null,null,null,null,null,null,null,null,null,null,null,null,null,null,null,null,null,112.69088456461427,115.83778045181379,null,null,null,null,123.68325197008993,null,null,null,null,130.92834473777933,null,null,null,null,139.50466554348085,null,null,null,null,143.3140124069223,null,null,null,null,null,null,null,null,null,null,null,null,null,null,null,null,null,null,null,null,null,null,null,null,null,null,null,null,null,null,null,null,null,null,null,null,null,null,null,null,null,null,null,null,null,null,null,null,null,null,null,null,null,null,null,null,null,null,null,null,null,null,null,null,null,null,null,null,null,null,null,null,null,null,null,null,null,null,null,null,null,null,null,null,null,null,null,null,null,null,null,null,null,null,null,null,null,null,null,null,null,null,null,null,null,null,null,null,null,null,null,null,null,2817.2721141153565,2895.9445112953445,null,null,null,null,3092.0812992522483,null,null,null,null,3273.2086184444834,null,null,null,null,3487.6166385870215,null,null,null,null,3582.8503101730576,null,null,null,null,null,null,null,null,null,null,null,null,null,null,null,null,null,null,null,null,null,null,null,null,null,null,null,null,null,null,null,null,2817.2721141153565,2895.9445112953445,null,null,null,null,3092.0812992522483,null,null,null,null,3273.2086184444834,null,null,null,null,3487.6166385870215,null,null,null,null,3582.8503101730576]
["      3.B. Manure management","WAM",null,null,null,null,null,null,null,null,null,null,null,null,null,null,null,null,null,null,null,null,null,null,null,null,null,null,null,4.4027504398042199,4.6413859720133157,null,null,null,null,4.7118077604843274,null,null,null,null,4.9767439350140945,null,null,null,null,5.1156335127125461,null,null,null,null,5.2541200000000003,null,null,null,null,null,30.72779412658543,30.858575015965364,null,null,null,null,33.494534009036215,null,null,null,null,36.417201718866679,null,null,null,null,38.934367759965703,null,null,null,null,40.145721840593907,null,null,null,null,null,null,null,null,null,null,null,null,null,null,null,null,null,null,null,null,null,null,null,null,null,null,null,null,null,null,null,null,null,null,null,null,null,null,null,null,null,null,null,null,null,null,null,null,null,null,null,null,null,null,null,null,null,null,null,null,null,null,null,null,null,null,null,null,null,null,null,null,null,null,null,null,null,null,null,null,null,null,null,null,null,null,null,null,null,null,null,null,null,null,null,null,null,null,null,null,null,null,null,null,null,null,null,null,null,null,null,null,null,2080.2144842262933,2154.5973950591024,null,null,null,null,2241.4820628502348,null,null,null,null,2393.499735605867,null,null,null,null,2497.8179807874812,null,null,null,null,2569.3708060148479,null,null,null,null,null,null,null,null,null,null,null,null,null,null,null,null,null,null,null,null,null,null,null,null,null,null,null,null,null,null,null,null,2080.2144842262933,2154.5973950591024,null,null,null,null,2241.4820628502348,null,null,null,null,2393.499735605867,null,null,null,null,2497.8179807874812,null,null,null,null,2569.3708060148479]
["      3.C. Rice cultivation","WAM",null,null,null,null,null,null,null,null,null,null,null,null,null,null,null,null,null,null,null,null,null,null,null,null,null,null,null,null,null,null,null,null,null,null,null,null,null,null,null,null,null,null,null,null,null,null,null,null,null,null,null,null,null,null,"NO",null,null,null,null,null,null,null,null,null,null,null,null,null,null,null,null,null,null,null,null,null,null,null,null,null,null,null,null,null,null,null,null,null,null,null,null,null,null,null,null,null,null,null,null,null,null,null,null,null,null,null,null,null,null,null,null,null,null,null,null,null,null,null,null,null,null,null,null,null,null,null,null,null,null,null,null,null,null,null,null,null,null,null,null,null,null,null,null,null,null,null,null,null,null,null,null,null,null,null,null,null,null,null,null,null,null,null,null,null,null,null,null,null,null,null,null,null,null,null,null,null,null,null,null,null,null,null,null,null,null,null,null,null,null,"NO"]
["      3.D. Agricultural soils","WAM",null,null,null,null,null,null,null,null,null,null,null,null,null,null,null,null,null,null,null,null,null,null,null,null,null,null,null,10.67903394218196,9.8542695666505971,null,null,null,null,10.219941697850734,null,null,null,null,10.516759982482,null,null,null,null,10.323952540348172,null,null,null,null,10.49582,null,null,null,null,null,"NA",null,null,null,null,null,null,null,null,null,null,null,null,null,null,null,null,null,null,null,null,null,null,null,null,null,null,null,null,null,null,null,null,null,null,null,null,null,null,null,null,null,null,null,null,null,null,null,null,null,null,null,null,null,null,null,null,null,null,null,null,null,null,null,null,null,null,null,null,null,null,null,null,null,null,null,null,null,null,null,null,null,null,null,null,null,null,null,null,null,null,null,null,null,null,null,null,null,null,null,null,null,null,null,null,null,null,null,null,null,null,null,null,null,null,null,null,null,null,null,null,null,null,null,null,null,null,null,null,null,null,null,null,null,null,3182.352114770224,2936.5723308618781,null,null,null,null,3045.5426259595188,null,null,null,null,3133.9944747796362,null,null,null,null,3076.5378570237554,null,null,null,null,3127.7543599999999,null,null,null,null,null,null,null,null,null,null,null,null,null,null,null,null,null,null,null,null,null,null,null,null,null,null,null,null,null,null,null,null,3182.352114770224,2936.5723308618781,null,null,null,null,3045.5426259595188,null,null,null,null,3133.9944747796362,null,null,null,null,3076.5378570237554,null,null,null,null,3127.7543599999999]
["      3.E. Prescribed burning of savannahs","WAM",null,null,null,null,null,null,null,null,null,null,null,null,null,null,null,null,null,null,null,null,null,null,null,null,null,null,null,"NO",null,null,null,null,null,null,null,null,null,null,null,null,null,null,null,null,null,null,null,null,null,null,null,null,null,null,"NO",null,null,null,null,null,null,null,null,null,null,null,null,null,null,null,null,null,null,null,null,null,null,null,null,null,null,null,null,null,null,null,null,null,null,null,null,null,null,null,null,null,null,null,null,null,null,null,null,null,null,null,null,null,null,null,null,null,null,null,null,null,null,null,null,null,null,null,null,null,null,null,null,null,null,null,null,null,null,null,null,null,null,null,null,null,null,null,null,null,null,null,null,null,null,null,null,null,null,null,null,null,null,null,null,null,null,null,null,null,null,null,null,null,null,null,null,null,null,null,null,null,null,null,null,null,null,null,null,null,null,null,null,null,null,"NO"]
["      3.F. Field burning of agricultural residues ","WAM",null,null,null,null,null,null,null,null,null,null,null,null,null,null,null,null,null,null,null,null,null,null,null,null,null,null,null,"NO",null,null,null,null,null,null,null,null,null,null,null,null,null,null,null,null,null,null,null,null,null,null,null,null,null,null,"NO",null,null,null,null,null,null,null,null,null,null,null,null,null,null,null,null,null,null,null,null,null,null,null,null,null,null,null,null,null,null,null,null,null,null,null,null,null,null,null,null,null,null,null,null,null,null,null,null,null,null,null,null,null,null,null,null,null,null,null,null,null,null,null,null,null,null,null,null,null,null,null,null,null,null,null,null,null,null,null,null,null,null,null,null,null,null,null,null,null,null,null,null,null,null,null,null,null,null,null,null,null,null,null,null,null,null,null,null,null,null,null,null,null,null,null,null,null,null,null,null,null,null,null,null,null,null,null,null,null,null,null,null,null,null,"NO"]
["      3.G. Liming","WAM",150.28772000000001,155.13,null,null,null,null,160,null,null,null,null,160,null,null,null,null,160,null,null,null,null,160,null,null,null,null,null,null,null,null,null,null,null,null,null,null,null,null,null,null,null,null,null,null,null,null,null,null,null,null,null,null,null,null,null,null,null,null,null,null,null,null,null,null,null,null,null,null,null,null,null,null,null,null,null,null,null,null,null,null,null,null,null,null,null,null,null,null,null,null,null,null,null,null,null,null,null,null,null,null,null,null,null,null,null,null,null,null,null,null,null,null,null,null,null,null,null,null,null,null,null,null,null,null,null,null,null,null,null,null,null,null,null,null,null,null,null,null,null,null,null,null,null,null,null,null,null,null,null,null,null,null,null,null,null,null,null,null,null,null,null,null,null,null,null,null,null,null,null,null,null,null,null,null,null,null,null,null,null,null,null,null,null,null,null,null,null,null,null,150.28772000000001,155.13,null,null,null,null,160,null,null,null,null,160,null,null,null,null,160,null,null,null,null,160,null,null,null,null,null,null,null,null,null,null,null,null,null,null,null,null,null,null,null,null,null,null,null,null,null,null,null,null,null,null,null,null,150.28772000000001,155.13,null,null,null,null,160,null,null,null,null,160,null,null,null,null,160,null,null,null,null,160]
["      3.H. Urea application ","WAM",57.031857142857099,57,null,null,null,null,57,null,null,null,null,57,null,null,null,null,57,null,null,null,null,57,null,null,null,null,null,null,null,null,null,null,null,null,null,null,null,null,null,null,null,null,null,null,null,null,null,null,null,null,null,null,null,null,null,null,null,null,null,null,null,null,null,null,null,null,null,null,null,null,null,null,null,null,null,null,null,null,null,null,null,null,null,null,null,null,null,null,null,null,null,null,null,null,null,null,null,null,null,null,null,null,null,null,null,null,null,null,null,null,null,null,null,null,null,null,null,null,null,null,null,null,null,null,null,null,null,null,null,null,null,null,null,null,null,null,null,null,null,null,null,null,null,null,null,null,null,null,null,null,null,null,null,null,null,null,null,null,null,null,null,null,null,null,null,null,null,null,null,null,null,null,null,null,null,null,null,null,null,null,null,null,null,null,null,null,null,null,null,57.031857142857099,57,null,null,null,null,57,null,null,null,null,57,null,null,null,null,57,null,null,null,null,57,null,null,null,null,null,null,null,null,null,null,null,null,null,null,null,null,null,null,null,null,null,null,null,null,null,null,null,null,null,null,null,null,57.031857142857099,57,null,null,null,null,57,null,null,null,null,57,null,null,null,null,57,null,null,null,null,57]
["      3.I. Other carbon-containing fertilizers","WAM","NO",null,null,null,null,null,null,null,null,null,null,null,null,null,null,null,null,null,null,null,null,null,null,null,null,null,null,null,null,null,null,null,null,null,null,null,null,null,null,null,null,null,null,null,null,null,null,null,null,null,null,null,null,null,null,null,null,null,null,null,null,null,null,null,null,null,null,null,null,null,null,null,null,null,null,null,null,null,null,null,null,null,null,null,null,null,null,null,null,null,null,null,null,null,null,null,null,null,null,null,null,null,null,null,null,null,null,null,null,null,null,null,null,null,null,null,null,null,null,null,null,null,null,null,null,null,null,null,null,null,null,null,null,null,null,null,null,null,null,null,null,null,null,null,null,null,null,null,null,null,null,null,null,null,null,null,null,null,null,null,null,null,null,null,null,null,null,null,null,null,null,null,null,null,null,null,null,null,null,null,null,null,null,null,null,null,null,null,null,"NO"]
["      3.J. Other (please specify)","WAM","NO",null,null,null,null,null,null,null,null,null,null,null,null,null,null,null,null,null,null,null,null,null,null,null,null,null,null,"NO",null,null,null,null,null,null,null,null,null,null,null,null,null,null,null,null,null,null,null,null,null,null,null,null,null,null,"NO",null,null,null,null,null,null,null,null,null,null,null,null,null,null,null,null,null,null,null,null,null,null,null,null,null,null,null,null,null,null,null,null,null,null,null,null,null,null,null,null,null,null,null,null,null,null,null,null,null,null,null,null,null,null,null,null,null,null,null,null,null,null,null,null,null,null,null,null,null,null,null,null,null,null,null,null,null,null,null,null,null,null,null,null,null,null,null,null,null,null,null,null,null,null,null,null,null,null,null,null,null,null,null,null,null,null,null,null,null,null,null,null,null,null,null,null,null,null,null,null,null,null,null,null,null,null,null,null,null,null,null,null,null,null,"NO"]
["4. Land Use, Land-Use Change and Forestry","WAM",-7878.1554386545176,-6265.2315543189188,null,null,null,null,-3037.4720570362229,null,null,null,null,-4122.3176361549877,null,null,null,null,-3962.5946075536849,null,null,null,null,-4484.3571371371117,null,null,null,null,null,4.084327906666E-2,3.9264594122200902E-2,null,null,null,null,3.6848788568535525E-2,null,null,null,null,3.6794642167473579E-2,null,null,null,null,3.6750200371139796E-2,null,null,null,null,3.6722006458972341E-2,null,null,null,null,null,2.932308371,3.2730179161630311,null,null,null,null,2.9427371461164635,null,null,null,null,2.9480489339860929,null,null,null,null,2.9510230483772224,null,null,null,null,2.9525844156150316,null,null,null,null,null,null,null,null,null,null,null,null,null,null,null,null,null,null,null,null,null,null,null,null,null,null,null,null,null,null,null,null,null,null,null,null,null,null,null,null,null,null,null,null,null,null,null,null,null,null,null,null,null,null,null,null,null,null,null,null,null,null,null,null,null,null,null,null,null,null,null,null,null,null,null,null,null,null,null,null,null,null,null,null,null,null,null,null,null,null,null,null,null,null,null,null,null,null,null,null,null,null,null,null,null,null,null,null,null,null,null,null,null,-7792.6764322176532,-6171.7,0,0,0,0,-2952.9226893898876,0,0,0,0,-4037.6516094394283,0,0,0,0,-3877.8674716336545,0,0,0,0,-4399.5993688219623]
["     4.A. Forest land","WAM",-7389.9475611711478,-5731.2651455111309,null,null,null,null,-2440.8187750757693,null,null,null,null,-3531.2000238970872,null,null,null,null,-3387.2519694561406,null,null,null,null,-3924.5025025704908,null,null,null,null,null,2.0156495E-2,2.2501998173620846E-2,null,null,null,null,2.0228181714661404E-2,null,null,null,null,2.0264694595330476E-2,null,null,null,null,2.0285138462164912E-2,null,null,null,null,2.029587119792808E-2,null,null,null,null,null,2.932308371,3.2730179161630311,null,null,null,null,2.9427371461164635,null,null,null,null,2.9480489339860929,null,null,null,null,2.9510230483772224,null,null,null,null,2.9525844156150316,null,null,null,null,null,null,null,null,null,null,null,null,null,null,null,null,null,null,null,null,null,null,null,null,null,null,null,null,null,null,null,null,null,null,null,null,null,null,null,null,null,null,null,null,null,null,null,null,null,null,null,null,null,null,null,null,null,null,null,null,null,null,null,null,null,null,null,null,null,null,null,null,null,null,null,null,null,null,null,null,null,null,null,null,null,null,null,null,null,null,null,null,null,null,null,null,null,null,null,null,null,null,null,null,null,null,null,null,null,null,null,null,null,-7310.6332163861471,-5642.73,null,null,null,null,-2361.2223482718882,0,0,0,0,-3451.4599215580261,0,0,0,0,-3307.4314219849848,0,0,0,0,-3844.6397225631322]
["     4.B. Cropland","WAM",12.104131334568221,12.014840548185434,null,null,null,null,11.913067747736969,null,null,null,null,11.848086355979241,null,null,null,null,11.80157858956759,null,null,null,null,11.773677334332634,null,null,null,null,null,1.6887170666660001E-2,1.676259594858006E-2,null,null,null,null,1.662060685387412E-2,null,null,null,null,1.6529947572143103E-2,null,null,null,null,1.6465061908974881E-2,null,null,null,null,1.6426135261044261E-2,null,null,null,null,null,"NO",null,null,null,null,null,null,null,null,null,null,null,null,null,null,null,null,null,null,null,null,null,null,null,null,null,null,null,null,null,null,null,null,null,null,null,null,null,null,null,null,null,null,null,null,null,null,null,null,null,null,null,null,null,null,null,null,null,null,null,null,null,null,null,null,null,null,null,null,null,null,null,null,null,null,null,null,null,null,null,null,null,null,null,null,null,null,null,null,null,null,null,null,null,null,null,null,null,null,null,null,null,null,null,null,null,null,null,null,null,null,null,null,null,null,null,null,null,null,null,null,null,null,null,null,null,null,null,null,null,null,null,null,null,null,17.136508193232899,17.010000000000002,null,null,null,null,16.866008590191456,null,null,null,null,16.774010732477887,null,null,null,null,16.708167038442106,null,null,null,null,16.668665642123823]
["     4.C. Grassland","WAM",-569.10013733154005,-578.71968253718399,null,null,null,null,-585.89304492484837,null,null,null,null,-591.70370642464547,null,null,null,null,-596.5062860563163,null,null,null,null,-600.56487815751234,null,null,null,null,null,"NA",null,null,null,null,null,null,null,null,null,null,null,null,null,null,null,null,null,null,null,null,null,null,null,null,null,null,"NO",null,null,null,null,null,null,null,null,null,null,null,null,null,null,null,null,null,null,null,null,null,null,null,null,null,null,null,null,null,null,null,null,null,null,null,null,null,null,null,null,null,null,null,null,null,null,null,null,null,null,null,null,null,null,null,null,null,null,null,null,null,null,null,null,null,null,null,null,null,null,null,null,null,null,null,null,null,null,null,null,null,null,null,null,null,null,null,null,null,null,null,null,null,null,null,null,null,null,null,null,null,null,null,null,null,null,null,null,null,null,null,null,null,null,null,null,null,null,null,null,null,null,null,null,null,null,null,null,null,null,null,null,null,null,-569.10013733154005,-578.72,null,null,null,null,-585.89304492484837,null,null,null,null,-591.70370642464547,null,null,null,null,-596.5062860563163,null,null,null,null,-600.56487815751234]
["     4.D. Wetlands","WAM",26.763885171086791,26.687411623070741,null,null,null,null,26.921040941666234,null,null,null,null,27.154670260261565,null,null,null,null,27.388299578856888,null,null,null,null,27.268086856330203,null,null,null,null,null,"NO",null,null,null,null,null,null,null,null,null,null,null,null,null,null,null,null,null,null,null,null,null,null,null,null,null,null,"NO",null,null,null,null,null,null,null,null,null,null,null,null,null,null,null,null,null,null,null,null,null,null,null,null,null,null,null,null,null,null,null,null,null,null,null,null,null,null,null,null,null,null,null,null,null,null,null,null,null,null,null,null,null,null,null,null,null,null,null,null,null,null,null,null,null,null,null,null,null,null,null,null,null,null,null,null,null,null,null,null,null,null,null,null,null,null,null,null,null,null,null,null,null,null,null,null,null,null,null,null,null,null,null,null,null,null,null,null,null,null,null,null,null,null,null,null,null,null,null,null,null,null,null,null,null,null,null,null,null,null,null,null,null,null,26.763885171086791,26.69,null,null,null,null,26.921040941666234,null,null,null,null,27.154670260261565,null,null,null,null,27.388299578856888,null,null,null,null,27.268086856330203]
["     4.E. Settlements","WAM",127.60436333333345,128.46378372566261,null,null,null,null,129.46579863169248,null,null,null,null,129.68353238539325,null,null,null,null,129.724166581406,null,null,null,null,129.73328850643682,null,null,null,null,null,"NO",null,null,null,null,null,null,null,null,null,null,null,null,null,null,null,null,null,null,null,null,null,null,null,null,null,null,"NO",null,null,null,null,null,null,null,null,null,null,null,null,null,null,null,null,null,null,null,null,null,null,null,null,null,null,null,null,null,null,null,null,null,null,null,null,null,null,null,null,null,null,null,null,null,null,null,null,null,null,null,null,null,null,null,null,null,null,null,null,null,null,null,null,null,null,null,null,null,null,null,null,null,null,null,null,null,null,null,null,null,null,null,null,null,null,null,null,null,null,null,null,null,null,null,null,null,null,null,null,null,null,null,null,null,null,null,null,null,null,null,null,null,null,null,null,null,null,null,null,null,null,null,null,null,null,null,null,null,null,null,null,null,null,127.60436333333345,128.46,null,null,null,null,129.46579863169248,null,null,null,null,129.68353238539325,null,null,null,null,129.724166581406,null,null,null,null,129.73328850643682]
["     4.F. Other Land","WAM",8.5487600000000104,8.6002178212525813,null,null,null,null,8.565505461769396,null,null,null,null,8.5307931022862125,null,null,null,null,8.4960807428030289,null,null,null,null,8.4615112706510995,null,null,null,null,null,"NO",null,null,null,null,null,null,null,null,null,null,null,null,null,null,null,null,null,null,null,null,null,null,null,null,null,null,"NO",null,null,null,null,null,null,null,null,null,null,null,null,null,null,null,null,null,null,null,null,null,null,null,null,null,null,null,null,null,null,null,null,null,null,null,null,null,null,null,null,null,null,null,null,null,null,null,null,null,null,null,null,null,null,null,null,null,null,null,null,null,null,null,null,null,null,null,null,null,null,null,null,null,null,null,null,null,null,null,null,null,null,null,null,null,null,null,null,null,null,null,null,null,null,null,null,null,null,null,null,null,null,null,null,null,null,null,null,null,null,null,null,null,null,null,null,null,null,null,null,null,null,null,null,null,null,null,null,null,null,null,null,null,null,8.5487600000000104,8.6,null,null,null,null,8.565505461769396,null,null,null,null,8.5307931022862125,null,null,null,null,8.4960807428030289,null,null,null,null,8.4615112706510995]
["     4.G. Harvested wood products","WAM",-94.128879990818959,-131.01297998877507,null,null,null,null,-187.62564981847063,null,null,null,null,-176.63098793717589,null,null,null,null,-156.24647753386139,null,null,null,null,-136.52632037686027,null,null,null,null,null,null,null,null,null,null,null,null,null,null,null,null,null,null,null,null,null,null,null,null,null,null,null,null,null,null,null,null,null,null,null,null,null,null,null,null,null,null,null,null,null,null,null,null,null,null,null,null,null,null,null,null,null,null,null,null,null,null,null,null,null,null,null,null,null,null,null,null,null,null,null,null,null,null,null,null,null,null,null,null,null,null,null,null,null,null,null,null,null,null,null,null,null,null,null,null,null,null,null,null,null,null,null,null,null,null,null,null,null,null,null,null,null,null,null,null,null,null,null,null,null,null,null,null,null,null,null,null,null,null,null,null,null,null,null,null,null,null,null,null,null,null,null,null,null,null,null,null,null,null,null,null,null,null,null,null,null,null,null,null,null,null,null,-94.128879990818959,-131.01,null,null,null,null,-187.62564981847063,null,null,null,null,-176.63098793717589,null,null,null,null,-156.24647753386139,null,null,null,null,-136.52632037686027]
["     4.H. Other","WAM","NO",null,null,null,null,null,null,null,null,null,null,null,null,null,null,null,null,null,null,null,null,null,null,null,null,null,null,"NO",null,null,null,null,null,null,null,null,null,null,null,null,null,null,null,null,null,null,null,null,null,null,null,null,null,null,"NO",null,null,null,null,null,null,null,null,null,null,null,null,null,null,null,null,null,null,null,null,null,null,null,null,null,null,null,null,null,null,null,null,null,null,null,null,null,null,null,null,null,null,null,null,null,null,null,null,null,null,null,null,null,null,null,null,null,null,null,null,null,null,null,null,null,null,null,null,null,null,null,null,null,null,null,null,null,null,null,null,null,null,null,null,null,null,null,null,null,null,null,null,null,null,null,null,null,null,null,null,null,null,null,null,null,null,null,null,null,null,null,null,null,null,null,null,null,null,null,null,null,null,null,null,null,null,null,null,null,null,null,null,null,null,"NO"]
["5. Waste","WAM",131.73730350000014,132.428,null,null,null,null,152.6591875570937,null,null,null,null,159.61790647095032,null,null,null,null,165.69324247394013,null,null,null,null,171.0844246975648,null,null,null,null,null,0.81506998066900005,0.87018118262835997,null,null,null,null,0.98485240986588796,null,null,null,null,1.0329757959534729,null,null,null,null,1.0914872295657279,null,null,null,null,1.1409767676684464,null,null,null,null,null,187.18516815529429,189.77638446067775,null,null,null,null,177.9413958545322,null,null,null,null,167.50249029646494,null,null,null,null,131.91305532652206,null,null,null,null,74.507404931784293,null,null,null,null,null,null,null,null,null,null,null,null,null,null,null,null,null,null,null,null,null,null,null,null,null,null,null,null,null,null,null,null,null,null,null,null,null,null,null,null,null,null,null,null,null,null,null,null,null,null,null,null,null,null,null,null,null,null,null,null,null,null,null,null,null,null,null,null,null,null,null,null,null,null,null,null,null,null,null,null,null,null,null,null,null,null,null,null,null,null,null,null,null,null,null,null,null,null,null,null,null,null,null,null,null,null,null,null,null,null,null,null,null,5054.2573616217196,5136.1516039401959,null,null,null,null,4894.6801020604335,null,null,null,null,4655.006951076708,null,null,null,null,3788.7828200475788,null,null,null,null,2373.780624757369,null,null,null,null,null,null,null,null,null,null,null,null,null,null,null,null,null,null,null,null,null,null,null,null,null,null,null,null,null,null,null,null,5054.2573616217196,5136.1516039401959,null,null,null,null,4894.6801020604335,null,null,null,null,4655.006951076708,null,null,null,null,3788.7828200475788,null,null,null,null,2373.780624757369]
["    5.A. Solid Waste Disposal ","WAM","NO","NO",null,null,null,null,null,null,null,null,null,null,null,null,null,null,null,null,null,null,null,null,null,null,null,null,null,null,null,null,null,null,null,null,null,null,null,null,null,null,null,null,null,null,null,null,null,null,null,null,null,null,null,null,133.23153083,132.27683928954821,null,null,null,null,118.22409999999999,null,null,null,null,105.98659999999998,null,null,null,null,72.524600000000035,null,null,null,null,21.092600000000033,null,null,null,null,null,null,null,null,null,null,null,null,null,null,null,null,null,null,null,null,null,null,null,null,null,null,null,null,null,null,null,null,null,null,null,null,null,null,null,null,null,null,null,null,null,null,null,null,null,null,null,null,null,null,null,null,null,null,null,null,null,null,null,null,null,null,null,null,null,null,null,null,null,null,null,null,null,null,null,null,null,null,null,null,null,null,null,null,null,null,null,null,null,null,null,null,null,null,null,null,null,null,null,null,null,null,null,null,null,null,null,null,null,3330.7882707499998,3306.9209822387052,null,null,null,null,2955.6025,null,null,null,null,2649.6649999999995,null,null,null,null,1813.1150000000009,null,null,null,null,527.31500000000085,null,null,null,null,null,null,null,null,null,null,null,null,null,null,null,null,null,null,null,null,null,null,null,null,null,null,null,null,null,null,null,null,3330.7882707499998,3306.9209822387052,null,null,null,null,2955.6025,null,null,null,null,2649.6649999999995,null,null,null,null,1813.1150000000009,null,null,null,null,527.31500000000085]
["    5.B. Biological treatment of solid waste","WAM",null,"NO",null,null,null,null,null,null,null,null,null,null,null,null,null,null,null,null,null,null,null,null,null,null,null,null,null,0.12248232000000001,0.14961490949495998,null,null,null,null,0.16200000000000001,null,null,null,null,0.24,null,null,null,null,0.32810225280000005,null,null,null,null,0.40628134230000007,null,null,null,null,null,24.711772,24.632400000000001,null,null,null,null,22.26,null,null,null,null,21.5,null,null,null,null,18.044696704,null,null,null,null,14.637084564,null,null,null,null,null,null,null,null,null,null,null,null,null,null,null,null,null,null,null,null,null,null,null,null,null,null,null,null,null,null,null,null,null,null,null,null,null,null,null,null,null,null,null,null,null,null,null,null,null,null,null,null,null,null,null,null,null,null,null,null,null,null,null,null,null,null,null,null,null,null,null,null,null,null,null,null,null,null,null,null,null,null,null,null,null,null,null,null,null,null,null,null,null,null,null,null,null,null,null,null,null,null,null,null,null,null,null,null,null,null,null,null,null,654.29403135999996,660.39524302949815,null,null,null,null,604.77599999999995,null,null,null,null,609.02,null,null,null,null,548.89188893440007,null,null,null,null,486.9989541054,null,null,null,null,null,null,null,null,null,null,null,null,null,null,null,null,null,null,null,null,null,null,null,null,null,null,null,null,null,null,null,null,654.29403135999996,660.39524302949815,null,null,null,null,604.77599999999995,null,null,null,null,609.02,null,null,null,null,548.89188893440007,null,null,null,null,486.9989541054]
["    5.C. Incineration and open burning of waste","WAM",131.73730350000014,132.428,null,null,null,null,152.6591875570937,null,null,null,null,159.61790647095032,null,null,null,null,165.69324247394013,null,null,null,null,171.0844246975648,null,null,null,null,null,8.0242000000000004E-3,8.0662731333999999E-3,null,null,null,null,8.2341305010242942E-3,null,null,null,null,8.6094698472736781E-3,null,null,null,null,8.937161290459697E-3,null,null,null,null,9.227950850488803E-3,null,null,null,null,null,4.4935519999999998E-5,4.5171129547040004E-5,null,null,null,null,4.6111130805736054E-5,null,null,null,null,4.8213031144732586E-5,null,null,null,null,5.0048103226574308E-5,null,null,null,null,5.167652476273729E-5,null,null,null,null,null,null,null,null,null,null,null,null,null,null,null,null,null,null,null,null,null,null,null,null,null,null,null,null,null,null,null,null,null,null,null,null,null,null,null,null,null,null,null,null,null,null,null,null,null,null,null,null,null,null,null,null,null,null,null,null,null,null,null,null,null,null,null,null,null,null,null,null,null,null,null,null,null,null,null,null,null,null,null,null,null,null,null,null,null,null,null,null,null,null,null,null,null,null,null,null,null,null,null,null,null,null,null,null,null,null,null,null,null,134.12963848800015,134.83287867199186,null,null,null,null,155.1141112246691,null,null,null,null,162.18473381121649,null,null,null,null,168.35776774107779,null,null,null,null,173.83564596412953,null,null,null,null,null,null,null,null,null,null,null,null,null,null,null,null,null,null,null,null,null,null,null,null,null,null,null,null,null,null,null,null,134.12963848800015,134.83287867199186,null,null,null,null,155.1141112246691,null,null,null,null,162.18473381121649,null,null,null,null,168.35776774107779,null,null,null,null,173.83564596412953]
["    5.D. Wastewater treatment and discharge","WAM",null,null,null,null,null,null,null,null,null,null,null,null,null,null,null,null,null,null,null,null,null,null,null,null,null,null,null,0.68456346066899998,0.71250000000000002,null,null,null,null,0.81461827936486364,null,null,null,null,0.78436632610619927,null,null,null,null,0.75444781547526807,null,null,null,null,0.72546747451795757,null,null,null,null,null,29.241820389774301,32.867100000000001,null,null,null,null,37.457249743401405,null,null,null,null,40.015842083433796,null,null,null,null,41.343708574418798,null,null,null,null,38.7776686912595,null,null,null,null,null,null,null,null,null,null,null,null,null,null,null,null,null,null,null,null,null,null,null,null,null,null,null,null,null,null,null,null,null,null,null,null,null,null,null,null,null,null,null,null,null,null,null,null,null,null,null,null,null,null,null,null,null,null,null,null,null,null,null,null,null,null,null,null,null,null,null,null,null,null,null,null,null,null,null,null,null,null,null,null,null,null,null,null,null,null,null,null,null,null,null,null,null,null,null,null,null,null,null,null,null,null,null,null,null,null,null,null,null,935.04542102371954,1034.0025000000001,null,null,null,null,1179.1874908357645,null,null,null,null,1234.1372172654924,null,null,null,null,1258.4181633720998,null,null,null,null,1185.6310246878388,null,null,null,null,null,null,null,null,null,null,null,null,null,null,null,null,null,null,null,null,null,null,null,null,null,null,null,null,null,null,null,null,935.04542102371954,1034.0025000000001,null,null,null,null,1179.1874908357645,null,null,null,null,1234.1372172654924,null,null,null,null,1258.4181633720998,null,null,null,null,1185.6310246878388]
["    5.E. Other (please specify)","WAM","NO","NO",null,null,null,null,null,null,null,null,null,null,null,null,null,null,null,null,null,null,null,null,null,null,null,null,null,"NO",null,null,null,null,null,null,null,null,null,null,null,null,null,null,null,null,null,null,null,null,null,null,null,null,null,null,"NO",null,null,null,null,null,null,null,null,null,null,null,null,null,null,null,null,null,null,null,null,null,null,null,null,null,null,null,null,null,null,null,null,null,null,null,null,null,null,null,null,null,null,null,null,null,null,null,null,null,null,null,null,null,null,null,null,null,null,null,null,null,null,null,null,null,null,null,null,null,null,null,null,null,null,null,null,null,null,null,null,null,null,null,null,null,null,null,null,null,null,null,null,null,null,null,null,null,null,null,null,null,null,null,null,null,null,null,null,null,null,null,null,null,null,null,null,null,null,null,null,null,null,null,null,null,null,null,null,null,null,null,null,null,null,"NO",null,null,null,null,null,null,null,null,null,null,null,null,null,null,null,null,null,null,null,null,null,null,null,null,null,null,null,null,null,null,null,null,null,null,null,null,null,null,null,null,null,null,null,null,null,null,null,null,null,null,null,null,null,"NO"]
["Memo items","WAM"]
["M.International bunkers","WAM",875.22506499999997,876.22506499999997,null,null,null,null,881.22506499999997,null,null,null,null,886.22506499999997,null,null,null,null,891.22506499999997,null,null,null,null,896.22506499999997,null,null,null,null,null,2.4758866000000001E-2,2.5999999999999999E-2,null,null,null,null,2.7E-2,null,null,null,null,2.8000000000000001E-2,null,null,null,null,0.03,null,null,null,null,3.1E-2,null,null,null,null,null,6.1204550000000003E-3,6.0000000000000001E-3,null,null,null,null,6.0000000000000001E-3,null,null,null,null,6.0000000000000001E-3,null,null,null,null,6.0000000000000001E-3,null,null,null,null,6.0000000000000001E-3,null,null,null,null,null,null,null,null,null,null,null,null,null,null,null,null,null,null,null,null,null,null,null,null,null,null,null,null,null,null,null,null,null,null,null,null,null,null,null,null,null,null,null,null,null,null,null,null,null,null,null,null,null,null,null,null,null,null,null,null,null,null,null,null,null,null,null,null,null,null,null,null,null,null,null,null,null,null,null,null,null,null,null,null,null,null,null,null,null,null,null,null,null,null,null,null,null,null,null,null,null,null,null,null,null,null,null,null,null,null,null,null,null,null,884.123065,null,null,null,null,889.421065,null,null,null,null,894.719065,null,null,null,null,900.315065,null,null,null,null,905.61306499999989]
["              M.IB.Aviation","WAM",875.22506499999997,876.22506499999997,null,null,null,null,881.22506499999997,null,null,null,null,886.22506499999997,null,null,null,null,891.22506499999997,null,null,null,null,896.22506499999997,null,null,null,null,null,2.4758866000000001E-2,2.5999999999999999E-2,null,null,null,null,2.7E-2,null,null,null,null,2.8000000000000001E-2,null,null,null,null,0.03,null,null,null,null,3.1E-2,null,null,null,null,null,6.1204550000000003E-3,6.0000000000000001E-3,null,null,null,null,6.0000000000000001E-3,null,null,null,null,6.0000000000000001E-3,null,null,null,null,6.0000000000000001E-3,null,null,null,null,6.0000000000000001E-3,null,null,null,null,null,null,null,null,null,null,null,null,null,null,null,null,null,null,null,null,null,null,null,null,null,null,null,null,null,null,null,null,null,null,null,null,null,null,null,null,null,null,null,null,null,null,null,null,null,null,null,null,null,null,null,null,null,null,null,null,null,null,null,null,null,null,null,null,null,null,null,null,null,null,null,null,null,null,null,null,null,null,null,null,null,null,null,null,null,null,null,null,null,null,null,null,null,null,null,null,null,null,null,null,null,null,null,null,null,null,null,null,null,882.75599999999997,884.123065,null,null,null,null,889.421065,null,null,null,null,894.719065,null,null,null,null,900.315065,null,null,null,null,905.61306499999989]
["              M.IB.Navigation","WAM","NO",null,null,null,null,null,null,null,null,null,null,null,null,null,null,null,null,null,null,null,null,null,null,null,null,null,null,null,null,null,null,null,null,null,null,null,null,null,null,null,null,null,null,null,null,null,null,null,null,null,null,null,null,null,null,null,null,null,null,null,null,null,null,null,null,null,null,null,null,null,null,null,null,null,null,null,null,null,null,null,null,null,null,null,null,null,null,null,null,null,null,null,null,null,null,null,null,null,null,null,null,null,null,null,null,null,null,null,null,null,null,null,null,null,null,null,null,null,null,null,null,null,null,null,null,null,null,null,null,null,null,null,null,null,null,null,null,null,null,null,null,null,null,null,null,null,null,null,null,null,null,null,null,null,null,null,null,null,null,null,null,null,null,null,null,null,null,null,null,null,null,null,null,null,null,null,null,null,null,null,null,null,null,null,null,null,null,null,null,882.75599999999997]
["        M.CO2 emissions from biomass","WAM",13247.6909667934,13275.434822221237,null,null,null,null,14523.908316474019,null,null,null,null,16174.667714430476,null,null,null,null,18088.993738951405,null,null,null,null,20058.807474328016,null,null,null,null,null,null,null,null,null,null,null,null,null,null,null,null,null,null,null,null,null,null,null,null,null,null,null,null,null,null,null,null,null,null,null,null,null,null,null,null,null,null,null,null,null,null,null,null,null,null,null,null,null,null,null,null,null,null,null,null,null,null,null,null,null,null,null,null,null,null,null,null,null,null,null,null,null,null,null,null,null,null,null,null,null,null,null,null,null,null,null,null,null,null,null,null,null,null,null,null,null,null,null,null,null,null,null,null,null,null,null,null,null,null,null,null,null,null,null,null,null,null,null,null,null,null,null,null,null,null,null,null,null,null,null,null,null,null,null,null,null,null,null,null,null,null,null,null,null,null,null,null,null,null,null,null,null,null,null,null,null,null,null,null,null,null,null,13247.6909667934,13275.434822221237,null,null,null,null,14523.908316474019,null,null,null,null,16174.667714430476,null,null,null,null,18088.993738951405,null,null,null,null,20058.807474328016]
["        M.CO2 captured","WAM","NO"]
["        M.Long-term storage of C in waste disposal sites","WAM",10689.369339999999,10837.342966335043,null,null,null,null,9453.7883203983365,null,null,null,null,8162.4001965064035,null,null,null,null,6291.889280459257,null,null,null,null,3241.5910983607619]
["        M.Indirect N2O","WAM",null,null,null,null,null,null,null,null,null,null,null,null,null,null,null,null,null,null,null,null,null,null,null,null,null,null,null,4.6832348107913004,4.7712141200959648,null,null,null,null,4.5758122434206197,null,null,null,null,4.884708886526564,null,null,null,null,5.1820225698083728,null,null,null,null,5.2559261219741629]
["        M.International aviation in the EU ETS","WAM",875.22506499999997,876.22506499999997,null,null,null,null,881.22506499999997,null,null,null,null,886.22506499999997,null,null,null,null,891.22506499999997,null,null,null,null,896.22506499999997,null,null,null,null,null,null,null,null,null,null,null,null,null,null,null,null,null,null,null,null,null,null,null,null,null,null,null,null,null,null,null,null,null,null,null,null,null,null,null,null,null,null,null,null,null,null,null,null,null,null,null,null,null,null,null,null,null,null,null,null,null,null,null,null,null,null,null,null,null,null,null,null,null,null,null,null,null,null,null,null,null,null,null,null,null,null,null,null,null,null,null,null,null,null,null,null,null,null,null,null,null,null,null,null,null,null,null,null,null,null,null,null,null,null,null,null,null,null,null,null,null,null,null,null,null,null,null,null,null,null,null,null,null,null,null,null,null,null,null,null,null,null,null,null,null,null,null,null,null,null,null,null,null,null,null,null,null,null,null,null,null,null,null,null,null,null,null,875.22506499999997,876.22506499999997,null,null,null,null,881.22506499999997,null,null,null,null,886.22506499999997,null,null,null,null,891.22506499999997,null,null,null,null,896.22506499999997,null,null,null,null,null,875.22506499999997,876.22506499999997,null,null,null,null,881.22506499999997,null,null,null,null,886.22506499999997,null,null,null,null,891.22506499999997,null,null,null,null,896.22506499999997]
[]
["Footnotes:"]
["Notation: t signifies the first future year ending with 0 or 5 immediately following the reporting year"]
["(1)IPCC categories pursuant to 2006 IPCC Guidelines for National Greenhouse Gas inventories and revised UNFCCC CRF tables for inventory reporting"]
["(2)ODS - ozone-depleting substances."]
["(3)Use of notation keys: as regards the terms of use defined in the 2006 IPCC Guidelines for National Greenhouse Gas Inventories (chapter 8: reporting guidance and tables), the notation keys of IE (included elsewhere), NO (not occurring), C (confidential) and NA (not applicable) may be used, as appropriate when projections do not yield data on a specific reporting level (see 2006 IPCC Guidelines)."]